{"text_format":"1","workbook":"xlsx","n_sheets":2,"sheets":["ГРАФИК И.Б.НОЯБРЬ ","ТАБЕЛЬ  И.Б. НОЯБРЬ"],"not_rendered":{"charts":0,"images":0,"macros":1,"external_links":5,"defined_names":45,"comments":0,"pivot_tables":0},"unopened":[],"bounds":{"document_bytes":16777216,"sheet_cells":100000,"rows_first":2000,"rows_last":500,"rows_between":2000,"halvings":0,"cell_chars":16384,"cell_head_chars":4096},"cells_cut":0,"cells_raw":0,"read":"whole","date_system":"1900"}

{"sheet":"ГРАФИК И.Б.НОЯБРЬ ","index":0,"n_rows":106,"n_cols":250,"rows_kept":106,"cut":false,"hidden":false,"merged":[[0,241,0,242],[1,0,1,2],[1,241,1,242],[2,0,2,2],[2,241,2,242],[3,0,3,2],[3,241,3,242],[18,76,19,81],[15,0,15,227],[16,0,16,227],[17,24,17,27],[17,28,17,33],[18,0,19,4],[18,5,19,22],[18,23,19,27],[18,28,19,33],[18,34,19,39],[18,40,19,45],[4,241,4,242],[7,0,7,76],[11,190,11,232],[11,235,12,235],[12,189,12,220],[14,0,14,227],[20,28,20,33],[20,34,20,39],[20,40,20,45],[18,190,19,195],[18,196,19,201],[18,202,19,207],[18,208,19,213],[18,214,18,232],[19,214,19,228],[18,154,19,159],[18,160,19,165],[18,166,19,171],[18,172,19,177],[18,178,19,183],[18,184,19,189],[18,118,19,123],[18,124,19,129],[18,130,19,135],[18,136,19,141],[18,142,19,147],[18,148,19,153],[18,82,19,87],[18,88,19,93],[18,94,19,99],[18,100,19,105],[18,106,19,111],[18,112,19,117],[18,46,19,51],[18,52,19,57],[18,58,19,63],[18,64,19,69],[18,70,19,75],[21,1,26,3],[21,5,26,22],[21,23,22,27],[21,28,21,33],[21,34,21,39],[20,154,20,159],[20,160,20,165],[20,166,20,171],[20,172,20,177],[20,178,20,183],[20,184,20,189],[20,118,20,123],[20,124,20,129],[20,130,20,135],[20,136,20,141],[20,142,20,147],[20,148,20,153],[20,82,20,87],[20,88,20,93],[20,94,20,99],[20,100,20,105],[20,106,20,111],[20,112,20,117],[20,46,20,51],[20,52,20,57],[20,58,20,63],[20,64,20,69],[20,70,20,75],[20,76,20,81],[20,1,20,4],[20,5,20,22],[20,24,20,27],[21,76,21,81],[21,82,21,87],[21,88,21,93],[21,94,21,99],[21,100,21,105],[21,106,21,111],[21,40,21,45],[21,46,21,51],[21,52,21,57],[21,58,21,63],[21,64,21,69],[21,70,21,75],[20,190,20,195],[20,196,20,201],[20,202,20,207],[20,208,20,213],[20,214,20,220],[21,221,21,228],[21,232,23,232],[22,28,22,33],[22,34,22,39],[22,40,22,45],[22,46,22,51],[22,52,22,57],[22,58,22,63],[22,64,22,69],[22,70,22,75],[21,184,21,189],[21,190,21,195],[21,196,21,201],[21,202,21,207],[21,208,21,213],[21,214,23,220],[22,184,22,189],[22,190,22,195],[22,196,22,201],[22,202,22,207],[21,148,21,153],[21,154,21,159],[21,160,21,165],[21,166,21,171],[21,172,21,177],[21,178,21,183],[21,112,21,117],[21,118,21,123],[21,124,21,129],[21,130,21,135],[21,136,21,141],[21,142,21,147],[22,208,22,213],[23,24,23,27],[23,28,23,33],[23,34,23,39],[23,40,23,45],[23,46,23,51],[23,52,23,57],[23,58,23,63],[23,64,23,69],[23,70,23,75],[22,148,22,153],[22,154,22,159],[22,160,22,165],[22,166,22,171],[22,172,22,177],[22,178,22,183],[22,112,22,117],[22,118,22,123],[22,124,22,129],[22,130,22,135],[22,136,22,141],[22,142,22,147],[22,76,22,81],[22,82,22,87],[22,88,22,93],[22,94,22,99],[22,100,22,105],[22,106,22,111],[23,221,24,228],[24,202,24,207],[24,208,24,213],[24,214,24,220],[23,148,23,153],[23,154,23,159],[23,160,23,165],[23,166,23,171],[23,172,23,177],[23,178,23,183],[23,112,23,117],[23,118,23,123],[23,124,23,129],[23,130,23,135],[23,136,23,141],[23,142,23,147],[23,76,23,81],[23,82,23,87],[23,88,23,93],[23,94,23,99],[23,100,23,105],[23,106,23,111],[24,58,24,63],[24,64,24,69],[24,70,24,75],[24,76,24,81],[24,82,24,87],[24,88,24,93],[24,24,24,27],[24,28,24,33],[24,34,24,39],[24,40,24,45],[24,46,24,51],[24,52,24,57],[23,184,23,189],[23,190,23,195],[23,196,23,201],[23,202,23,207],[23,208,23,213],[24,166,24,171],[24,172,24,177],[24,178,24,183],[24,184,24,189],[24,190,24,195],[24,196,24,201],[24,130,24,135],[24,136,24,141],[24,142,24,147],[24,148,24,153],[24,154,24,159],[24,160,24,165],[24,94,24,99],[24,100,24,105],[24,106,24,111],[24,112,24,117],[24,118,24,123],[24,124,24,129],[25,154,25,159],[25,160,25,165],[25,94,25,99],[25,100,25,105],[25,106,25,111],[25,112,25,117],[25,118,25,123],[25,124,25,129],[25,58,25,63],[25,64,25,69],[25,70,25,75],[25,76,25,81],[25,82,25,87],[25,88,25,93],[25,24,25,27],[25,28,25,33],[25,34,25,39],[25,40,25,45],[25,46,25,51],[25,52,25,57],[26,94,26,99],[26,100,26,105],[26,106,26,111],[26,112,26,117],[26,118,26,123],[26,124,26,129],[26,58,26,63],[26,64,26,69],[26,70,26,75],[26,76,26,81],[26,82,26,87],[26,88,26,93],[25,202,25,207],[25,208,25,213],[25,214,25,220],[25,221,26,228],[26,24,26,27],[26,28,26,33],[26,34,26,39],[26,40,26,45],[26,46,26,51],[26,52,26,57],[25,166,25,171],[25,172,25,177],[25,178,25,183],[25,184,25,189],[25,190,25,195],[25,196,25,201],[25,130,25,135],[25,136,25,141],[25,142,25,147],[25,148,25,153],[27,106,27,111],[27,112,27,117],[27,118,27,123],[27,124,27,129],[27,58,27,63],[27,64,27,69],[27,70,27,75],[27,76,27,81],[27,82,27,87],[27,88,27,93],[26,202,26,207],[26,208,26,213],[26,214,26,220],[27,5,32,22],[27,23,28,27],[27,28,27,33],[27,34,27,39],[27,40,27,45],[27,46,27,51],[27,52,27,57],[26,166,26,171],[26,172,26,177],[26,178,26,183],[26,184,26,189],[26,190,26,195],[26,196,26,201],[26,130,26,135],[26,136,26,141],[26,142,26,147],[26,148,26,153],[26,154,26,159],[26,160,26,165],[28,124,28,129],[28,130,28,135],[28,64,28,69],[28,70,28,75],[28,76,28,81],[28,82,28,87],[28,88,28,93],[28,94,28,99],[27,202,27,207],[27,208,27,213],[27,214,29,220],[27,232,29,232],[28,28,28,33],[28,34,28,39],[28,40,28,45],[28,46,28,51],[28,52,28,57],[28,58,28,63],[27,166,27,171],[27,172,27,177],[27,178,27,183],[27,184,27,189],[27,190,27,195],[27,196,27,201],[27,130,27,135],[27,136,27,141],[27,142,27,147],[27,148,27,153],[27,154,27,159],[27,160,27,165],[27,94,27,99],[27,100,27,105],[29,76,29,81],[29,82,29,87],[29,88,29,93],[29,94,29,99],[29,100,29,105],[29,106,29,111],[28,208,28,213],[29,24,29,27],[29,28,29,33],[29,34,29,39],[29,40,29,45],[29,46,29,51],[29,52,29,57],[29,58,29,63],[29,64,29,69],[29,70,29,75],[28,172,28,177],[28,178,28,183],[28,184,28,189],[28,190,28,195],[28,196,28,201],[28,202,28,207],[28,136,28,141],[28,142,28,147],[28,148,28,153],[28,154,28,159],[28,160,28,165],[28,166,28,171],[28,100,28,105],[28,106,28,111],[28,112,28,117],[28,118,28,123],[29,184,29,189],[29,190,29,195],[29,196,29,201],[29,202,29,207],[29,208,29,213],[29,221,30,228],[30,202,30,207],[30,208,30,213],[30,214,30,220],[29,148,29,153],[29,154,29,159],[29,160,29,165],[29,166,29,171],[29,172,29,177],[29,178,29,183],[29,112,29,117],[29,118,29,123],[29,124,29,129],[29,130,29,135],[29,136,29,141],[29,142,29,147],[30,184,30,189],[30,190,30,195],[30,196,30,201],[30,130,30,135],[30,136,30,141],[30,142,30,147],[30,148,30,153],[30,154,30,159],[30,160,30,165],[30,94,30,99],[30,100,30,105],[30,106,30,111],[30,112,30,117],[30,118,30,123],[30,124,30,129],[30,58,30,63],[30,64,30,69],[30,70,30,75],[30,76,30,81],[30,82,30,87],[30,88,30,93],[31,118,31,123],[31,124,31,129],[31,58,31,63],[31,64,31,69],[31,70,31,75],[31,76,31,81],[31,82,31,87],[31,88,31,93],[31,24,31,27],[31,28,31,33],[31,34,31,39],[31,40,31,45],[31,46,31,51],[31,52,31,57],[30,166,30,171],[30,172,30,177],[30,178,30,183],[30,24,30,27],[30,28,30,33],[30,34,30,39],[30,40,30,45],[30,46,30,51],[30,52,30,57],[32,58,32,63],[32,64,32,69],[32,70,32,75],[32,76,32,81],[32,82,32,87],[32,88,32,93],[31,202,31,207],[31,208,31,213],[31,214,31,220],[31,221,32,228],[32,24,32,27],[32,28,32,33],[32,34,32,39],[32,40,32,45],[32,46,32,51],[32,52,32,57],[31,166,31,171],[31,172,31,177],[31,178,31,183],[31,184,31,189],[31,190,31,195],[31,196,31,201],[31,130,31,135],[31,136,31,141],[31,142,31,147],[31,148,31,153],[31,154,31,159],[31,160,31,165],[31,94,31,99],[31,100,31,105],[31,106,31,111],[31,112,31,117],[33,64,33,69],[33,70,33,75],[33,76,33,81],[33,82,33,87],[32,202,32,207],[32,208,32,213],[32,214,32,220],[33,1,38,2],[33,5,38,22],[33,23,34,27],[33,28,33,33],[33,34,33,39],[33,40,33,45],[33,46,33,51],[32,166,32,171],[32,172,32,177],[32,178,32,183],[32,184,32,189],[32,190,32,195],[32,196,32,201],[32,130,32,135],[32,136,32,141],[32,142,32,147],[32,148,32,153],[32,154,32,159],[32,160,32,165],[32,94,32,99],[32,100,32,105],[32,106,32,111],[32,112,32,117],[32,118,32,123],[32,124,32,129],[34,82,34,87],[34,88,34,93],[33,196,33,201],[33,202,33,207],[33,208,33,213],[33,214,35,220],[33,232,35,232],[34,28,34,33],[34,34,34,39],[34,40,34,45],[34,46,34,51],[34,52,34,57],[33,160,33,165],[33,166,33,171],[33,172,33,177],[33,178,33,183],[33,184,33,189],[33,190,33,195],[33,124,33,129],[33,130,33,135],[33,136,33,141],[33,142,33,147],[33,148,33,153],[33,154,33,159],[33,88,33,93],[33,94,33,99],[33,100,33,105],[33,106,33,111],[33,112,33,117],[33,118,33,123],[33,52,33,57],[33,58,33,63],[34,202,34,207],[34,208,34,213],[35,24,35,27],[35,28,35,33],[35,34,35,39],[35,40,35,45],[35,46,35,51],[35,52,35,57],[35,58,35,63],[35,64,35,69],[34,166,34,171],[34,172,34,177],[34,178,34,183],[34,184,34,189],[34,190,34,195],[34,196,34,201],[34,130,34,135],[34,136,34,141],[34,142,34,147],[34,148,34,153],[34,154,34,159],[34,160,34,165],[34,94,34,99],[34,100,34,105],[34,106,34,111],[34,112,34,117],[34,118,34,123],[34,124,34,129],[34,58,34,63],[34,64,34,69],[34,70,34,75],[34,76,34,81],[35,243,35,247],[36,24,36,27],[36,28,36,33],[36,34,36,39],[36,40,36,45],[36,46,36,51],[36,52,36,57],[36,58,36,63],[36,64,36,69],[35,178,35,183],[35,184,35,189],[35,190,35,195],[35,196,35,201],[35,202,35,207],[35,208,35,213],[35,142,35,147],[35,148,35,153],[35,154,35,159],[35,160,35,165],[35,166,35,171],[35,172,35,177],[35,106,35,111],[35,112,35,117],[35,118,35,123],[35,124,35,129],[35,130,35,135],[35,136,35,141],[35,70,35,75],[35,76,35,81],[35,82,35,87],[35,88,35,93],[35,94,35,99],[36,154,36,159],[36,160,36,165],[36,166,36,171],[36,172,36,177],[36,106,36,111],[36,112,36,117],[36,118,36,123],[36,124,36,129],[36,130,36,135],[36,136,36,141],[36,70,36,75],[36,76,36,81],[36,82,36,87],[36,88,36,93],[36,94,36,99],[36,100,36,105],[35,221,36,228],[35,100,35,105],[37,166,37,171],[37,172,37,177],[37,106,37,111],[37,112,37,117],[37,118,37,123],[37,124,37,129],[37,130,37,135],[37,136,37,141],[37,70,37,75],[37,76,37,81],[37,82,37,87],[37,88,37,93],[37,94,37,99],[37,100,37,105],[36,214,36,220],[36,243,36,247],[37,24,37,27],[37,28,37,33],[37,34,37,39],[37,40,37,45],[37,46,37,51],[37,52,37,57],[37,58,37,63],[37,64,37,69],[36,178,36,183],[36,184,36,189],[36,190,36,195],[36,196,36,201],[36,202,36,207],[36,208,36,213],[36,142,36,147],[36,148,36,153],[38,106,38,111],[38,112,38,117],[38,118,38,123],[38,124,38,129],[38,130,38,135],[38,136,38,141],[38,70,38,75],[38,76,38,81],[38,82,38,87],[38,88,38,93],[38,94,38,99],[38,100,38,105],[37,214,37,220],[37,221,38,228],[38,24,38,27],[38,28,38,33],[38,34,38,39],[38,40,38,45],[38,46,38,51],[38,52,38,57],[38,58,38,63],[38,64,38,69],[37,178,37,183],[37,184,37,189],[37,190,37,195],[37,196,37,201],[37,202,37,207],[37,208,37,213],[37,142,37,147],[37,148,37,153],[37,154,37,159],[37,160,37,165],[39,112,39,117],[39,118,39,123],[39,124,39,129],[39,130,39,135],[39,64,39,69],[39,70,39,75],[39,76,39,81],[39,82,39,87],[39,88,39,93],[39,94,39,99],[38,214,38,220],[39,1,44,4],[39,5,44,22],[39,23,40,27],[39,28,39,33],[39,34,39,39],[39,40,39,45],[39,46,39,51],[39,52,39,57],[39,58,39,63],[38,178,38,183],[38,184,38,189],[38,190,38,195],[38,196,38,201],[38,202,38,207],[38,208,38,213],[38,142,38,147],[38,148,38,153],[38,154,38,159],[38,160,38,165],[38,166,38,171],[38,172,38,177],[40,124,40,129],[40,130,40,135],[40,64,40,69],[40,70,40,75],[40,76,40,81],[40,82,40,87],[40,88,40,93],[40,94,40,99],[39,208,39,213],[39,214,41,220],[39,221,40,221],[39,232,41,232],[40,28,40,33],[40,34,40,39],[40,40,40,45],[40,46,40,51],[40,52,40,57],[40,58,40,63],[39,172,39,177],[39,178,39,183],[39,184,39,189],[39,190,39,195],[39,196,39,201],[39,202,39,207],[39,136,39,141],[39,142,39,147],[39,148,39,153],[39,154,39,159],[39,160,39,165],[39,166,39,171],[39,100,39,105],[39,106,39,111],[41,76,41,81],[41,82,41,87],[41,88,41,93],[41,94,41,99],[41,100,41,105],[41,106,41,111],[40,208,40,213],[41,24,41,27],[41,28,41,33],[41,34,41,39],[41,40,41,45],[41,46,41,51],[41,52,41,57],[41,58,41,63],[41,64,41,69],[41,70,41,75],[40,172,40,177],[40,178,40,183],[40,184,40,189],[40,190,40,195],[40,196,40,201],[40,202,40,207],[40,136,40,141],[40,142,40,147],[40,148,40,153],[40,154,40,159],[40,160,40,165],[40,166,40,171],[40,100,40,105],[40,106,40,111],[40,112,40,117],[40,118,40,123],[41,184,41,189],[41,190,41,195],[41,196,41,201],[41,202,41,207],[41,208,41,213],[41,221,42,228],[42,202,42,207],[42,208,42,213],[42,214,42,220],[41,148,41,153],[41,154,41,159],[41,160,41,165],[41,166,41,171],[41,172,41,177],[41,178,41,183],[41,112,41,117],[41,118,41,123],[41,124,41,129],[41,130,41,135],[41,136,41,141],[41,142,41,147],[42,172,42,177],[42,178,42,183],[42,184,42,189],[42,190,42,195],[42,196,42,201],[42,130,42,135],[42,136,42,141],[42,142,42,147],[42,148,42,153],[42,154,42,159],[42,160,42,165],[42,94,42,99],[42,100,42,105],[42,106,42,111],[42,112,42,117],[42,118,42,123],[42,124,42,129],[43,106,43,111],[43,112,43,117],[43,118,43,123],[43,124,43,129],[43,58,43,63],[43,64,43,69],[43,70,43,75],[43,76,43,81],[43,82,43,87],[43,88,43,93],[43,24,43,27],[43,28,43,33],[43,34,43,39],[43,40,43,45],[43,46,43,51],[43,52,43,57],[42,166,42,171],[42,58,42,63],[42,64,42,69],[42,70,42,75],[42,76,42,81],[42,82,42,87],[42,88,42,93],[42,24,42,27],[42,28,42,33],[42,34,42,39],[42,40,42,45],[42,46,42,51],[42,52,42,57],[44,118,44,123],[44,124,44,129],[44,58,44,63],[44,64,44,69],[44,70,44,75],[44,76,44,81],[44,82,44,87],[44,88,44,93],[43,202,43,207],[43,208,43,213],[43,214,43,220],[43,221,44,228],[44,24,44,27],[44,28,44,33],[44,34,44,39],[44,40,44,45],[44,46,44,51],[44,52,44,57],[43,166,43,171],[43,172,43,177],[43,178,43,183],[43,184,43,189],[43,190,43,195],[43,196,43,201],[43,130,43,135],[43,136,43,141],[43,142,43,147],[43,148,43,153],[43,154,43,159],[43,160,43,165],[43,94,43,99],[43,100,43,105],[45,52,45,57],[45,58,45,63],[45,64,45,69],[45,70,45,75],[45,76,45,81],[45,82,45,87],[44,202,44,207],[44,208,44,213],[44,214,44,220],[45,1,50,4],[45,5,50,22],[45,23,46,27],[45,28,45,33],[45,34,45,39],[45,40,45,45],[45,46,45,51],[44,166,44,171],[44,172,44,177],[44,178,44,183],[44,184,44,189],[44,190,44,195],[44,196,44,201],[44,130,44,135],[44,136,44,141],[44,142,44,147],[44,148,44,153],[44,154,44,159],[44,160,44,165],[44,94,44,99],[44,100,44,105],[44,106,44,111],[44,112,44,117],[46,70,46,75],[46,76,46,81],[46,82,46,87],[46,88,46,93],[45,196,45,201],[45,202,45,207],[45,208,45,213],[45,214,47,220],[45,232,47,232],[46,28,46,33],[46,34,46,39],[46,40,46,45],[46,46,46,51],[46,52,46,57],[45,160,45,165],[45,166,45,171],[45,172,45,177],[45,178,45,183],[45,184,45,189],[45,190,45,195],[45,124,45,129],[45,130,45,135],[45,136,45,141],[45,142,45,147],[45,148,45,153],[45,154,45,159],[45,88,45,93],[45,94,45,99],[45,100,45,105],[45,106,45,111],[45,112,45,117],[45,118,45,123],[47,94,47,99],[47,100,47,105],[46,202,46,207],[46,208,46,213],[47,24,47,27],[47,28,47,33],[47,34,47,39],[47,40,47,45],[47,46,47,51],[47,52,47,57],[47,58,47,63],[47,64,47,69],[46,166,46,171],[46,172,46,177],[46,178,46,183],[46,184,46,189],[46,190,46,195],[46,196,46,201],[46,130,46,135],[46,136,46,141],[46,142,46,147],[46,148,46,153],[46,154,46,159],[46,160,46,165],[46,94,46,99],[46,100,46,105],[46,106,46,111],[46,112,46,117],[46,118,46,123],[46,124,46,129],[46,58,46,63],[46,64,46,69],[47,221,48,228],[48,24,48,27],[48,28,48,33],[48,34,48,39],[48,40,48,45],[48,46,48,51],[48,52,48,57],[48,58,48,63],[48,64,48,69],[48,70,48,75],[47,178,47,183],[47,184,47,189],[47,190,47,195],[47,196,47,201],[47,202,47,207],[47,208,47,213],[47,142,47,147],[47,148,47,153],[47,154,47,159],[47,160,47,165],[47,166,47,171],[47,172,47,177],[47,106,47,111],[47,112,47,117],[47,118,47,123],[47,124,47,129],[47,130,47,135],[47,136,47,141],[47,70,47,75],[47,76,47,81],[47,82,47,87],[47,88,47,93]],"merged_total":2416,"flags":["merged_cut"]}
[null,null,null,null,null,null,null,null,null,null,null,null,null,null,null,null,null,null,null,null,null,null,null,null,null,null,null,null,null,null,null,null,null,null,null,null,null,null,null,null,null,null,null,null,null,null,null,null,null,null,null,null,null,null,null,null,null,null,null,null,null,null,null,null,null,null,null,null,null,null,null,null,null,null,null,null,null,null,null,null,null,null,null,null,null,null,null,null,null,null,null,null,null,null,null,null,null,null,null,null,null,null,null,null,null,null,null,null,null,null,null,null,null,null,null,null,null,null,null,null,null,null,null,null,null,null,null,null,null,null,null,null,null,null,null,null,null,null,null,null,null,null,null,null,null,null,null,null,null,null,null,null,null,null,null,null,null,null,null,null,null,null,null,null,null,null,null,null,null,null,null,null,null,null,null,null,null,null,null,null,null,null,null,null,null,null,null,null,null,null,null,null,null,null,null,null,null,null,null,null,null,null,null,null,null,null,null,null,null,null,null,null,null,null,null,null,null,null,null,null,null,null,null,null,null,null,null,null,null,null,null,null,null,null,null,null,null,null,null,null,null,"СЕГОДНЯ"]
[null,null,null,null,null,null,null,null,null,null,null,null,null,null,null,null,null,null,null,null,null,null,null,null,null,null,null,null,null,null,null,null,null,null,null,null,null,null,null,null,null,null,null,null,null,null,null,null,null,null,null,null,null,null,null,null,null,null,null,null,null,null,null,null,null,null,null,null,null,null,null,null,null,null,null,null,null,null,null,null,null,null,null,null,null,null,null,null,null,null,null,null,null,null,null,null,null,null,null,null,null,null,null,null,null,null,null,null,null,null,null,null,null,null,null,null,null,null,null,null,null,null,null,null,null,null,null,null,null,null,null,null,null,null,null,null,null,null,null,null,null,null,null,null,null,null,null,null,null,null,null,null,null,null,null,null,null,null,null,null,null,null,null,null,null,null,null,null,null,null,null,null,null,null,null,null,null,null,null,null,null,null,null,null,null,null,null,null,null,null,null,null,null,null,null,null,null,null,null,null,null,null,null,null,null,null,null,null,null,null,null,null,null,null,null,null,null,null,null,null,null,null,null,null,null,null,null,null,null,null,null,null,null,null,null,null,null,null,null,null,null,{"$f":"TODAY()","v":"2020-05-29"}]
[null,null,null,null,null,null,null,null,null,null,null,null,null,null,null,null,null,null,null,null,null,null,null,null,null,null,null,null,null,null,null,null,null,null,null,null,null,null,null,null,null,null,null,null,null,null,null,null,null,null,null,null,null,null,null,null,null,null,null,null,null,null,null,null,null,null,null,null,null,null,null,null,null,null,null,null,null,null,null,null,null,null,null,null,null,null,null,null,null,null,null,null,null,null,null,null,null,null,null,null,null,null,null,null,null,null,null,null,null,null,null,null,null,null,null,null,null,null,null,null,null,null,null,null,null,null,null,null,null,null,null,null,null,null,null,null,null,null,null,null,null,null,null,null,null,null,null,null,null,null,null,null,null,null,null,null,null,null,null,null,null,null,null,null,null,null,null,null,null,null,null,null,null,null,null,null,null,null,null,null,null,null,null,null,null,null,null,null,null,null,null,null,null,null,null,null,null,null,null,null,null,null,null,null,null,null,null,null,null,null,null,null,null,null,null,null,null,null,null,null,null,null,null,null,null,null,null,null,null,null,null,null,null,null,null,null,null,null,null,null,null,{"$f":"TEXT(HZ2,\"дддд\")","v":"суббота"}]
[null,null,null,null,null,null,null,null,null,null,null,null,null,null,null,null,null,null,null,null,null,null,null,null,null,null,null,null,null,null,null,null,null,null,null,null,null,null,null,null,null,null,null,null,null,null,null,null,null,null,null,null,null,null,null,null,null,null,null,null,null,null,null,null,null,null,null,null,null,null,null,null,null,null,null,null,null,null,null,null,null,null,null,null,null,null,null,null,null,null,null,null,null,null,null,null,null,null,null,null,null,null,null,null,null,null,null,null,null,null,null,null,null,null,null,null,null,null,null,null,null,null,null,null,null,null,null,null,null,null,null,null,null,null,null,null,null,null,null,null,null,null,null,null,null,null,null,null,null,null,null,null,null,null,null,null,null,null,null,null,null,null,null,null,null,null,null,null,null,null,null,null,null,null,null,null,null,null,null,null,null,null,null,null,null,null,null,null,null,null,null,null,null,null,null,null,null,null,null,null,null,null,null,null,null,null,null,null,null,null,null,null,null,null,null,null,null,null,null,null,null,null,null,null,null,null,null,null,null,null,null,null,null,null,null,null,null,null,null,null,null,{"$f":"WEEKNUM(IH2,2)&\"-ая неделя\"","v":"22-ая неделя"}]
[null,null,null,null,null,null,null,null,{"$f":"IF(OR(#REF!<D3,AND(#REF!<D2,#REF!=D3)),$CN$19,IF(OR(#REF!>D3,AND(#REF!>D2,#REF!=D3)),0,DAY(A2)))","v":{"$error":"#REF!"}},null,null,null,null,null,null,null,null,null,null,null,null,null,null,null,null,null,null,null,null,null,null,null,null,null,null,null,null,null,null,null,null,null,null,null,null,null,null,null,null,null,null,null,null,null,null,null,null,null,null,null,null,null,null,null,null,null,null,null,null,null,null,null,null,null,null,null,null,null,null,null,null,null,null,null,null,null,null,null,null,null,null,null,null,null,null,null,null,null,null,null,null,null,null,null,null,null,null,null,null,null,null,null,null,null,null,null,null,null,null,null,null,null,null,null,null,null,null,null,null,null,null,null,null,null,null,null,null,null,null,null,null,null,null,null,null,null,null,null,null,null,null,null,null,null,null,null,null,null,null,null,null,null,null,null,null,null,null,null,null,null,null,null,null,null,null,null,null,null,null,null,null,null,null,null,null,null,null,null,null,null,null,null,null,null,null,null,null,null,null,null,null,null,null,null,null,null,null,null,null,null,null,null,null,null,null,null,null,null,null,null,null,null,null,null,null,null,null,null,null,null,null,null,null,null,null,null,null,null,null,null,null,{"$f":"IF(OR(#REF!<IC3,AND(#REF!<IC2,#REF!=IC3)),$CN$19,IF(OR(#REF!>IC3,AND(#REF!>IC2,#REF!=IC3)),0,DAY(HZ2)))","v":{"$error":"#REF!"}}]
[null,null,null,null,null,null,null,null,null,null,null,null,null,null,null,null,null,null,null,null,null,null,null,null,null,null,null,null,null,null,null,null,null,null,null,null,null,null,null,null,null,null,null,null,null,null,null,null,null,null,null,null,null,null,null,null,null,null,null,null,null,null,null,null,null,null,null,null,null,null,null,null,null,null,null,null,null,null,null,null,null,null,null,null,null,null,null,null,null,null,null,null,null,null,null,null,null,null,null,null,null,null,null,null,null,null,null,null,null,null,null,null,null,null,null,null,null,null,null,null,null,null,null,null,null,null,null,null,null,null,null,null,null,null,null,null,null,null,null,null,null,null,null,null,null,null,null,null,null,null,null,null,null,null,null,null,null,null,null,null,null,null,null,null,null,null,null,null,null,null,null,null,null,null,null,null,null,null,null,null,null,null,null,null,null,null,null,null,null,null,null,null,null,null,null,null,null,null,null,null,null,null,null,null,null,null,null,null,null,null,null,null,null,null,null,null,null,null,null,null,null,null,null,null,null,null,null,null,null,null,null,null,null,null,null,null,null,null,null,null,"время"]
[null,null,null,null,null,null,null,null,null,null,null,null,null,null,null,null,null,null,null,null,null,null,null,null,null,null,null,null,null,null,null,null,null,null,null,null,null,null,null,null,null,null,null,null,null,null,null,null,null,null,null,null,null,null,null,null,null,null,null,null,null,null,null,null,null,null,null,null,null,null,null,null,null,null,null,null,null,null,null,null,null,null,null,null,null,null,null,null,null,null,null,null,null,null,null,null,null,null,null,null,null,null,null,null,null,null,null,null,null,null,null,null,null,null,null,null,null,null,null,null,null,null,null,null,null,null,null,null,null,null,null,null,null,null,null,null,null,null,null,null,null,null,null,null,null,null,null,null,null,null,null,null,null,null,null,null,null,null,null,null,null,null,null,null,null,null,null,null,null,null,null,null,null,null,null,null,null,null,null,null,null,null,null,null,null,null,null,null,null,null,null,null,null,null,null,null,null,null,null,null,null,null,null,null,null,null,null,null,1,null,null,null,null,null,null,null,null,null,null,null,null,null,null,null,null,null,null,null,null,null,null,null,null,null,null,"количество дней месяца",null,null,{"$f":"VLOOKUP(HY17,'[4]производственный календарь '!B2:F13,5,0)","v":30}]
[null,null,null,null,null,null,null,null,null,null,null,null,null,null,null,null,null,null,null,null,null,null,null,null,null,null,null,null,null,null,null,null,null,null,null,null,null,null,null,null,null,null,null,null,null,null,null,null,null,null,null,null,null,null,null,null,null,null,null,null,null,null,null,null,null,null,null,null,null,null,null,null,null,null,null,null,null,null,null,null,null,null,null,null,null,null,null,null,null,null,null,null,null,null,null,null,null,null,null,null,null,null,null,null,null,null,null,null,null,null,null,null,null,null,null,null,null,null,null,null,null,null,null,null,null,null,null,null,null,null,null,null,null,null,null,null,null,null,null,null,null,null,null,null,null,null,null,null,null,null,null,null,null,null,null,null,null,null,null,null,null,null,null,null,null,null,null,null,null,null,null,null,null,null,null,null,null,null,null,null,null,null,null,null,null,null,null,null,null,null,null,null,null,null,null,null,null,null,null,null,null,null,null,null,null,null,null,null,2,null,null,null,null,null,null,null,null,null,null,null,null,null,null,null,null,null,null,null,null,null,null,null,null,null,null,"месяц",null,null,{"$f":"VLOOKUP(HY17,'[4]производственный календарь '!B2:F13,4,0)","v":11},null,"Столбец1"]
[null,null,null,null,null,null,null,null,null,null,null,null,null,null,null,null,null,null,null,null,null,null,null,null,null,null,null,null,null,null,null,null,null,null,null,null,null,null,null,null,null,null,null,null,null,null,null,null,null,null,null,null,null,null,null,null,null,null,null,null,null,null,null,null,null,null,null,null,null,null,null,null,null,null,null,null,null,null,null,null,null,null,null,null,null,null,null,null,null,null,null,null,null,null,null,null,null,null,null,null,null,null,null,null,null,null,null,null,null,null,null,null,null,null,null,null,null,null,null,null,null,null,null,null,null,null,null,null,null,null,null,null,null,null,null,null,null,null,null,null,null,null,null,null,null,null,null,null,null,null,null,null,null,null,null,null,null,null,null,null,null,null,null,null,null,null,null,null,null,null,null,null,null,null,null,null,null,null,null,null,null,null,null,null,null,null,null,null,null,null,null,null,null,null,null,null,null,null,null,null,null,null,null,null,null,null,null,null,null,null,null,null,null,null,null,null,null,null,null,null,null,null,null,null,null,null,null,null,null,null,null,null,null,null,null,"год",null,null,{"$f":"YEAR(A17)","v":2020},null,0]
[null,null,null,null,null,null,null,null,null,null,null,null,null,null,null,null,null,null,null,null,null,null,null,null,null,null,null,null,null,null,null,null,null,null,null,null,null,null,null,null,null,null,null,null,null,null,null,null,null,null,null,null,null,null,null,null,null,null,null,null,null,null,null,null,null,null,null,null,null,null,null,null,null,null,null,null,null,null,null,null,null,null,null,null,null,null,null,null,null,null,null,null,null,null,null,null,null,null,null,null,null,null,null,null,null,null,null,null,null,null,null,null,null,null,null,null,null,null,null,null,null,null,null,null,null,null,null,null,null,null,null,null,null,null,null,null,null,null,null,null,null,null,null,null,null,null,null,null,null,null,null,null,null,null,null,null,null,null,null,null,null,null,null,null,null,null,null,null,null,null,null,null,null,null,null,null,null,null,null,null,null,null,null,null,null,null,null,null,null,null,"УТВЕРЖДАЮ",null,null,null,null,null,null,null,null,null,null,null,null,null,null,null,null,null,null,null,null,null,null,null,null,null,null,null,null,null,null,null,null,null,null,null,null,null,null,null,null,null,null,null,null,null,null,null,null,null,0.25]
[null,null,null,null,null,null,null,null,null,null,null,null,null,null,null,null,null,null,null,null,null,null,null,null,null,null,null,null,null,null,null,null,null,null,null,null,null,null,null,null,null,null,null,null,null,null,null,null,null,null,null,null,null,null,null,null,null,null,null,null,null,null,null,null,null,null,null,null,null,null,null,null,null,null,null,null,null,null,null,null,null,null,null,null,null,null,null,null,null,null,null,null,null,null,null,null,null,null,null,null,null,null,null,null,null,null,null,null,null,null,null,null,null,null,null,null,null,null,null,null,null,null,null,null,null,null,null,null,null,null,null,null,null,null,null,null,null,null,null,null,null,null,null,null,null,null,null,null,null,null,null,null,null,null,null,null,null,null,null,null,null,null,null,null,null,null,null,null,null,null,null,null,null,null,null,null,null,null,null,null,null,null,null,null,null,null,null,null,null,null," ",null,null,null,null,null,null,null,null,null,null,null,null,null,null,null,null,null,null,null,null,null,null,null,null,null,null,null,null,null,null,null,null,null,null,null,null,null,null,null,null,null,null,null,null,"0бед",null,null,4.1666666666666664E-2,null,0.29166666666666669]
[null,null,null,null,null,null,null,null,null,null,null,null,null,null,null,null,null,null,null,null,null,null,null,null,null,null,null,null,null,null,null,null,null,null,null,null,null,null,null,null,null,null,null,null,null,null,null,null,null,null,null,null,null,null,null,null,null,null,null,null,null,null,null,null,null,null,null,null,null,null,null,null,null,null,null,null,null,null,null,null,null,null,null,null,null,null,null,null,null,null,null,null,null,null,null,null,null,null,null,null,null,null,null,null,null,null,null,null,null,null,null,null,null,null,null,null,null,null,null,null,null,null,null,null,null,null,null,null,null,null,null,null,null,null,null,null,null,null,null,null,null,null,null,null,null,null,null,null,null,null,null,null,null,null,null,null,null,null,null,null,null,null,null,null,null,null,null,null,null,null,null,null,null,null,null,null,null,null,null,null,null,null,null,null,null,null,null,null,null,null,"_______________Л.А.Синченко",null,null,null,null,null,null,null,null,null,null,null,null,null,null,null,null,null,null,null,null,null,null,null,null,null,null,null,null,null,null,null,null,null,null,null,null,null,null,null,null,null,null,null,null,null,null,null,null,null,0.3125]
[null,null,null,null,null,null,null,null,null,null,null,null,null,null,null,null,null,null,null,null,null,null,null,null,null,null,null,null,null,null,null,null,null,null,null,null,null,null,null,null,null,null,null,null,null,null,null,null,null,null,null,null,null,null,null,null,null,null,null,null,null,null,null,null,null,null,null,null,null,null,null,null,null,null,null,null,null,null,null,null,null,null,null,null,null,null,null,null,null,null,null,null,null,null,null,null,null,null,null,null,null,null,null,null,null,null,null,null,null,null,null,null,null,null,null,null,null,null,null,null,null,null,null,null,null,null,null,null,null,null,null,null,null,null,null,null,null,null,null,null,null,null,null,null,null,null,null,null,null,null,null,null,null,null,null,null,null,null,null,null,null,null,null,null,null,null,null,null,null,null,null,null,null,null,null,null,null,null,null,null,null,null,null,null,null,null,null,null,null,"\"__\"________2020",null,null,null,null,null,null,null,null,null,null,null,null,null,null,null,null,null,null,null,null,null,null,null,null,null,null,null,null,null,null,null,null,null,null,null,null,null,null,null,null,null,null,null,null,null,null,null,null,null,null,0.33333333333333331]
[null,null,null,null,null,null,null,null,null,null,null,null,null,null,null,null,null,null,null,null,null,null,null,null,null,null,null,null,null,null,null,null,null,null,null,null,null,null,null,null,null,null,null,null,null,null,null,null,null,null,null,null,null,null,null,null,null,null,null,null,null,null,null,null,null,null,null,null,null,null,null,null,null,null,null,null,null,null,null,null,null,null,null,null,null,null,null,null,null,null,null,null,null,null,null,null,null,null,null,null,null,null,null,null,null,null,null,null,null,null,null,null,null,null,null,null,null,null,null,null,null,null,null,null,null,null,null,null,null,null,null,null,null,null,null,null,null,null,null,null,null,null,null,null,null,null,null,null,null,null,null,null,null,null,null,null,null,null,null,null,null,null,null,null,null,null,null,null,null,null,null,null,null,null,null,null,null,null,null,null,null,null,null,null,null,null,null,null,null,null,null,null,null,null,null,null,null,null,null,null,null,null,null,null,null,null,null,null,null,null,null,null,null,null,null,null,null,null,null,null,null,null,null,null,null,null,null,null,null,null,null,null,null,null,null,null,null,null,null,null,0.375,null,null,"Столбец1","Столбец2","Столбец3","Столбец4","Столбец5",null,1]
["ГРАФИК",null,null,null,null,null,null,null,null,null,null,null,null,null,null,null,null,null,null,null,null,null,null,null,null,null,null,null,null,null,null,null,null,null,null,null,null,null,null,null,null,null,null,null,null,null,null,null,null,null,null,null,null,null,null,null,null,null,null,null,null,null,null,null,null,null,null,null,null,null,null,null,null,null,null,null,null,null,null,null,null,null,null,null,null,null,null,null,null,null,null,null,null,null,null,null,null,null,null,null,null,null,null,null,null,null,null,null,null,null,null,null,null,null,null,null,null,null,null,null,null,null,null,null,null,null,null,null,null,null,null,null,null,null,null,null,null,null,null,null,null,null,null,null,null,null,null,null,null,null,null,null,null,null,null,null,null,null,null,null,null,null,null,null,null,null,null,null,null,null,null,null,null,null,null,null,null,null,null,null,null,null,null,null,null,null,null,null,null,null,null,null,null,null,null,null,null,null,null,null,null,null,null,null,null,null,null,null,null,null,null,null,null,null,null,null,null,null,null,null,null,null,null,null,null,null,null,null,null,null,null,null,null,null,null,null,null,null,null,null,0.41666666666666669,null,null,"Сапожников А.С.,  управляющий участка",null,null,null,null,null,0.5]
["УЧЕТА ИСПОЛЬЗОВАНИЯ РАБОЧЕГО ВРЕМЕНИ ОБСЛУЖИВАЮЩЕГО ПЕРСОНАЛА",null,null,null,null,null,null,null,null,null,null,null,null,null,null,null,null,null,null,null,null,null,null,null,null,null,null,null,null,null,null,null,null,null,null,null,null,null,null,null,null,null,null,null,null,null,null,null,null,null,null,null,null,null,null,null,null,null,null,null,null,null,null,null,null,null,null,null,null,null,null,null,null,null,null,null,null,null,null,null,null,null,null,null,null,null,null,null,null,null,null,null,null,null,null,null,null,null,null,null,null,null,null,null,null,null,null,null,null,null,null,null,null,null,null,null,null,null,null,null,null,null,null,null,null,null,null,null,null,null,null,null,null,null,null,null,null,null,null,null,null,null,null,null,null,null,null,null,null,null,null,null,null,null,null,null,null,null,null,null,null,null,null,null,null,null,null,null,null,null,null,null,null,null,null,null,null,null,null,null,null,null,null,null,null,null,null,null,null,null,null,null,null,null,null,null,null,null,null,null,null,null,null,null,null,null,null,null,null,null,null,null,null,null,null,null,null,null,null,null,null,null,null,null,null,null,null,null,null,null,null,null,null,null,null,null,null,null,null,null,0.45833333333333331,null,null,"Сперанский А.А., слесарь-ремонтник",null,null,null,null,null,0.25]
["2020-11-01",null,null,null,null,null,null,null,null,null,null,null,null,null,null,null,null,null,null,null,null,null,null,null,null,null,null,null,null,null,null,null,null,null,null,null,null,null,null,null,null,null,null,null,null,null,null,null,null,null,null,null,null,null,null,null,null,null,null,null,null,null,null,null,null,null,null,null,null,null,null,null,null,null,null,null,null,null,null,null,null,null,null,null,null,null,null,null,null,null,null,null,null,null,null,null,null,null,null,null,null,null,null,null,null,null,null,null,null,null,null,null,null,null,null,null,null,null,null,null,null,null,null,null,null,null,null,null,null,null,null,null,null,null,null,null,null,null,null,null,null,null,null,null,null,null,null,null,null,null,null,null,null,null,null,null,null,null,null,null,null,null,null,null,null,null,null,null,null,null,null,null,null,null,null,null,null,null,null,null,null,null,null,null,null,null,null,null,null,null,null,null,null,null,null,null,null,null,null,null,null,null,null,null,null,null,null,null,null,null,null,null,null,null,null,null,null,null,null,null,null,null,null,null,null,null,null,null,null,null,null,null,"ноябрь",null,null,null,null,null,null,null,0.5,null,null,"Лагутенко В.А., кассир билетный Ч"]
[null,null,null,null,null,null,null,null,null,null,null,null,null,null,null,null,null,null,null,null,null,null,null,null,null,null,null,null,null,null,null,null,null,null,null,null,null,null,null,null,null,null,null,null,null,null,null,null,null,null,null,null,null,null,null,null,null,null,null,null,null,null,null,null,null,null,null,null,null,null,null,null,null,null,null,null,null,null,null,null,null,null,null,null,null,null,null,null,null,null,null,null,null,null,null,null,null,null,null,null,null,null,null,null,null,null,null,null,null,null,null,null,null,null,null,null,null,null,null,null,null,null,null,null,null,null,null,null,null,null,null,null,null,null,null,null,null,null,null,null,null,null,null,null,null,null,null,null,null,null,null,null,null,null,null,null,null,null,null,null,null,null,null,null,null,null,null,null,null,null,null,null,null,null,null,null,null,null,null,null,null,null,null,null,null,null,null,null,null,null,null,null,null,null,null,null,null,null,null,null,null,null,null,null,null,null,null,null,null,null,null,null,null,null,null,null,null,null,null,null,null,null,null,null,null,null,null,null,null,null,null,null,null,null,null,null,null,null,null,null,0.54166666666666663,null,null,"Купцова Г.И., кассир билетный НЧ"]
["№ п/п",null,null,null,null,"Фамилия Инициалы",null,null,null,null,null,null,null,null,null,null,null,null,null,null,null,null,null,"Ставка",null,null,null,null,"1900-01-01",null,null,null,null,null,2,null,null,null,null,null,"1900-01-03",null,null,null,null,null,4,null,null,null,null,null,5,null,null,null,null,null,6,null,null,null,null,null,7,null,null,null,null,null,8,null,null,null,null,null,9,null,null,null,null,null,10,null,null,null,null,null,11,null,null,null,null,null,12,null,null,null,null,null,13,null,null,null,null,null,14,null,null,null,null,null,15,null,null,null,null,null,16,null,null,null,null,null,17,null,null,null,null,null,18,null,null,null,null,null,19,null,null,null,null,null,20,null,null,null,null,null,21,null,null,null,null,null,22,null,null,null,null,null,23,null,null,null,null,null,24,null,null,null,null,null,25,null,null,null,null,null,26,null,null,null,null,null,27,null,null,null,null,null,28,null,null,null,null,null,{"$f":"IF(29<=$IE$7,29,\"-\")","v":29},null,null,null,null,null,{"$f":"IF(30<=$IE$7,30,\"-\")","v":30},null,null,null,null,null,{"$f":"IF(31<=$IE$7,31,\"-\")","v":"-"},null,null,null,null,null,"ВСЕГО",null,null,null,null,null,null,null,null,null,null,null,null,null,null,null,null,null,null,null,null,null,null,null,null,null,0.58333333333333337,null,null,"Кипкаева Л.А., дворник"]
[null,null,null,null,null,null,null,null,null,null,null,null,null,null,null,null,null,null,null,null,null,null,null,null,null,null,null,null,null,null,null,null,null,null,null,null,null,null,null,null,null,null,null,null,null,null,null,null,null,null,null,null,null,null,null,null,null,null,null,null,null,null,null,null,null,null,null,null,null,null,null,null,null,null,null,null,null,null,null,null,null,null,null,null,null,null,null,null,null,null,null,null,null,null,null,null,null,null,null,null,null,null,null,null,null,null,null,null,null,null,null,null,null,null,null,null,null,null,null,null,null,null,null,null,null,null,null,null,null,null,null,null,null,null,null,null,null,null,null,null,null,null,null,null,null,null,null,null,null,null,null,null,null,null,null,null,null,null,null,null,null,null,null,null,null,null,null,null,null,null,null,null,null,null,null,null,null,null,null,null,null,null,null,null,null,null,null,null,null,null,null,null,null,null,null,null,null,null,null,null,null,null,null,null,null,null,null,null,null,null,null,null,null,null,"дней",null,null,null,null,null,null,null,null,null,null,null,null,null,null,null,null,null,"часов",null,null,null,null,null,null,null,0.625,null,null,"Сапожников А.С.,  управляющий участка"]
[null,null,null,null,null,null,null,null,null,null,null,null,null,null,null,null,null,null,null,null,null,null,null,null,null,null,null,null,{"$f":"IFERROR($A$17+AC19-1,\"-\")","v":"2020-11-01"},null,null,null,null,null,{"$f":"IFERROR($A$17+AI19-1,\"-\")","v":"2020-11-02"},null,null,null,null,null,{"$f":"IFERROR($A$17+AO19-1,\"-\")","v":"2020-11-03"},null,null,null,null,null,{"$f":"IFERROR($A$17+AU19-1,\"-\")","v":"2020-11-04"},null,null,null,null,null,{"$f":"IFERROR($A$17+BA19-1,\"-\")","v":"2020-11-05"},null,null,null,null,null,{"$f":"IFERROR($A$17+BG19-1,\"-\")","v":"2020-11-06"},null,null,null,null,null,{"$f":"IFERROR($A$17+BM19-1,\"-\")","v":"2020-11-07"},null,null,null,null,null,{"$f":"IFERROR($A$17+BS19-1,\"-\")","v":"2020-11-08"},null,null,null,null,null,{"$f":"IFERROR($A$17+BY19-1,\"-\")","v":"2020-11-09"},null,null,null,null,null,{"$f":"IFERROR($A$17+CE19-1,\"-\")","v":"2020-11-10"},null,null,null,null,null,{"$f":"IFERROR($A$17+CK19-1,\"-\")","v":"2020-11-11"},null,null,null,null,null,{"$f":"IFERROR($A$17+CQ19-1,\"-\")","v":"2020-11-12"},null,null,null,null,null,{"$f":"IFERROR($A$17+CW19-1,\"-\")","v":"2020-11-13"},null,null,null,null,null,{"$f":"IFERROR($A$17+DC19-1,\"-\")","v":"2020-11-14"},null,null,null,null,null,{"$f":"IFERROR($A$17+DI19-1,\"-\")","v":"2020-11-15"},null,null,null,null,null,{"$f":"IFERROR($A$17+DO19-1,\"-\")","v":"2020-11-16"},null,null,null,null,null,{"$f":"IFERROR($A$17+DU19-1,\"-\")","v":"2020-11-17"},null,null,null,null,null,{"$f":"IFERROR($A$17+EA19-1,\"-\")","v":"2020-11-18"},null,null,null,null,null,{"$f":"IFERROR($A$17+EG19-1,\"-\")","v":"2020-11-19"},null,null,null,null,null,{"$f":"IFERROR($A$17+EM19-1,\"-\")","v":"2020-11-20"},null,null,null,null,null,{"$f":"IFERROR($A$17+ES19-1,\"-\")","v":"2020-11-21"},null,null,null,null,null,{"$f":"IFERROR($A$17+EY19-1,\"-\")","v":"2020-11-22"},null,null,null,null,null,{"$f":"IFERROR($A$17+FE19-1,\"-\")","v":"2020-11-23"},null,null,null,null,null,{"$f":"IFERROR($A$17+FK19-1,\"-\")","v":"2020-11-24"},null,null,null,null,null,{"$f":"IFERROR($A$17+FQ19-1,\"-\")","v":"2020-11-25"},null,null,null,null,null,{"$f":"IFERROR($A$17+FW19-1,\"-\")","v":"2020-11-26"},null,null,null,null,null,{"$f":"IFERROR($A$17+GC19-1,\"-\")","v":"2020-11-27"},null,null,null,null,null,{"$f":"IFERROR($A$17+GI19-1,\"-\")","v":"2020-11-28"},null,null,null,null,null,{"$f":"IFERROR($A$17+GO19-1,\"-\")","v":"2020-11-29"},null,null,null,null,null,{"$f":"IFERROR($A$17+GU19-1,\"-\")","v":"2020-11-30"},null,null,null,null,null,{"$f":"IFERROR($A$17+HA19-1,\"-\")","v":"-"},null,null,null,null,null,null,null,null,null,null,null,null,null,null,null,null,null,null,null,null,null,null,null,null,null,null,null,null,null,null,null,0.66666666666666663,null,null,"Сперанский А.А., слесарь-ремонтник"]
[null,null,null,null,null,"Сапожников А.С.,  управляющий участка",null,null,null,null,null,null,null,null,null,null,null,null,null,null,null,null,null,1,null,null,null,null,null,null,null,null,null,null,null,null,null,null,null,null,null,null,null,null,null,null,null,null,null,null,null,null,null,null,null,null,null,null,null,null,null,null,null,null,null,null,null,null,null,null,null,null,null,null,null,null,null,null,null,null,null,null,null,null,null,null,null,null,null,null,null,null,null,null,null,null,null,null,null,null,null,null,null,null,null,null,null,null,null,null,null,null,null,null,null,null,null,null,null,null,null,null,null,null,null,null,null,null,null,null,null,null,null,null,null,null,null,null,null,null,null,null,null,null,null,null,null,null,null,null,null,null,null,null,null,null,null,null,null,null,null,null,null,null,null,null,null,null,null,null,null,null,null,null,null,null,null,null,null,null,null,null,null,null,null,null,null,null,null,null,null,null,null,null,null,null,null,null,null,null,null,null,null,null,null,null,null,null,null,null,null,null,null,null,{"$f":"COUNT(AC22:HF22)","v":0},null,null,null,null,null,null,null,null,null,null,null,null,null,null,null,null,null,{"$f":"SUM(IFERROR(AC23:HF23-AC22:HF22-AC24:HF24,0))","v":0},null,{"$f":"VLOOKUP($HY$17,'[4]производственный календарь '!$B2:$F13,2,0)","v":159},null,null,null,null,null,0.70833333333333337,null,null,"Лагутенко В.А., кассир билетный НЧ"]
[null,null,null,null,null,null,null,null,null,null,null,null,null,null,null,null,null,null,null,null,null,null,null,null,null,null,null,null,null,null,null,null,null,null,null,null,null,null,null,null,null,null,null,null,null,null,null,null,null,null,null,null,null,null,null,null,null,null,null,null,null,null,null,null,null,null,null,null,null,null,null,null,null,null,null,null,null,null,null,null,null,null,null,null,null,null,null,null,null,null,null,null,null,null,null,null,null,null,null,null,null,null,null,null,null,null,null,null,null,null,null,null,null,null,null,null,null,null,null,null,null,null,null,null,null,null,null,null,null,null,null,null,null,null,null,null,null,null,null,null,null,null,null,null,null,null,null,null,null,null,null,null,null,null,null,null,null,null,null,null,null,null,null,null,null,null,null,null,null,null,null,null,null,null,null,null,null,null,null,null,null,null,null,null,null,null,null,null,null,null,null,null,null,null,null,null,null,null,null,null,null,null,null,null,null,null,null,null,null,null,null,null,null,null,null,null,null,null,null,null,null,null,null,null,null,null,null,null,null,null,null,null,null,null,null,null,null,null,null,null,0.75,null,null,"Купцова Г.И., кассир билетный НЧ"]
[null,null,null,null,null,null,null,null,null,null,null,null,null,null,null,null,null,null,null,null,null,null,null,"обед","обед",null,null,null,null,null,null,null,null,null,null,null,null,null,null,null,null,null,null,null,null,null,null,null,null,null,null,null,null,null,null,null,null,null,null,null,null,null,null,null,null,null,null,null,null,null,null,null,null,null,null,null,null,null,null,null,null,null,null,null,null,null,null,null,null,null,null,null,null,null,null,null,null,null,null,null,null,null,null,null,null,null,null,null,null,null,null,null,null,null,null,null,null,null,null,null,null,null,null,null,null,null,null,null,null,null,null,null,null,null,null,null,null,null,null,null,null,null,null,null,null,null,null,null,null,null,null,null,null,null,null,null,null,null,null,null,null,null,null,null,null,null,null,null,null,null,null,null,null,null,null,null,null,null,null,null,null,null,null,null,null,null,null,null,null,null,null,null,null,null,null,null,null,null,null,null,null,null,null,null,null,null,null,null,null,null,null,null,null,null,null,null,null,null,null,null,null,null,null,null,null,null,null,null,null,null,null,null,null,null,null,null,null,null,null,null,0.79166666666666663,null,null,"Кипкаева Л.А., дворник"]
[null,null,null,null,null,null,null,null,null,null,null,null,null,null,null,null,null,null,null,null,null,null,null,null,"р.д.",null,null,null,{"$f":"IFERROR(AC23-AC22-AC24,0)","v":0},null,null,null,null,null,{"$f":"IFERROR(AI23-AI22-AI24,0)","v":"00:00:00"},null,null,null,null,null,{"$f":"IFERROR(AO23-AO22-AO24,0)","v":0},null,null,null,null,null,{"$f":"IFERROR(AU23-AU22-AU24,0)","v":0},null,null,null,null,null,{"$f":"IFERROR(BA23-BA22-BA24,0)","v":0},null,null,null,null,null,{"$f":"IFERROR(BG23-BG22-BG24,0)","v":"00:00:00"},null,null,null,null,null,{"$f":"IFERROR(BM23-BM22-BM24,0)","v":0},null,null,null,null,null,{"$f":"IFERROR(BS23-BS22-BS24,0)","v":0},null,null,null,null,null,{"$f":"IFERROR(BY23-BY22-BY24,0)","v":"00:00:00"},null,null,null,null,null,{"$f":"IFERROR(CE23-CE22-CE24,0)","v":0},null,null,null,null,null,{"$f":"IFERROR(CK23-CK22-CK24,0)","v":0},null,null,null,null,null,{"$f":"IFERROR(CQ23-CQ22-CQ24,0)","v":0},null,null,null,null,null,{"$f":"IFERROR(CW23-CW22-CW24,0)","v":"00:00:00"},null,null,null,null,null,{"$f":"IFERROR(DC23-DC22-DC24,0)","v":0},null,null,null,null,null,{"$f":"IFERROR(DI23-DI22-DI24,0)","v":0},null,null,null,null,null,{"$f":"IFERROR(DO23-DO22-DO24,0)","v":"00:00:00"},null,null,null,null,null,{"$f":"IFERROR(DU23-DU22-DU24,0)","v":0},null,null,null,null,null,{"$f":"IFERROR(EA23-EA22-EA24,0)","v":0},null,null,null,null,null,{"$f":"IFERROR(EG23-EG22-EG24,0)","v":0},null,null,null,null,null,{"$f":"IFERROR(EM23-EM22-EM24,0)","v":"00:00:00"},null,null,null,null,null,{"$f":"IFERROR(ES23-ES22-ES24,0)","v":0},null,null,null,null,null,{"$f":"IFERROR(EY23-EY22-EY24,0)","v":0},null,null,null,null,null,{"$f":"IFERROR(FE23-FE22-FE24,0)","v":"00:00:00"},null,null,null,null,null,{"$f":"IFERROR(FK23-FK22-FK24,0)","v":0},null,null,null,null,null,{"$f":"IFERROR(FQ23-FQ22-FQ24,0)","v":0},null,null,null,null,null,{"$f":"IFERROR(FW23-FW22-FW24,0)","v":0},null,null,null,null,null,{"$f":"IFERROR(GC23-GC22-GC24,0)","v":"00:00:00"},null,null,null,null,null,{"$f":"IFERROR(GI23-GI22-GI24,0)","v":0},null,null,null,null,null,{"$f":"IFERROR(GO23-GO22-GO24,0)","v":0},null,null,null,null,null,{"$f":"IFERROR(GU23-GU22-GU24,0)","v":"00:00:00"},null,null,null,null,null,{"$f":"IFERROR(HA23-HA22-HA24,0)","v":0},null,null,null,null,null,null,null,null,null,null,null,null,null,null,null,null,null,null,null,null,null,null,null,{"$f":"SUM(AC25:HF25)","v":0},null,null,null,null,null,null,null,0.83333333333333337,null,null,"Морозова Г.Н., контролёр-посадчик аттракциона НЧ"]
[null,null,null,null,null,null,null,null,null,null,null,null,null,null,null,null,null,null,null,null,null,null,null,"пр","пр",null,null,null,null,null,null,null,null,null,null,null,null,null,null,null,null,null,null,null,null,null,null,null,null,null,null,null,null,null,null,null,null,null,null,null,null,null,null,null,null,null,null,null,null,null,null,null,null,null,null,null,null,null,null,null,null,null,null,null,null,null,null,null,null,null,null,null,null,null,null,null,null,null,null,null,null,null,null,null,null,null,null,null,null,null,null,null,null,null,null,null,null,null,null,null,null,null,null,null,null,null,null,null,null,null,null,null,null,null,null,null,null,null,null,null,null,null,null,null,null,null,null,null,null,null,null,null,null,null,null,null,null,null,null,null,null,null,null,null,null,null,null,null,null,null,null,null,null,null,null,null,null,null,null,null,null,null,null,null,null,null,null,null,null,null,null,null,null,null,null,null,null,null,null,null,null,null,null,null,null,null,null,null,null,null,null,null,null,null,{"$f":"SUM(AC26:HF26)","v":"00:00:00"},null,null,null,null,null,null,null,null,null,null,null,null,null,null,null,null,null,null,null,null,null,null,null,null,null,0.875,null,null,"Нурлиева Е.А., котролёр-посадчик аттракциона Ч"]
[1,null,null,null,null,null,null,null,null,null,null,null,null,null,null,null,null,null,null,null,null,null,null,null,"от",null,null,null,null,null,null,null,null,null,null,null,null,null,null,null,null,null,null,null,null,null,null,null,null,null,null,null,null,null,null,null,null,null,null,null,null,null,null,null,null,null,null,null,null,null,null,null,null,null,null,null,null,null,null,null,null,null,null,null,null,null,null,null,null,null,null,null,null,null,null,null,null,null,null,null,null,null,null,null,null,null,null,null,null,null,null,null,null,null,null,null,null,null,null,null,null,null,null,null,null,null,null,null,null,null,null,null,null,null,null,null,null,null,null,null,null,null,null,null,null,null,null,null,null,null,null,null,null,null,null,null,null,null,null,null,null,null,null,null,null,null,null,null,null,null,null,null,null,null,null,null,null,null,null,null,null,null,null,null,null,null,null,null,null,null,null,null,null,null,null,null,null,null,null,null,null,null,null,null,null,null,null,null,null,null,null,null,null,null,{"$f":"COUNTIF(AC28:HF28,\"=От\")","v":0},null,null,null,null,null,null,null,null,null,null,null,null,null,null,null,null,null,null,null,{"$f":"VLOOKUP($HY$17,'[4]производственный календарь '!$B2:$F$13,2,0)","v":159},null,null,null,null,null,0.91666666666666663,null,null,"Нурлиева Е.А., котролёр-посадчик аттракциона НЧ"]
[null,null,null,null,null,"Сперанский А.А., слесарь-ремонтник",null,null,null,null,null,null,null,null,null,null,null,null,null,null,null,null,null,1,null,null,null,null,null,null,null,null,null,null,null,null,null,null,null,null,null,null,null,null,null,null,null,null,null,null,null,null,null,null,null,null,null,null,null,null,null,null,null,null,null,null,null,null,null,null,null,null,null,null,null,null,null,null,null,null,null,null,null,null,null,null,null,null,null,null,null,null,null,null,null,null,null,null,null,null,null,null,null,null,null,null,null,null,null,null,null,null,null,null,null,null,null,null,null,null,null,null,null,null,null,null,null,null,null,null,null,null,null,null,null,null,null,null,null,null,null,null,null,null,null,null,null,null,null,null,null,null,null,null,null,null,null,null,null,null,null,null,null,null,null,null,null,null,null,null,null,null,null,null,null,null,null,null,null,null,null,null,null,null,null,null,null,null,null,null,null,null,null,null,null,null,null,null,null,null,null,null,null,null,null,null,null,null,null,null,null,null,null,null,{"$f":"COUNT(AC28:HF28)","v":0},null,null,null,null,null,null,null,null,null,null,null,null,null,null,null,null,null,{"$f":"SUM(IFERROR(AC29:HF29-AC28:HF28-AC30:HF30,0))","v":0},null,null,null,null,null,null,null,0.95833333333333337,null,null,"Хомченко Л.Е., контролёр-посадчик аттракциона НЧ"]
[null,null,null,null,null,null,null,null,null,null,null,null,null,null,null,null,null,null,null,null,null,null,null,null,null,null,null,null,null,null,null,null,null,null,null,null,null,null,null,null,null,null,null,null,null,null,null,null,null,null,null,null,null,null,null,null,null,null,null,null,null,null,null,null,null,null,null,null,null,null,null,null,null,null,null,null,null,null,null,null,null,null,null,null,null,null,null,null,null,null,null,null,null,null,null,null,null,null,null,null,null,null,null,null,null,null,null,null,null,null,null,null,null,null,null,null,null,null,null,null,null,null,null,null,null,null,null,null,null,null,null,null,null,null,null,null,null,null,null,null,null,null,null,null,null,null,null,null,null,null,null,null,null,null,null,null,null,null,null,null,null,null,null,null,null,null,null,null,null,null,null,null,null,null,null,null,null,null,null,null,null,null,null,null,null,null,null,null,null,null,null,null,null,null,null,null,null,null,null,null,null,null,null,null,null,null,null,null,null,null,null,null,null,null,null,null,null,null,null,null,null,null,null,null,null,null,null,null,null,null,null,null,null,null,null,null,null,null,null,null,1,null,null,"Кондратюк Н.В., сторож"]
[null,null,null,null,null,null,null,null,null,null,null,null,null,null,null,null,null,null,null,null,null,null,null,"обед","обед",null,null,null,null,null,null,null,null,null,null,null,null,null,null,null,null,null,null,null,null,null,null,null,null,null,null,null,null,null,null,null,null,null,null,null,null,null,null,null,null,null,null,null,null,null,null,null,null,null,null,null,null,null,null,null,null,null,null,null,null,null,null,null,null,null,null,null,null,null,null,null,null,null,null,null,null,null,null,null,null,null,null,null,null,null,null,null,null,null,null,null,null,null,null,null,null,null,null,null,null,null,null,null,null,null,null,null,null,null,null,null,null,null,null,null,null,null,null,null,null,null,null,null,null,null,null,null,null,null,null,null,null,null,null,null,null,null,null,null,null,null,null,null,null,null,null,null,null,null,null,null,null,null,null,null,null,null,null,null,null,null,null,null,null,null,null,null,null,null,null,null,null,null,null,null,null,null,null,null,null,null,null,null,null,null,null,null,null,null,null,null,null,null,null,null,null,null,null,null,null,null,null,null,null,null,null,null,null,null,null,null,null,null,null,null,null,null,null,"Лагутенко В.А., кассир билетный  НЧ"]
[null,null,null,null,null,null,null,null,null,null,null,null,null,null,null,null,null,null,null,null,null,null,null,null,"р.д.",null,null,null,{"$f":"IFERROR(AC29-AC28-AC30,0)","v":"00:00:00"},null,null,null,null,null,{"$f":"IFERROR(AI29-AI28-AI30,0)","v":"00:00:00"},null,null,null,null,null,{"$f":"IFERROR(AO29-AO28-AO30,0)","v":0},null,null,null,null,null,{"$f":"IFERROR(AU29-AU28-AU30,0)","v":0},null,null,null,null,null,{"$f":"IFERROR(BA29-BA28-BA30,0)","v":"00:00:00"},null,null,null,null,null,{"$f":"IFERROR(BG29-BG28-BG30,0)","v":"00:00:00"},null,null,null,null,null,{"$f":"IFERROR(BM29-BM28-BM30,0)","v":"00:00:00"},null,null,null,null,null,{"$f":"IFERROR(BS29-BS28-BS30,0)","v":"00:00:00"},null,null,null,null,null,{"$f":"IFERROR(BY29-BY28-BY30,0)","v":"00:00:00"},null,null,null,null,null,{"$f":"IFERROR(CE29-CE28-CE30,0)","v":0},null,null,null,null,null,{"$f":"IFERROR(CK29-CK28-CK30,0)","v":0},null,null,null,null,null,{"$f":"IFERROR(CQ29-CQ28-CQ30,0)","v":"00:00:00"},null,null,null,null,null,{"$f":"IFERROR(CW29-CW28-CW30,0)","v":"00:00:00"},null,null,null,null,null,{"$f":"IFERROR(DC29-DC28-DC30,0)","v":"00:00:00"},null,null,null,null,null,{"$f":"IFERROR(DI29-DI28-DI30,0)","v":"00:00:00"},null,null,null,null,null,{"$f":"IFERROR(DO29-DO28-DO30,0)","v":"00:00:00"},null,null,null,null,null,{"$f":"IFERROR(DU29-DU28-DU30,0)","v":0},null,null,null,null,null,{"$f":"IFERROR(EA29-EA28-EA30,0)","v":0},null,null,null,null,null,{"$f":"IFERROR(EG29-EG28-EG30,0)","v":"00:00:00"},null,null,null,null,null,{"$f":"IFERROR(EM29-EM28-EM30,0)","v":"00:00:00"},null,null,null,null,null,{"$f":"IFERROR(ES29-ES28-ES30,0)","v":0},null,null,null,null,null,{"$f":"IFERROR(EY29-EY28-EY30,0)","v":0},null,null,null,null,null,{"$f":"IFERROR(FE29-FE28-FE30,0)","v":"00:00:00"},null,null,null,null,null,{"$f":"IFERROR(FK29-FK28-FK30,0)","v":0},null,null,null,null,null,{"$f":"IFERROR(FQ29-FQ28-FQ30,0)","v":0},null,null,null,null,null,{"$f":"IFERROR(FW29-FW28-FW30,0)","v":"00:00:00"},null,null,null,null,null,{"$f":"IFERROR(GC29-GC28-GC30,0)","v":"00:00:00"},null,null,null,null,null,{"$f":"IFERROR(GI29-GI28-GI30,0)","v":"00:00:00"},null,null,null,null,null,{"$f":"IFERROR(GO29-GO28-GO30,0)","v":"00:00:00"},null,null,null,null,null,{"$f":"IFERROR(GU29-GU28-GU30,0)","v":"00:00:00"},null,null,null,null,null,{"$f":"IFERROR(HA29-HA28-HA30,0)","v":0},null,null,null,null,null,null,null,null,null,null,null,null,null,null,null,null,null,null,null,null,null,null,null,{"$f":"SUM(AC31:HF31)","v":0},null,{"$f":"VLOOKUP($HY$17,'[4]производственный календарь '!$B2:$F13,2,0)","v":159},null,null,null,null,null,null,null,null,"Купцова Г.И., кассир билетный Ч"]
[null,null,null,null,null,null,null,null,null,null,null,null,null,null,null,null,null,null,null,null,null,null,null,"пр","пр",null,null,null,null,null,null,null,null,null,null,null,null,null,null,null,null,null,null,null,null,null,null,null,null,null,null,null,null,null,null,null,null,null,null,null,null,null,null,null,null,null,null,null,null,null,null,null,null,null,null,null,null,null,null,null,null,null,null,null,null,null,null,null,null,null,null,null,null,null,null,null,null,null,null,null,null,null,null,null,null,null,null,null,null,null,null,null,null,null,null,null,null,null,null,null,null,null,null,null,null,null,null,null,null,null,null,null,null,null,null,null,null,null,null,null,null,null,null,null,null,null,null,null,null,null,null,null,null,null,null,null,null,null,null,null,null,null,null,null,null,null,null,null,null,null,null,null,null,null,null,null,null,null,null,null,null,null,null,null,null,null,null,null,null,null,null,null,null,null,null,null,null,null,null,null,null,null,null,null,null,null,null,null,null,null,null,null,null,null,{"$f":"SUM(AC32:HF32)","v":"00:00:00"},null,null,null,null,null,null,null,null,null,null,null,null,null,null,null,null,null,null,null,null,null,null,null,null,null,null,null,null,"Морозова Г.Н., контролёр-посадчик аттракциона Ч"]
[2,null,null,null,null,null,null,null,null,null,null,null,null,null,null,null,null,null,null,null,null,null,null,null,"от",null,null,null,null,null,null,null,null,null,null,null,null,null,null,null,null,null,null,null,null,null,null,null,null,null,null,null,null,null,null,null,null,null,null,null,null,null,null,null,null,null,null,null,null,null,null,null,null,null,null,null,null,null,null,null,null,null,null,null,null,null,null,null,null,null,null,null,null,null,null,null,null,null,null,null,null,null,null,null,null,null,null,null,null,null,null,null,null,null,null,null,null,null,null,null,null,null,null,null,null,null,null,null,null,null,null,null,null,null,null,null,null,null,null,null,null,null,null,null,null,null,null,null,null,null,null,null,null,null,null,null,null,null,null,null,null,null,null,null,null,null,null,null,null,null,null,null,null,null,null,null,null,null,null,null,null,null,null,null,null,null,null,null,null,null,null,null,null,null,null,null,null,null,null,null,null,null,null,null,null,null,null,null,null,null,null,null,null,null,{"$f":"COUNTIF(AC34:HF34,\"=От\")","v":0},null,null,null,null,null,null,null,null,null,null,null,null,null,null,null,null,null,null,null,null,null,null,null,null,null,null,null,null,"Хомченко Л.Е., контролёр-посадчик аттракциона Ч"]
[null,null,null,null,null,"Лагутенко В.А., кассир билетный Ч",null,null,null,null,null,null,null,null,null,null,null,null,null,null,null,null,null,1,null,null,null,null,null,null,null,null,null,null,null,null,null,null,null,null,null,null,null,null,null,null,null,null,null,null,null,null,null,null,null,null,null,null,null,null,null,null,null,null,null,null,null,null,null,null,null,null,null,null,null,null,null,null,null,null,null,null,null,null,null,null,null,null,null,null,null,null,null,null,null,null,null,null,null,null,null,null,null,null,null,null,null,null,null,null,null,null,null,null,null,null,null,null,null,null,null,null,null,null,null,null,null,null,null,null,null,null,null,null,null,null,null,null,null,null,null,null,null,null,null,null,null,null,null,null,null,null,null,null,null,null,null,null,null,null,null,null,null,null,null,null,null,null,null,null,null,null,null,null,null,null,null,null,null,null,null,null,null,null,null,null,null,null,null,null,null,null,null,null,null,null,null,null,null,null,null,null,null,null,null,null,null,null,null,null,null,null,null,null,{"$f":"COUNT(AC34:HF34)","v":0},null,null,null,null,null,null,null,null,null,null,null,null,null,null,null,null,null,{"$f":"SUM(IFERROR(AC35:HF35-AC34:HF34-AC36:HF36,0))","v":0},null,null,null,null,null,null,null,null,null,null,"Чижова В.В., контролёр-посадчик аттракциона"]
[null,null,null,null,null,null,null,null,null,null,null,null,null,null,null,null,null,null,null,null,null,null,null,null,null,null,null,null,null,null,null,null,null,null,null,null,null,null,null,null,null,null,null,null,null,null,null,null,null,null,null,null,null,null,null,null,null,null,null,null,null,null,null,null,null,null,null,null,null,null,null,null,null,null,null,null,null,null,null,null,null,null,null,null,null,null,null,null,null,null,null,null,null,null,null,null,null,null,null,null,null,null,null,null,null,null,null,null,null,null,null,null,null,null,null,null,null,null,null,null,null,null,null,null,null,null,null,null,null,null,null,null,null,null,null,null,null,null,null,null,null,null,null,null,null,null,null,null,null,null,null,null,null,null,null,null,null,null,null,null,null,null,null,null,null,null,null,null,null,null,null,null,null,null,null,null,null,null,null,null,null,null,null,null,null,null,null,null,null,null,null,null,null,null,null,null,null,null,null,null,null,null,null,null,null,null,null,null,null,null,null,null,null,null,null,null,null,null,null,null,null,null,null,null,null,null,null,null,null,null,null,null,null,null,null,null,null,null,null,null,null,null,null,"Середка С.Л., контролёр-посадчик аттракциона"]
[null,null,null,null,null,null,null,null,null,null,null,null,null,null,null,null,null,null,null,null,null,null,null,"обед","обед"]
[null,null,null,null,null,null,null,null,null,null,null,null,null,null,null,null,null,null,null,null,null,null,null,null,"р.д.",null,null,null,{"$f":"IFERROR(AC35-AC34-AC36,0)","v":"00:00:00"},null,null,null,null,null,{"$f":"IFERROR(AI35-AI34-AI36,0)","v":"00:00:00"},null,null,null,null,null,{"$f":"IFERROR(AO35-AO34-AO36,0)","v":0},null,null,null,null,null,{"$f":"IFERROR(AU35-AU34-AU36,0)","v":0},null,null,null,null,null,{"$f":"IFERROR(BA35-BA34-BA36,0)","v":0},null,null,null,null,null,{"$f":"IFERROR(BG35-BG34-BG36,0)","v":"00:00:00"},null,null,null,null,null,{"$f":"IFERROR(BM35-BM34-BM36,0)","v":"00:00:00"},null,null,null,null,null,{"$f":"IFERROR(BS35-BS34-BS36,0)","v":"00:00:00"},null,null,null,null,null,{"$f":"IFERROR(BY35-BY34-BY36,0)","v":"00:00:00"},null,null,null,null,null,{"$f":"IFERROR(CE35-CE34-CE36,0)","v":0},null,null,null,null,null,{"$f":"IFERROR(CK35-CK34-CK36,0)","v":0},null,null,null,null,null,{"$f":"IFERROR(CQ35-CQ34-CQ36,0)","v":0},null,null,null,null,null,{"$f":"IFERROR(CW35-CW34-CW36,0)","v":"00:00:00"},null,null,null,null,null,{"$f":"IFERROR(DC35-DC34-DC36,0)","v":"00:00:00"},null,null,null,null,null,{"$f":"IFERROR(DI35-DI34-DI36,0)","v":"00:00:00"},null,null,null,null,null,{"$f":"IFERROR(DO35-DO34-DO36,0)","v":"00:00:00"},null,null,null,null,null,{"$f":"IFERROR(DU35-DU34-DU36,0)","v":0},null,null,null,null,null,{"$f":"IFERROR(EA35-EA34-EA36,0)","v":0},null,null,null,null,null,{"$f":"IFERROR(EG35-EG34-EG36,0)","v":0},null,null,null,null,null,{"$f":"IFERROR(EM35-EM34-EM36,0)","v":"00:00:00"},null,null,null,null,null,{"$f":"IFERROR(ES35-ES34-ES36,0)","v":"00:00:00"},null,null,null,null,null,{"$f":"IFERROR(EY35-EY34-EY36,0)","v":"00:00:00"},null,null,null,null,null,{"$f":"IFERROR(FE35-FE34-FE36,0)","v":"00:00:00"},null,null,null,null,null,{"$f":"IFERROR(FK35-FK34-FK36,0)","v":0},null,null,null,null,null,{"$f":"IFERROR(FQ35-FQ34-FQ36,0)","v":0},null,null,null,null,null,{"$f":"IFERROR(FW35-FW34-FW36,0)","v":0},null,null,null,null,null,{"$f":"IFERROR(GC35-GC34-GC36,0)","v":"00:00:00"},null,null,null,null,null,{"$f":"IFERROR(GI35-GI34-GI36,0)","v":"00:00:00"},null,null,null,null,null,{"$f":"IFERROR(GO35-GO34-GO36,0)","v":"00:00:00"},null,null,null,null,null,{"$f":"IFERROR(GU35-GU34-GU36,0)","v":"00:00:00"},null,null,null,null,null,{"$f":"IFERROR(HA35-HA34-HA36,0)","v":0},null,null,null,null,null,null,null,null,null,null,null,null,null,null,null,null,null,null,null,null,null,null,null,{"$f":"SUM(AC37:HF37)","v":0},null,{"$f":"VLOOKUP($HY$17,'[4]производственный календарь '!$B$2:$F$13,2,0)","v":159}]
[null,null,null,null,null,null,null,null,null,null,null,null,null,null,null,null,null,null,null,null,null,null,null,"пр","пр",null,null,null,null,null,null,null,null,null,null,null,null,null,null,null,null,null,null,null,null,null,null,null,null,null,null,null,null,null,null,null,null,null,null,null,null,null,null,null,null,null,null,null,null,null,null,null,null,null,null,null,null,null,null,null,null,null,null,null,null,null,null,null,null,null,null,null,null,null,null,null,null,null,null,null,null,null,null,null,null,null,null,null,null,null,null,null,null,null,null,null,null,null,null,null,null,null,null,null,null,null,null,null,null,null,null,null,null,null,null,null,null,null,null,null,null,null,null,null,null,null,null,null,null,null,null,null,null,null,null,null,null,null,null,null,null,null,null,null,null,null,null,null,null,null,null,null,null,null,null,null,null,null,null,null,null,null,null,null,null,null,null,null,null,null,null,null,null,null,null,null,null,null,null,null,null,null,null,null,null,null,null,null,null,null,null,null,null,null,{"$f":"SUM(AC38:HF38)","v":"00:00:00"}]
[3,null,null,null,null,null,null,null,null,null,null,null,null,null,null,null,null,null,null,null,null,null,null,null,"от",null,null,null,null,null,null,null,null,null,null,null,null,null,null,null,null,null,null,null,null,null,null,null,null,null,null,null,null,null,null,null,null,null,null,null,null,null,null,null,null,null,null,null,null,null,null,null,null,null,null,null,null,null,null,null,null,null,null,null,null,null,null,null,null,null,null,null,null,null,null,null,null,null,null,null,null,null,null,null,null,null,null,null,null,null,null,null,null,null,null,null,null,null,null,null,null,null,null,null,null,null,null,null,null,null,null,null,null,null,null,null,null,null,null,null,null,null,null,null,null,null,null,null,null,null,null,null,null,null,null,null,null,null,null,null,null,null,null,null,null,null,null,null,null,null,null,null,null,null,null,null,null,null,null,null,null,null,null,null,null,null,null,null,null,null,null,null,null,null,null,null,null,null,null,null,null,null,null,null,null,null,null,null,null,null,null,null,null,null,{"$f":"COUNTIF(AC40:HF40,\"=От\")","v":0}]
[null,null,null,null,null,"Купцова Г.И., кассир билетный НЧ",null,null,null,null,null,null,null,null,null,null,null,null,null,null,null,null,null,1,null,null,null,null,null,null,null,null,null,null,null,null,null,null,null,null,null,null,null,null,null,null,null,null,null,null,null,null,null,null,null,null,null,null,null,null,null,null,null,null,null,null,null,null,null,null,null,null,null,null,null,null,null,null,null,null,null,null,null,null,null,null,null,null,null,null,null,null,null,null,null,null,null,null,null,null,null,null,null,null,null,null,null,null,null,null,null,null,null,null,null,null,null,null,null,null,null,null,null,null,null,null,null,null,null,null,null,null,null,null,null,null,null,null,null,null,null,null,null,null,null,null,null,null,null,null,null,null,null,null,null,null,null,null,null,null,null,null,null,null,null,null,null,null,null,null,null,null,null,null,null,null,null,null,null,null,null,null,null,null,null,null,null,null,null,null,null,null,null,null,null,null,null,null,null,null,null,null,null,null,null,null,null,null,null,null,null,null,null,null,{"$f":"COUNT(AC40:HF40)","v":0},null,null,null,null,null,null,null,null,null,null,null,null,null,null,null,null,null,{"$f":"SUM(IFERROR(AC41:HF41-AC40:HF40-AC42:HF42,0))","v":0}]
[]
[null,null,null,null,null,null,null,null,null,null,null,null,null,null,null,null,null,null,null,null,null,null,null,"обед","обед"]
[null,null,null,null,null,null,null,null,null,null,null,null,null,null,null,null,null,null,null,null,null,null,null,null,"р.д.",null,null,null,{"$f":"IFERROR(AC41-AC40-AC42,0)","v":0},null,null,null,null,null,{"$f":"IFERROR(AI41-AI40-AI42,0)","v":"00:00:00"},null,null,null,null,null,{"$f":"IFERROR(AO41-AO40-AO42,0)","v":0},null,null,null,null,null,{"$f":"IFERROR(AU41-AU40-AU42,0)","v":0},null,null,null,null,null,{"$f":"IFERROR(BA41-BA40-BA42,0)","v":0},null,null,null,null,null,{"$f":"IFERROR(BG41-BG40-BG42,0)","v":"00:00:00"},null,null,null,null,null,{"$f":"IFERROR(BM41-BM40-BM42,0)","v":0},null,null,null,null,null,{"$f":"IFERROR(BS41-BS40-BS42,0)","v":0},null,null,null,null,null,{"$f":"IFERROR(BY41-BY40-BY42,0)","v":"00:00:00"},null,null,null,null,null,{"$f":"IFERROR(CE41-CE40-CE42,0)","v":0},null,null,null,null,null,{"$f":"IFERROR(CK41-CK40-CK42,0)","v":0},null,null,null,null,null,{"$f":"IFERROR(CQ41-CQ40-CQ42,0)","v":0},null,null,null,null,null,{"$f":"IFERROR(CW41-CW40-CW42,0)","v":"00:00:00"},null,null,null,null,null,{"$f":"IFERROR(DC41-DC40-DC42,0)","v":0},null,null,null,null,null,{"$f":"IFERROR(DI41-DI40-DI42,0)","v":0},null,null,null,null,null,{"$f":"IFERROR(DO41-DO40-DO42,0)","v":"00:00:00"},null,null,null,null,null,{"$f":"IFERROR(DU41-DU40-DU42,0)","v":0},null,null,null,null,null,{"$f":"IFERROR(EA41-EA40-EA42,0)","v":0},null,null,null,null,null,{"$f":"IFERROR(EG41-EG40-EG42,0)","v":0},null,null,null,null,null,{"$f":"IFERROR(EM41-EM40-EM42,0)","v":"00:00:00"},null,null,null,null,null,{"$f":"IFERROR(ES41-ES40-ES42,0)","v":0},null,null,null,null,null,{"$f":"IFERROR(EY41-EY40-EY42,0)","v":0},null,null,null,null,null,{"$f":"IFERROR(FE41-FE40-FE42,0)","v":"00:00:00"},null,null,null,null,null,{"$f":"IFERROR(FK41-FK40-FK42,0)","v":0},null,null,null,null,null,{"$f":"IFERROR(FQ41-FQ40-FQ42,0)","v":0},null,null,null,null,null,{"$f":"IFERROR(FW41-FW40-FW42,0)","v":0},null,null,null,null,null,{"$f":"IFERROR(GC41-GC40-GC42,0)","v":"00:00:00"},null,null,null,null,null,{"$f":"IFERROR(GI41-GI40-GI42,0)","v":0},null,null,null,null,null,{"$f":"IFERROR(GO41-GO40-GO42,0)","v":0},null,null,null,null,null,{"$f":"IFERROR(GU41-GU40-GU42,0)","v":"00:00:00"},null,null,null,null,null,{"$f":"IFERROR(HA41-HA40-HA42,0)","v":0},null,null,null,null,null,null,null,null,null,null,null,null,null,null,null,null,null,null,null,null,null,null,null,{"$f":"SUM(AC43:GZ43)","v":0},null,{"$f":"VLOOKUP($HY$17,'[4]производственный календарь '!$B$2:$F$13,2,0)","v":159}]
[null,null,null,null,null,null,null,null,null,null,null,null,null,null,null,null,null,null,null,null,null,null,null,"пр","пр",null,null,null,null,null,null,null,null,null,null,null,null,null,null,null,null,null,null,null,null,null,null,null,null,null,null,null,null,null,null,null,null,null,null,null,null,null,null,null,null,null,null,null,null,null,null,null,null,null,null,null,null,null,null,null,null,null,null,null,null,null,null,null,null,null,null,null,null,null,null,null,null,null,null,null,null,null,null,null,null,null,null,null,null,null,null,null,null,null,null,null,null,null,null,null,null,null,null,null,null,null,null,null,null,null,null,null,null,null,null,null,null,null,null,null,null,null,null,null,null,null,null,null,null,null,null,null,null,null,null,null,null,null,null,null,null,null,null,null,null,null,null,null,null,null,null,null,null,null,null,null,null,null,null,null,null,null,null,null,null,null,null,null,null,null,null,null,null,null,null,null,null,null,null,null,null,null,null,null,null,null,null,null,null,null,null,null,null,null,{"$f":"SUM(AC44:HF44)","v":"00:00:00"},null,null,null,null,null,null,null,null,null,null,null,null,null,null,null,null,null,{"$f":"SUM(AG44:HQ45)","v":"00:00:00"}]
[4,null,null,null,null,null,null,null,null,null,null,null,null,null,null,null,null,null,null,null,null,null,null,null,"от",null,null,null,null,null,null,null,null,null,null,null,null,null,null,null,null,null,null,null,null,null,null,null,null,null,null,null,null,null,null,null,null,null,null,null,null,null,null,null,null,null,null,null,null,null,null,null,null,null,null,null,null,null,null,null,null,null,null,null,null,null,null,null,null,null,null,null,null,null,null,null,null,null,null,null,null,null,null,null,null,null,null,null,null,null,null,null,null,null,null,null,null,null,null,null,null,null,null,null,null,null,null,null,null,null,null,null,null,null,null,null,null,null,null,null,null,null,null,null,null,null,null,null,null,null,null,null,null,null,null,null,null,null,null,null,null,null,null,null,null,null,null,null,null,null,null,null,null,null,null,null,null,null,null,null,null,null,null,null,null,null,null,null,null,null,null,null,null,null,null,null,null,null,null,null,null,null,null,null,null,null,null,null,null,null,null,null,null,null,{"$f":"COUNTIF(AC46:HF46,\"=От\")","v":0}]
[null,null,null,null,null,"Кипкаева Л.А., дворник",null,null,null,null,null,null,null,null,null,null,null,null,null,null,null,null,null,1,null,null,null,null,null,null,null,null,null,null,null,null,null,null,null,null,null,null,null,null,null,null,null,null,null,null,null,null,null,null,null,null,null,null,null,null,null,null,null,null,null,null,null,null,null,null,null,null,null,null,null,null,null,null,null,null,null,null,null,null,null,null,null,null,null,null,null,null,null,null,null,null,null,null,null,null,null,null,null,null,null,null,null,null,null,null,null,null,null,null,null,null,null,null,null,null,null,null,null,null,null,null,null,null,null,null,null,null,null,null,null,null,null,null,null,null,null,null,null,null,null,null,null,null,null,null,null,null,null,null,null,null,null,null,null,null,null,null,null,null,null,null,null,null,null,null,null,null,null,null,null,null,null,null,null,null,null,null,null,null,null,null,null,null,null,null,null,null,null,null,null,null,null,null,null,null,null,null,null,null,null,null,null,null,null,null,null,null,null,null,{"$f":"COUNT(AC46:HF46)","v":0},null,null,null,null,null,null,null,null,null,null,null,null,null,null,null,null,null,{"$f":"SUM(IFERROR(AC47:HF47-AC46:HF46-AC48:HF48,0))","v":0}]
[]
[null,null,null,null,null,null,null,null,null,null,null,null,null,null,null,null,null,null,null,null,null,null,null,"обед","обед"]
[null,null,null,null,null,null,null,null,null,null,null,null,null,null,null,null,null,null,null,null,null,null,null,null,"р.д.",null,null,null,{"$f":"IFERROR(AC47-AC46-AC48,0)","v":0},null,null,null,null,null,{"$f":"IFERROR(AI47-AI46-AI48,0)","v":"00:00:00"},null,null,null,null,null,{"$f":"IFERROR(AO47-AO46-AO48,0)","v":0},null,null,null,null,null,{"$f":"IFERROR(AU47-AU46-AU48,0)","v":0},null,null,null,null,null,{"$f":"IFERROR(BA47-BA46-BA48,0)","v":0},null,null,null,null,null,{"$f":"IFERROR(BG47-BG46-BG48,0)","v":"00:00:00"},null,null,null,null,null,{"$f":"IFERROR(BM47-BM46-BM48,0)","v":0},null,null,null,null,null,{"$f":"IFERROR(BS47-BS46-BS48,0)","v":0},null,null,null,null,null,{"$f":"IFERROR(BY47-BY46-BY48,0)","v":"00:00:00"},null,null,null,null,null,{"$f":"IFERROR(CE47-CE46-CE48,0)","v":0},null,null,null,null,null,{"$f":"IFERROR(CK47-CK46-CK48,0)","v":0},null,null,null,null,null,{"$f":"IFERROR(CQ47-CQ46-CQ48,0)","v":0},null,null,null,null,null,{"$f":"IFERROR(CW47-CW46-CW48,0)","v":"00:00:00"},null,null,null,null,null,{"$f":"IFERROR(DC47-DC46-DC48,0)","v":0},null,null,null,null,null,{"$f":"IFERROR(DI47-DI46-DI48,0)","v":0},null,null,null,null,null,{"$f":"IFERROR(DO47-DO46-DO48,0)","v":"00:00:00"},null,null,null,null,null,{"$f":"IFERROR(DU47-DU46-DU48,0)","v":0},null,null,null,null,null,{"$f":"IFERROR(EA47-EA46-EA48,0)","v":0},null,null,null,null,null,{"$f":"IFERROR(EG47-EG46-EG48,0)","v":0},null,null,null,null,null,{"$f":"IFERROR(EM47-EM46-EM48,0)","v":"00:00:00"},null,null,null,null,null,{"$f":"IFERROR(ES47-ES46-ES48,0)","v":0},null,null,null,null,null,{"$f":"IFERROR(EY47-EY46-EY48,0)","v":0},null,null,null,null,null,{"$f":"IFERROR(FE47-FE46-FE48,0)","v":"00:00:00"},null,null,null,null,null,{"$f":"IFERROR(FK47-FK46-FK48,0)","v":0},null,null,null,null,null,{"$f":"IFERROR(FQ47-FQ46-FQ48,0)","v":0},null,null,null,null,null,{"$f":"IFERROR(FW47-FW46-FW48,0)","v":0},null,null,null,null,null,{"$f":"IFERROR(GC47-GC46-GC48,0)","v":"00:00:00"},null,null,null,null,null,{"$f":"IFERROR(GI47-GI46-GI48,0)","v":0},null,null,null,null,null,{"$f":"IFERROR(GO47-GO46-GO48,0)","v":0},null,null,null,null,null,{"$f":"IFERROR(GU47-GU46-GU48,0)","v":"00:00:00"},null,null,null,null,null,{"$f":"IFERROR(HA47-HA46-HA48,0)","v":0},null,null,null,null,null,null,null,null,null,null,null,null,null,null,null,null,null,null,null,null,null,null,null,{"$f":"SUM(AC49:GZ49)","v":0},null,{"$f":"VLOOKUP($HY$17,'[4]производственный календарь '!$B$2:$F$13,2,0)","v":159}]
[null,null,null,null,null,null,null,null,null,null,null,null,null,null,null,null,null,null,null,null,null,null,null,"пр","пр",null,null,null,null,null,null,null,null,null,null,null,null,null,null,null,null,null,null,null,null,null,null,null,null,null,null,null,null,null,null,null,null,null,null,null,null,null,null,null,null,null,null,null,null,null,null,null,null,null,null,null,null,null,null,null,null,null,null,null,null,null,null,null,null,null,null,null,null,null,null,null,null,null,null,null,null,null,null,null,null,null,null,null,null,null,null,null,null,null,null,null,null,null,null,null,null,null,null,null,null,null,null,null,null,null,null,null,null,null,null,null,null,null,null,null,null,null,null,null,null,null,null,null,null,null,null,null,null,null,null,null,null,null,null,null,null,null,null,null,null,null,null,null,null,null,null,null,null,null,null,null,null,null,null,null,null,null,null,null,null,null,null,null,null,null,null,null,null,null,null,null,null,null,null,null,null,null,null,null,null,null,null,null,null,null,null,null,null,null,{"$f":"SUM(AC50:HF50)","v":"00:00:00"}]
[5,null,null,null,null,null,null,null,null,null,null,null,null,null,null,null,null,null,null,null,null,null,null,null,"от",null,null,null,null,null,null,null,null,null,null,null,null,null,null,null,null,null,null,null,null,null,null,null,null,null,null,null,null,null,null,null,null,null,null,null,null,null,null,null,null,null,null,null,null,null,null,null,null,null,null,null,null,null,null,null,null,null,null,null,null,null,null,null,null,null,null,null,null,null,null,null,null,null,null,null,null,null,null,null,null,null,null,null,null,null,null,null,null,null,null,null,null,null,null,null,null,null,null,null,null,null,null,null,null,null,null,null,null,null,null,null,null,null,null,null,null,null,null,null,null,null,null,null,null,null,null,null,null,null,null,null,null,null,null,null,null,null,null,null,null,null,null,null,null,null,null,null,null,null,null,null,null,null,null,null,null,null,null,null,null,null,null,null,null,null,null,null,null,null,null,null,null,null,null,null,null,null,null,null,null,null,null,null,null,null,null,null,null,null,{"$f":"COUNTIF(AC52:HF52,\"=От\")","v":0}]
[null,null,null,null,null,"Морозова Г.Н., контролёр-посадчик аттракциона Ч",null,null,null,null,null,null,null,null,null,null,null,null,null,null,null,null,null,1,null,null,null,null,null,null,null,null,null,null,null,null,null,null,null,null,null,null,null,null,null,null,null,null,null,null,null,null,null,null,null,null,null,null,null,null,null,null,null,null,null,null,null,null,null,null,null,null,null,null,null,null,null,null,null,null,null,null,null,null,null,null,null,null,null,null,null,null,null,null,null,null,null,null,null,null,null,null,null,null,null,null,null,null,null,null,null,null,null,null,null,null,null,null,null,null,null,null,null,null,null,null,null,null,null,null,null,null,null,null,null,null,null,null,null,null,null,null,null,null,null,null,null,null,null,null,null,null,null,null,null,null,null,null,null,null,null,null,null,null,null,null,null,null,null,null,null,null,null,null,null,null,null,null,null,null,null,null,null,null,null,null,null,null,null,null,null,null,null,null,null,null,null,null,null,null,null,null,null,null,null,null,null,null,null,null,null,null,null,null,{"$f":"COUNT(AC52:HF52)","v":0},null,null,null,null,null,null,null,null,null,null,null,null,null,null,null,null,null,{"$f":"SUM(IFERROR(AC53:HF53-AC52:HF52-AC54:HF54,0))","v":0}]
[]
[null,null,null,null,null,null,null,null,null,null,null,null,null,null,null,null,null,null,null,null,null,null,null,"обед","обед"]
[null,null,null,null,null,null,null,null,null,null,null,null,null,null,null,null,null,null,null,null,null,null,null,null,"р.д.",null,null,null,{"$f":"IFERROR(AC53-AC52-AC54,0)","v":"00:00:00"},null,null,null,null,null,{"$f":"IFERROR(AI53-AI52-AI54,0)","v":"00:00:00"},null,null,null,null,null,{"$f":"IFERROR(AO53-AO52-AO54,0)","v":0},null,null,null,null,null,{"$f":"IFERROR(AU53-AU52-AU54,0)","v":0},null,null,null,null,null,{"$f":"IFERROR(BA53-BA52-BA54,0)","v":"00:00:00"},null,null,null,null,null,{"$f":"IFERROR(BG53-BG52-BG54,0)","v":"00:00:00"},null,null,null,null,null,{"$f":"IFERROR(BM53-BM52-BM54,0)","v":"00:00:00"},null,null,null,null,null,{"$f":"IFERROR(BS53-BS52-BS54,0)","v":"00:00:00"},null,null,null,null,null,{"$f":"IFERROR(BY53-BY52-BY54,0)","v":"00:00:00"},null,null,null,null,null,{"$f":"IFERROR(CE53-CE52-CE54,0)","v":0},null,null,null,null,null,{"$f":"IFERROR(CK53-CK52-CK54,0)","v":0},null,null,null,null,null,{"$f":"IFERROR(CQ53-CQ52-CQ54,0)","v":"00:00:00"},null,null,null,null,null,{"$f":"IFERROR(CW53-CW52-CW54,0)","v":"00:00:00"},null,null,null,null,null,{"$f":"IFERROR(DC53-DC52-DC54,0)","v":"00:00:00"},null,null,null,null,null,{"$f":"IFERROR(DI53-DI52-DI54,0)","v":"00:00:00"},null,null,null,null,null,{"$f":"IFERROR(DO53-DO52-DO54,0)","v":"00:00:00"},null,null,null,null,null,{"$f":"IFERROR(DU53-DU52-DU54,0)","v":0},null,null,null,null,null,{"$f":"IFERROR(EA53-EA52-EA54,0)","v":0},null,null,null,null,null,{"$f":"IFERROR(EG53-EG52-EG54,0)","v":"00:00:00"},null,null,null,null,null,{"$f":"IFERROR(EM53-EM52-EM54,0)","v":"00:00:00"},null,null,null,null,null,{"$f":"IFERROR(ES53-ES52-ES54,0)","v":"00:00:00"},null,null,null,null,null,{"$f":"IFERROR(EY53-EY52-EY54,0)","v":"00:00:00"},null,null,null,null,null,{"$f":"IFERROR(FE53-FE52-FE54,0)","v":"00:00:00"},null,null,null,null,null,{"$f":"IFERROR(FK53-FK52-FK54,0)","v":0},null,null,null,null,null,{"$f":"IFERROR(FQ53-FQ52-FQ54,0)","v":0},null,null,null,null,null,{"$f":"IFERROR(FW53-FW52-FW54,0)","v":"00:00:00"},null,null,null,null,null,{"$f":"IFERROR(GC53-GC52-GC54,0)","v":"00:00:00"},null,null,null,null,null,{"$f":"IFERROR(GI53-GI52-GI54,0)","v":"00:00:00"},null,null,null,null,null,{"$f":"IFERROR(GO53-GO52-GO54,0)","v":"00:00:00"},null,null,null,null,null,{"$f":"IFERROR(GU53-GU52-GU54,0)","v":"00:00:00"},null,null,null,null,null,{"$f":"IFERROR(HA53-HA52-HA54,0)","v":0},null,null,null,null,null,null,null,null,null,null,null,null,null,null,null,null,null,null,null,null,null,null,null,{"$f":"SUM(AC55:HF55)","v":0},null,{"$f":"VLOOKUP($HY$17,'[4]производственный календарь '!$B$2:$F$13,2,0)","v":159}]
[null,null,null,null,null,null,null,null,null,null,null,null,null,null,null,null,null,null,null,null,null,null,null,"пр","пр",null,null,null,null,null,null,null,null,null,null,null,null,null,null,null,null,null,null,null,null,null,null,null,null,null,null,null,null,null,null,null,null,null,null,null,null,null,null,null,null,null,null,null,null,null,null,null,null,null,null,null,null,null,null,null,null,null,null,null,null,null,null,null,null,null,null,null,null,null,null,null,null,null,null,null,null,null,null,null,null,null,null,null,null,null,null,null,null,null,null,null,null,null,null,null,null,null,null,null,null,null,null,null,null,null,null,null,null,null,null,null,null,null,null,null,null,null,null,null,null,null,null,null,null,null,null,null,null,null,null,null,null,null,null,null,null,null,null,null,null,null,null,null,null,null,null,null,null,null,null,null,null,null,null,null,null,null,null,null,null,null,null,null,null,null,null,null,null,null,null,null,null,null,null,null,null,null,null,null,null,null,null,null,null,null,null,null,null,null,{"$f":"SUM(AC56:HF56)","v":"00:00:00"}]
[6,null,null,null,null,null,null,null,null,null,null,null,null,null,null,null,null,null,null,null,null,null,null,null,"от",null,null,null,null,null,null,null,null,null,null,null,null,null,null,null,null,null,null,null,null,null,null,null,null,null,null,null,null,null,null,null,null,null,null,null,null,null,null,null,null,null,null,null,null,null,null,null,null,null,null,null,null,null,null,null,null,null,null,null,null,null,null,null,null,null,null,null,null,null,null,null,null,null,null,null,null,null,null,null,null,null,null,null,null,null,null,null,null,null,null,null,null,null,null,null,null,null,null,null,null,null,null,null,null,null,null,null,null,null,null,null,null,null,null,null,null,null,null,null,null,null,null,null,null,null,null,null,null,null,null,null,null,null,null,null,null,null,null,null,null,null,null,null,null,null,null,null,null,null,null,null,null,null,null,null,null,null,null,null,null,null,null,null,null,null,null,null,null,null,null,null,null,null,null,null,null,null,null,null,null,null,null,null,null,null,null,null,null,null,{"$f":"COUNTIF(AC58:HF58,\"=От\")","v":14},null,null,null,null,null,null,null,null,null,null,null,null,null,null,null,null,null,null,null,null,null,null,null,null,null,"В"]
[null,null,null,null,null,"Нурлиева Е.А., котролёр-посадчик аттракциона НЧ",null,null,null,null,null,null,null,null,null,null,null,null,null,null,null,null,null,1,null,null,null,null,0.33333333333333331,null,null,null,null,null,null,null,null,null,null,null,0.33333333333333331,null,null,null,null,null,null,null,null,null,null,null,0.33333333333333331,null,null,null,null,null,null,null,null,null,null,null,0.33333333333333331,null,null,null,null,null,null,null,null,null,null,null,0.33333333333333331,null,null,null,null,null,null,null,null,null,null,null,0.33333333333333331,null,null,null,null,null,null,null,null,null,null,null,0.33333333333333331,null,null,null,null,null,null,null,null,null,null,null,0.33333333333333331,null,null,null,null,null,null,null,null,null,null,null,"ОТ",null,null,null,null,null,"ОТ",null,null,null,null,null,"ОТ",null,null,null,null,null,"ОТ",null,null,null,null,null,"ОТ",null,null,null,null,null,"ОТ",null,null,null,null,null,"ОТ",null,null,null,null,null,"ОТ",null,null,null,null,null,"ОТ",null,null,null,null,null,"ОТ",null,null,null,null,null,"ОТ",null,null,null,null,null,"ОТ",null,null,null,null,null,"ОТ",null,null,null,null,null,"ОТ",null,null,null,null,null,null,null,null,null,null,null,{"$f":"COUNT(AC58:HF58)","v":8},null,null,null,null,null,null,null,null,null,null,null,null,null,null,null,null,null,{"$f":"SUM(IFERROR(AC59:HF59-AC58:HF58-AC60:HF60,0))","v":3.666666666666667},null,null,null,null,null,null,null,"Б"]
[null,null,null,null,null,null,null,null,null,null,null,null,null,null,null,null,null,null,null,null,null,null,null,null,null,null,null,null,0.83333333333333337,null,null,null,null,null,null,null,null,null,null,null,0.83333333333333337,null,null,null,null,null,null,null,null,null,null,null,0.83333333333333337,null,null,null,null,null,null,null,null,null,null,null,0.83333333333333337,null,null,null,null,null,null,null,null,null,null,null,0.83333333333333337,null,null,null,null,null,null,null,null,null,null,null,0.83333333333333337,null,null,null,null,null,null,null,null,null,null,null,0.83333333333333337,null,null,null,null,null,null,null,null,null,null,null,0.83333333333333337,null,null,null,null,null,null,null,null,null,null,null,"ОТ",null,null,null,null,null,"ОТ",null,null,null,null,null,"ОТ",null,null,null,null,null,"ОТ",null,null,null,null,null,"ОТ",null,null,null,null,null,"ОТ",null,null,null,null,null,"ОТ",null,null,null,null,null,"ОТ",null,null,null,null,null,"ОТ",null,null,null,null,null,"ОТ",null,null,null,null,null,"ОТ",null,null,null,null,null,"ОТ",null,null,null,null,null,"ОТ",null,null,null,null,null,"ОТ",null,null,null,null,null,null,null,null,null,null,null,null,null,null,null,null,null,null,null,null,null,null,null,null,null,null,null,null,null,null,null,null,null,null,null,null,null,"К"]
[null,null,null,null,null,null,null,null,null,null,null,null,null,null,null,null,null,null,null,null,null,null,null,"обед","обед",null,null,null,"01:00:00",null,null,null,null,null,null,null,null,null,null,null,"01:00:00",null,null,null,null,null,null,null,null,null,null,null,"01:00:00",null,null,null,null,null,null,null,null,null,null,null,"01:00:00",null,null,null,null,null,null,null,null,null,null,null,"01:00:00",null,null,null,null,null,null,null,null,null,null,null,"01:00:00",null,null,null,null,null,null,null,null,null,null,null,"01:00:00",null,null,null,null,null,null,null,null,null,null,null,"01:00:00",null,null,null,null,null,null,null,null,null,null,null,null,null,null,null,null,null,null,null,null,null,null,null,null,null,null,null,null,null,null,null,null,null,null,null,null,null,null,null,null,null,null,null,null,null,null,null,null,null,null,null,null,null,null,null,null,null,null,null,null,null,null,null,null,null,null,null,null,null,null,null,null,null,null,null,null,null,null,null,null,null,null,null,null,null,null,null,null,null,null,null,null,null,null,null,null,null,null,null,null,null,null,null,null,null,null,null,null,null,null,null,null,null,null,null,null,null,null,null,null,null,null,null,null,null,null,null,"О"]
[null,null,null,null,null,null,null,null,null,null,null,null,null,null,null,null,null,null,null,null,null,null,null,null,"р.д.",null,null,null,{"$f":"IFERROR(AC59-AC58-AC60,0)","v":"11:00:00"},null,null,null,null,null,{"$f":"IFERROR(AI59-AI58-AI60,0)","v":"00:00:00"},null,null,null,null,null,{"$f":"IFERROR(AO59-AO58-AO60,0)","v":0.45833333333333331},null,null,null,null,null,{"$f":"IFERROR(AU59-AU58-AU60,0)","v":0},null,null,null,null,null,{"$f":"IFERROR(BA59-BA58-BA60,0)","v":"11:00:00"},null,null,null,null,null,{"$f":"IFERROR(BG59-BG58-BG60,0)","v":"00:00:00"},null,null,null,null,null,{"$f":"IFERROR(BM59-BM58-BM60,0)","v":"11:00:00"},null,null,null,null,null,{"$f":"IFERROR(BS59-BS58-BS60,0)","v":"00:00:00"},null,null,null,null,null,{"$f":"IFERROR(BY59-BY58-BY60,0)","v":"11:00:00"},null,null,null,null,null,{"$f":"IFERROR(CE59-CE58-CE60,0)","v":0},null,null,null,null,null,{"$f":"IFERROR(CK59-CK58-CK60,0)","v":0.45833333333333331},null,null,null,null,null,{"$f":"IFERROR(CQ59-CQ58-CQ60,0)","v":"00:00:00"},null,null,null,null,null,{"$f":"IFERROR(CW59-CW58-CW60,0)","v":"11:00:00"},null,null,null,null,null,{"$f":"IFERROR(DC59-DC58-DC60,0)","v":"00:00:00"},null,null,null,null,null,{"$f":"IFERROR(DI59-DI58-DI60,0)","v":"11:00:00"},null,null,null,null,null,{"$f":"IFERROR(DO59-DO58-DO60,0)","v":"00:00:00"},null,null,null,null,null,{"$f":"IFERROR(DU59-DU58-DU60,0)","v":0},null,null,null,null,null,{"$f":"IFERROR(EA59-EA58-EA60,0)","v":0},null,null,null,null,null,{"$f":"IFERROR(EG59-EG58-EG60,0)","v":"00:00:00"},null,null,null,null,null,{"$f":"IFERROR(EM59-EM58-EM60,0)","v":"00:00:00"},null,null,null,null,null,{"$f":"IFERROR(ES59-ES58-ES60,0)","v":"00:00:00"},null,null,null,null,null,{"$f":"IFERROR(EY59-EY58-EY60,0)","v":"00:00:00"},null,null,null,null,null,{"$f":"IFERROR(FE59-FE58-FE60,0)","v":"00:00:00"},null,null,null,null,null,{"$f":"IFERROR(FK59-FK58-FK60,0)","v":0},null,null,null,null,null,{"$f":"IFERROR(FQ59-FQ58-FQ60,0)","v":0},null,null,null,null,null,{"$f":"IFERROR(FW59-FW58-FW60,0)","v":"00:00:00"},null,null,null,null,null,{"$f":"IFERROR(GC59-GC58-GC60,0)","v":"00:00:00"},null,null,null,null,null,{"$f":"IFERROR(GI59-GI58-GI60,0)","v":"00:00:00"},null,null,null,null,null,{"$f":"IFERROR(GO59-GO58-GO60,0)","v":"00:00:00"},null,null,null,null,null,{"$f":"IFERROR(GU59-GU58-GU60,0)","v":"00:00:00"},null,null,null,null,null,{"$f":"IFERROR(HA59-HA58-HA60,0)","v":0},null,null,null,null,null,null,null,null,null,null,null,null,null,null,null,null,null,null,null,null,null,null,null,{"$f":"SUM(AC61:GZ61)","v":3.666666666666667},null,{"$f":"VLOOKUP($HY$17,'[4]производственный календарь '!$B$2:$F$13,2,0)","v":159},null,null,null,null,null,"П"]
[null,null,null,null,null,null,null,null,null,null,null,null,null,null,null,null,null,null,null,null,null,null,null,"пр","пр",null,null,null,null,null,null,null,null,null,null,null,null,null,null,null,null,null,null,null,null,null,null,null,null,null,null,null,null,null,null,null,null,null,null,null,null,null,null,null,null,null,null,null,null,null,null,null,null,null,null,null,null,null,null,null,null,null,null,null,null,null,null,null,null,null,null,null,null,null,null,null,null,null,null,null,null,null,null,null,null,null,null,null,null,null,null,null,null,null,null,null,null,null,null,null,null,null,null,null,null,null,null,null,null,null,null,null,null,null,null,null,null,null,null,null,null,null,null,null,null,null,null,null,null,null,null,null,null,null,null,null,null,null,null,null,null,null,null,null,null,null,null,null,null,null,null,null,null,null,null,null,null,null,null,null,null,null,null,null,null,null,null,null,null,null,null,null,null,null,null,null,null,null,null,null,null,null,null,null,null,null,null,null,null,null,null,null,null,null,{"$f":"SUM(AC62:HF62)","v":"00:00:00"},null,null,null,null,null,null,null,null,null,null,null,null,null,null,null,null,null,null,null,null,null,null,null,null,null,"ОТ"]
[7,null,null,null,null,null,null,null,null,null,null,null,null,null,null,null,null,null,null,null,null,null,null,null,"от",null,null,null,null,null,null,null,null,null,null,null,null,null,null,null,null,null,null,null,null,null,null,null,null,null,null,null,null,null,null,null,null,null,null,null,null,null,null,null,null,null,null,null,null,null,null,null,null,null,null,null,null,null,null,null,null,null,null,null,null,null,null,null,null,null,null,null,null,null,null,null,null,null,null,null,null,null,null,null,null,null,null,null,null,null,null,null,null,null,null,null,null,null,null,null,null,null,null,null,null,null,null,null,null,null,null,null,null,null,null,null,null,null,null,null,null,null,null,null,null,null,null,null,null,null,null,null,null,null,null,null,null,null,null,null,null,null,null,null,null,null,null,null,null,null,null,null,null,null,null,null,null,null,null,null,null,null,null,null,null,null,null,null,null,null,null,null,null,null,null,null,null,null,null,null,null,null,null,null,null,null,null,null,null,null,null,null,null,null,{"$f":"COUNTIF(AC63:HF63,\"=От\")","v":0},null,null,null,null,null,null,null,null,null,null,null,null,null,null,null,null,null,null,null,null,null,null,null,null,null,"С"]
[null,null,null,null,null,null,null,null,null,null,null,null,null,null,null,null,null,null,null,null,null,null,null,null,null,null,null,null,null,null,null,null,null,null,null,null,null,null,null,null,null,null,null,null,null,null,null,null,null,null,null,null,null,null,null,null,null,null,null,null,null,null,null,null,null,null,null,null,null,null,null,null,null,null,null,null,null,null,null,null,null,null,null,null,null,null,null,null,null,null,null,null,null,null,null,null,null,null,null,null,null,null,null,null,null,null,null,null,null,null,null,null,null,null,null,null,null,null,"ОТ",null,null,null,null,null,0.45833333333333331,null,null,null,null,null,"ОТ",null,null,null,null,null,0.41666666666666669,null,null,null,null,null,"ОТ",null,null,null,null,null,0.41666666666666669,null,null,null,null,null,"ОТ",null,null,null,null,null,0.41666666666666669,null,null,null,null,null,"ОТ",null,null,null,null,null,0.41666666666666669,null,null,null,null,null,"ОТ",null,null,null,null,null,0.41666666666666669,null,null,null,null,null,"ОТ",null,null,null,null,null,0.41666666666666669,null,null,null,null,null,"ОТ",null,null,null,null,null,null,null,null,null,null,null,null,null,null,null,null,null,null,null,null,null,null,null,null,null,null,null,null,null,{"$f":"SUM(AC64:HF64)","v":2.958333333333333}]
[null,null,null,null,null,"Хомченко Л.Е., контролёр-посадчик аттракциона Ч",null,null,null,null,null,null,null,null,null,null,null,null,null,null,null,null,null,1,null,null,null,null,null,null,null,null,null,null,0.33333333333333331,null,null,null,null,null,null,null,null,null,null,null,0.33333333333333331,null,null,null,null,null,null,null,null,null,null,null,0.33333333333333331,null,null,null,null,null,null,null,null,null,null,null,0.33333333333333331,null,null,null,null,null,null,null,null,null,null,null,0.33333333333333331,null,null,null,null,null,null,null,null,null,null,null,0.33333333333333331,null,null,null,null,null,null,null,null,null,null,null,0.33333333333333331,null,null,null,null,null,null,null,null,null,null,null,0.33333333333333331,null,null,null,null,null,null,null,null,null,null,null,0.33333333333333331,null,null,null,null,null,null,null,null,null,null,null,0.33333333333333331,null,null,null,null,null,null,null,null,null,null,null,0.33333333333333331,null,null,null,null,null,null,null,null,null,null,null,0.33333333333333331,null,null,null,null,null,null,null,null,null,null,null,0.33333333333333331,null,null,null,null,null,null,null,null,null,null,null,0.33333333333333331,null,null,null,null,null,null,null,null,null,null,null,0.33333333333333331,null,null,null,null,null,null,null,null,null,null,null,{"$f":"COUNT(AC65:HF65)","v":15},null,null,null,null,null,null,null,null,null,null,null,null,null,null,null,null,null,{"$f":"SUM(IFERROR(AC66:HF66-AC65:HF65-AC67:HF67,0))","v":6.6250000000000018},null,null,null,null,null,null,null,"Р"]
[null,null,null,null,null,null,null,null,null,null,null,null,null,null,null,null,null,null,null,null,null,null,null,null,null,null,null,null,null,null,null,null,null,null,0.83333333333333337,null,null,null,null,null,null,null,null,null,null,null,0.83333333333333337,null,null,null,null,null,null,null,null,null,null,null,0.83333333333333337,null,null,null,null,null,null,null,null,null,null,null,0.83333333333333337,null,null,null,null,null,null,null,null,null,null,null,0.83333333333333337,null,null,null,null,null,null,null,null,null,null,null,0.83333333333333337,null,null,null,null,null,null,null,null,null,null,null,0.83333333333333337,null,null,null,null,null,null,null,null,null,null,null,0.83333333333333337,null,null,null,null,null,null,null,null,null,null,null,0.83333333333333337,null,null,null,null,null,null,null,null,null,null,null,0.79166666666666663,null,null,null,null,null,null,null,null,null,null,null,0.79166666666666663,null,null,null,null,null,null,null,null,null,null,null,0.79166666666666663,null,null,null,null,null,null,null,null,null,null,null,0.79166666666666663,null,null,null,null,null,null,null,null,null,null,null,0.79166666666666663,null,null,null,null,null,null,null,null,null,null,null,0.79166666666666663]
[null,null,null,null,null,null,null,null,null,null,null,null,null,null,null,null,null,null,null,null,null,null,null,"обед","обед",null,null,null,null,null,null,null,null,null,"01:00:00",null,null,null,null,null,null,null,null,null,null,null,"01:00:00",null,null,null,null,null,null,null,null,null,null,null,"01:00:00",null,null,null,null,null,null,null,null,null,null,null,"01:00:00",null,null,null,null,null,null,null,null,null,null,null,"01:00:00",null,null,null,null,null,null,null,null,null,null,null,"01:00:00",null,null,null,null,null,null,null,null,null,null,null,"01:00:00",null,null,null,null,null,null,null,null,null,null,null,"01:00:00",null,null,null,null,null,null,null,null,null,null,null,"01:00:00",null,null,null,null,null,null,null,null,null,null,null,"01:00:00",null,null,null,null,null,null,null,null,null,null,null,"01:00:00",null,null,null,null,null,null,null,null,null,null,null,"01:00:00",null,null,null,null,null,null,null,null,null,null,null,"01:00:00",null,null,null,null,null,null,null,null,null,null,null,"01:00:00",null,null,null,null,null,null,null,null,null,null,null,"01:00:00"]
[null,null,null,null,null,null,null,null,null,null,null,null,null,null,null,null,null,null,null,null,null,null,null,null,"р.д.",null,null,null,{"$f":"IFERROR(AC66-AC65-AC67,0)","v":"00:00:00"},null,null,null,null,null,{"$f":"IFERROR(AI66-AI65-AI67,0)","v":"11:00:00"},null,null,null,null,null,{"$f":"IFERROR(AO66-AO65-AO67,0)","v":0},null,null,null,null,null,{"$f":"IFERROR(AU66-AU65-AU67,0)","v":0.45833333333333331},null,null,null,null,null,{"$f":"IFERROR(BA66-BA65-BA67,0)","v":"00:00:00"},null,null,null,null,null,{"$f":"IFERROR(BG66-BG65-BG67,0)","v":"11:00:00"},null,null,null,null,null,{"$f":"IFERROR(BM66-BM65-BM67,0)","v":"00:00:00"},null,null,null,null,null,{"$f":"IFERROR(BS66-BS65-BS67,0)","v":"11:00:00"},null,null,null,null,null,{"$f":"IFERROR(BY66-BY65-BY67,0)","v":"00:00:00"},null,null,null,null,null,{"$f":"IFERROR(CE66-CE65-CE67,0)","v":0.45833333333333331},null,null,null,null,null,{"$f":"IFERROR(CK66-CK65-CK67,0)","v":0},null,null,null,null,null,{"$f":"IFERROR(CQ66-CQ65-CQ67,0)","v":"11:00:00"},null,null,null,null,null,{"$f":"IFERROR(CW66-CW65-CW67,0)","v":"00:00:00"},null,null,null,null,null,{"$f":"IFERROR(DC66-DC65-DC67,0)","v":"11:00:00"},null,null,null,null,null,{"$f":"IFERROR(DI66-DI65-DI67,0)","v":"00:00:00"},null,null,null,null,null,{"$f":"IFERROR(DO66-DO65-DO67,0)","v":"11:00:00"},null,null,null,null,null,{"$f":"IFERROR(DU66-DU65-DU67,0)","v":0},null,null,null,null,null,{"$f":"IFERROR(EA66-EA65-EA67,0)","v":0.45833333333333331},null,null,null,null,null,{"$f":"IFERROR(EG66-EG65-EG67,0)","v":"00:00:00"},null,null,null,null,null,{"$f":"IFERROR(EM66-EM65-EM67,0)","v":"10:00:00"},null,null,null,null,null,{"$f":"IFERROR(ES66-ES65-ES67,0)","v":"00:00:00"},null,null,null,null,null,{"$f":"IFERROR(EY66-EY65-EY67,0)","v":"10:00:00"},null,null,null,null,null,{"$f":"IFERROR(FE66-FE65-FE67,0)","v":"00:00:00"},null,null,null,null,null,{"$f":"IFERROR(FK66-FK65-FK67,0)","v":0.41666666666666663},null,null,null,null,null,{"$f":"IFERROR(FQ66-FQ65-FQ67,0)","v":0},null,null,null,null,null,{"$f":"IFERROR(FW66-FW65-FW67,0)","v":"10:00:00"},null,null,null,null,null,{"$f":"IFERROR(GC66-GC65-GC67,0)","v":"00:00:00"},null,null,null,null,null,{"$f":"IFERROR(GI66-GI65-GI67,0)","v":"10:00:00"},null,null,null,null,null,{"$f":"IFERROR(GO66-GO65-GO67,0)","v":"00:00:00"},null,null,null,null,null,{"$f":"IFERROR(GU66-GU65-GU67,0)","v":"10:00:00"},null,null,null,null,null,{"$f":"IFERROR(HA66-HA65-HA67,0)","v":0},null,null,null,null,null,null,null,null,null,null,null,null,null,null,null,null,null,null,null,null,null,null,null,{"$f":"SUM(AC68:HF68)","v":6.6250000000000018},null,{"$f":"VLOOKUP($HY$17,'[4]производственный календарь '!$B$2:$F$13,2,0)","v":159}]
[null,null,null,null,null,null,null,null,null,null,null,null,null,null,null,null,null,null,null,null,null,null,null,"пр","пр",null,null,null,null,null,null,null,null,null,null,null,null,null,null,null,null,null,null,null,null,null,null,null,null,null,null,null,null,null,null,null,null,null,null,null,null,null,null,null,null,null,null,null,null,null,null,null,null,null,null,null,null,null,null,null,null,null,null,null,null,null,null,null,null,null,null,null,null,null,null,null,null,null,null,null,null,null,null,null,null,null,null,null,null,null,null,null,null,null,null,null,null,null,null,null,null,null,null,null,null,null,null,null,null,null,null,null,null,null,null,null,null,null,null,null,null,null,null,null,null,null,null,null,null,null,null,null,null,null,null,null,null,null,null,null,null,null,null,null,null,null,null,null,null,null,null,null,null,null,null,null,null,null,null,null,null,null,null,null,null,null,null,null,null,null,null,null,null,null,null,null,null,null,null,null,null,null,null,null,null,null,null,null,null,null,null,null,null,null,{"$f":"SUM(AC69:HF69)","v":"00:00:00"}]
[8,null,null,null,null,null,null,null,null,null,null,null,null,null,null,null,null,null,null,null,null,null,null,null,"от",null,null,null,null,null,null,null,null,null,null,null,null,null,null,null,null,null,null,null,null,null,null,null,null,null,null,null,null,null,null,null,null,null,null,null,null,null,null,null,null,null,null,null,null,null,null,null,null,null,null,null,null,null,null,null,null,null,null,null,null,null,null,null,null,null,null,null,null,null,null,null,null,null,null,null,null,null,null,null,null,null,null,null,null,null,null,null,null,null,null,null,null,null,"ОТ",null,null,null,null,null,"ОТ",null,null,null,null,null,"ОТ",null,null,null,null,null,"ОТ",null,null,null,null,null,"ОТ",null,null,null,null,null,"ОТ",null,null,null,null,null,"ОТ",null,null,null,null,null,"ОТ",null,null,null,null,null,"ОТ",null,null,null,null,null,"ОТ",null,null,null,null,null,"ОТ",null,null,null,null,null,"ОТ",null,null,null,null,null,"ОТ",null,null,null,null,null,"ОТ",null,null,null,null,null,"ОТ",null,null,null,null,null,null,null,null,null,null,null,{"$f":"COUNTIF(AC70:HF70,\"=От\")","v":15},null,null,null,null,null,null,null,null,null,null,null,null,null,null,null,null,null,null,null,{"$f":"VLOOKUP($HY$17,'[4]производственный календарь '!$B$2:$F$13,2,0)","v":159}]
[null,null,null,null,null,"Чижова В.В., контролёр-посадчик аттракциона",null,null,null,null,null,null,null,null,null,null,null,null,null,null,null,null,null,null,0.5,null,null,null,null,null,null,null,null,null,null,null,null,null,null,null,null,null,null,null,null,null,null,null,null,null,null,null,null,null,null,null,null,null,null,null,null,null,null,null,null,null,null,null,null,null,null,null,null,null,null,null,null,null,null,null,null,null,null,null,null,null,null,null,null,null,null,null,null,null,null,null,null,null,null,null,null,null,null,null,null,null,null,null,null,null,null,null,null,null,null,null,null,null,null,null,null,null,null,null,null,null,null,null,null,null,null,null,null,null,null,null,null,null,null,null,null,null,null,null,null,null,null,null,null,null,null,null,null,null,null,null,null,null,null,null,null,null,null,null,null,null,null,null,null,null,null,null,null,null,null,null,null,null,null,null,null,null,null,null,null,null,null,null,null,null,null,null,null,null,null,null,null,null,null,null,null,null,null,null,null,null,null,null,null,null,null,null,null,null,{"$f":"COUNT(AC71:HF71)","v":0},null,null,null,null,null,null,null,null,null,null,null,null,null,null,null,null,null,{"$f":"SUM(IFERROR(AC72:HF72-AC71:HF71-AC73:HF73,0))","v":0},null,{"$f":"VLOOKUP($HY$17,'[4]производственный календарь '!$B$2:$F$13,2,0)","v":159}]
[null,null,null,null,null,null,null,null,null,null,null,null,null,null,null,null,null,null,null,null,null,null,null,null,null,null,null,null,null,null,null,null,null,null,null,null,null,null,null,null,null,null,null,null,null,null,null,null,null,null,null,null,null,null,null,null,null,null,null,null,null,null,null,null,null,null,null,null,null,null,null,null,null,null,null,null,null,null,null,null,null,null,null,null,null,null,null,null,null,null,null,null,null,null,null,null,null,null,null,null,null,null,null,null,null,null,null,null,null,null,null,null,null,null,null,null,null,null,null,null,null,null,null,null,null,null,null,null,null,null,null,null,null,null,null,null,null,null,null,null,null,null,null,null,null,null,null,null,null,null,null,null,null,null,null,null,null,null,null,null,null,null,null,null,null,null,null,null,null,null,null,null,null,null,null,null,null,null,null,null,null,null,null,null,null,null,null,null,null,null,null,null,null,null,null,null,null,null,null,null,null,null,null,null,null,null,null,null,null,null,null,null,null,null,null,null,null,null,null,null,null,null,null,null,null,null,null,null,null,null,null,null,null,null,88]
[null,null,null,null,null,null,null,null,null,null,null,null,null,null,null,null,null,null,null,null,null,null,null,null,"обед"]
[null,null,null,null,null,null,null,null,null,null,null,null,null,null,null,null,null,null,null,null,null,null,null,null,"р.д.",null,null,null,{"$f":"IFERROR(AC72-AC71-AC73,0)","v":"00:00:00"},null,null,null,null,null,{"$f":"IFERROR(AI72-AI71-AI73,0)","v":"00:00:00"},null,null,null,null,null,"00:00:00",null,null,null,null,null,"00:00:00",null,null,null,null,null,{"$f":"IFERROR(BA72-BA71-BA73,0)","v":"00:00:00"},null,null,null,null,null,"00:00:00",null,null,null,null,null,"00:00:00",null,null,null,null,null,"00:00:00",null,null,null,null,null,"00:00:00",null,null,null,null,null,"00:00:00",null,null,null,null,null,"00:00:00",null,null,null,null,null,{"$f":"IFERROR(CQ72-CQ71-CQ73,0)","v":"00:00:00"},null,null,null,null,null,"00:00:00",null,null,null,null,null,"00:00:00",null,null,null,null,null,"00:00:00",null,null,null,null,null,"00:00:00",null,null,null,null,null,"00:00:00",null,null,null,null,null,"00:00:00",null,null,null,null,null,"00:00:00",null,null,null,null,null,"00:00:00",null,null,null,null,null,{"$f":"IFERROR(ES72-ES71-ES73,0)","v":"00:00:00"},null,null,null,null,null,{"$f":"IFERROR(EY72-EY71-EY73,0)","v":"00:00:00"},null,null,null,null,null,{"$f":"IFERROR(FE72-FE71-FE73,0)","v":"00:00:00"},null,null,null,null,null,"00:00:00",null,null,null,null,null,{"$f":"IFERROR(FQ72-FQ71-FQ73,0)","v":"00:00:00"},null,null,null,null,null,"00:00:00",null,null,null,null,null,{"$f":"IFERROR(GC72-GC71-GC73,0)","v":"00:00:00"},null,null,null,null,null,"00:00:00",null,null,null,null,null,{"$f":"IFERROR(GO72-GO71-GO73,0)","v":"00:00:00"},null,null,null,null,null,{"$f":"IFERROR(GU72-GU71-GU73,0)","v":"00:00:00"},null,null,null,null,null,0,null,null,null,null,null,null,null,null,null,null,null,null,null,null,null,null,null,null,null,null,null,null,null,{"$f":"SUM(AC74:HF74)","v":0},null,{"$f":"VLOOKUP($HY$17,'[4]производственный календарь '!$B$2:$F$13,2,0)","v":159}]
[null,null,null,null,null,null,null,null,null,null,null,null,null,null,null,null,null,null,null,null,null,null,null,null,"пр"]
[null,null,null,null,null,null,null,null,null,null,null,null,null,null,null,null,null,null,null,null,null,null,null,null,"от"]
[null,null,null,null,null,"Середка С.Л., контролёр-посадчик аттракциона",null,null,null,null,null,null,null,null,null,null,null,null,null,null,null,null,null,null,0.5,null,null,null,null,null,null,null,null,null,null,null,null,null,null,null,null,null,null,null,null,null,null,null,null,null,null,null,null,null,null,null,null,null,null,null,null,null,null,null,null,null,null,null,null,null,null,null,null,null,null,null,null,null,null,null,null,null,null,null,null,null,null,null,null,null,null,null,null,null,null,null,null,null,null,null,null,null,null,null,null,null,null,null,null,null,null,null,null,null,null,null,null,null,null,null,null,null,null,null,null,null,null,null,null,null,null,null,null,null,null,null,null,null,null,null,null,null,null,null,null,null,null,null,null,null,null,null,null,null,null,null,null,null,null,null,null,null,null,null,null,null,null,null,null,null,null,null,null,null,null,null,null,null,null,null,null,null,null,null,null,null,null,null,null,null,null,null,null,null,null,null,null,null,null,null,null,null,null,null,null,null,null,null,null,null,null,null,null,null,{"$f":"COUNT(AC77:HF77)","v":0},null,null,null,null,null,null,null,null,null,null,null,null,null,null,null,null,null,{"$f":"SUM(IFERROR(AC78:HF78-AC77:HF77-AC79:HF79,0))","v":0},null,{"$f":"VLOOKUP($HY$17,'[4]производственный календарь '!$B$2:$F$13,2,0)","v":159}]
[]
[null,null,null,null,null,null,null,null,null,null,null,null,null,null,null,null,null,null,null,null,null,null,null,null,"обед"]
[null,null,null,null,null,null,null,null,null,null,null,null,null,null,null,null,null,null,null,null,null,null,null,null,"р.д.",null,null,null,{"$f":"IFERROR(AC78-AC77-AC79,0)","v":0},null,null,null,null,null,{"$f":"IFERROR(AI78-AI77-AI79,0)","v":"00:00:00"},null,null,null,null,null,"00:00:00",null,null,null,null,null,"00:00:00",null,null,null,null,null,{"$f":"IFERROR(BA78-BA77-BA79,0)","v":"00:00:00"},null,null,null,null,null,{"$f":"IFERROR(BG78-BG77-BG79,0)","v":"00:00:00"},null,null,null,null,null,0,null,null,null,null,null,0,null,null,null,null,null,"00:00:00",null,null,null,null,null,"00:00:00",null,null,null,null,null,{"$f":"IFERROR(CK78-CK77-CK79,0)","v":"00:00:00"},null,null,null,null,null,"00:00:00",null,null,null,null,null,"00:00:00",null,null,null,null,null,0,null,null,null,null,null,0,null,null,null,null,null,{"$f":"IFERROR(DO78-DO77-DO79,0)","v":"00:00:00"},null,null,null,null,null,"00:00:00",null,null,null,null,null,"00:00:00",null,null,null,null,null,"00:00:00",null,null,null,null,null,"00:00:00",null,null,null,null,null,0,null,null,null,null,null,{"$f":"IFERROR(EY78-EY77-EY79,0)","v":0},null,null,null,null,null,"00:00:00",null,null,null,null,null,"00:00:00",null,null,null,null,null,"00:00:00",null,null,null,null,null,"00:00:00",null,null,null,null,null,"00:00:00",null,null,null,null,null,{"$f":"IFERROR(GI78-GI77-GI79,0)","v":0},null,null,null,null,null,{"$f":"IFERROR(GO78-GO77-GO79,0)","v":0},null,null,null,null,null,"00:00:00",null,null,null,null,null,0,null,null,null,null,null,null,null,null,null,null,null,null,null,null,null,null,null,null,null,null,null,null,null,{"$f":"SUM(AC80:HF80)","v":0}]
[null,null,null,null,null,null,null,null,null,null,null,null,null,null,null,null,null,null,null,null,null,null,null,null,"пр"]
[null,null,null,null,null,null,null,null,null,null,null,null,null,null,null,null,null,null,null,null,null,null,null,null,"от"]
[null,null,null,null,null,"Кондратюк Н.В., сторож",null,null,null,null,null,null,null,null,null,null,null,null,null,null,null,null,null,1,null,null,null,null,0,null,null,null,null,null,null,null,null,null,null,null,0.70833333333333337,null,null,null,null,null,0,null,null,null,null,null,null,null,null,null,null,null,0.70833333333333337,null,null,null,null,null,0,null,null,null,null,null,null,null,null,null,null,null,0.70833333333333337,null,null,null,null,null,0,null,null,null,null,null,null,null,null,null,null,null,0.70833333333333337,null,null,null,null,null,0,null,null,null,null,null,null,null,null,null,null,null,0.70833333333333337,null,null,null,null,null,0,null,null,null,null,null,null,null,null,null,null,null,0.70833333333333337,null,null,null,null,null,0,null,null,null,null,null,null,null,null,null,null,null,0.70833333333333337,null,null,null,null,null,0,null,null,null,null,null,null,null,null,null,null,null,0.70833333333333337,null,null,null,null,null,0,null,null,null,null,null,null,null,null,null,null,null,0.70833333333333337,null,null,null,null,null,0,null,null,null,null,null,null,null,null,null,null,null,0.75,null,null,null,null,null,null,null,null,null,null,null,{"$f":"COUNT(AC83:HF83)","v":20},null,null,null,null,null,null,null,null,null,null,null,null,null,null,null,null,null,{"$f":"SUM(IF(ISNUMBER(AC83:HF83),AC84:HF84-AC83:HF83+(AC84:HF84<AC83:HF83),))*24","v":159}]
[null,null,null,null,null,null,null,null,null,null,null,null,null,null,null,null,null,null,null,null,null,null,null,null,null,null,null,null,0.375,null,null,null,null,null,null,null,null,null,null,null,1,null,null,null,null,null,0.375,null,null,null,null,null,null,null,null,null,null,null,1,null,null,null,null,null,0.375,null,null,null,null,null,null,null,null,null,null,null,1,null,null,null,null,null,0.375,null,null,null,null,null,null,null,null,null,null,null,1,null,null,null,null,null,0.375,null,null,null,null,null,null,null,null,null,null,null,1,null,null,null,null,null,0.375,null,null,null,null,null,null,null,null,null,null,null,1,null,null,null,null,null,0.375,null,null,null,null,null,null,null,null,null,null,null,1,null,null,null,null,null,0.375,null,null,null,null,null,null,null,null,null,null,null,1,null,null,null,null,null,0.375,null,null,null,null,null,null,null,null,null,null,null,1,null,null,null,null,null,0.375,null,null,null,null,null,null,null,null,null,null,null,1]
[null,null,null,null,null,null,null,null,null,null,null,null,null,null,null,null,null,null,null,null,null,null,null,null,null,null,null,null,{"$f":"IFERROR(AC84-AC83,0)","v":0.375},null,null,null,null,null,{"$f":"IFERROR(AI84-AI83,0)","v":0},null,null,null,null,null,0.29166666666666663,null,null,null,null,null,0.375,null,null,null,null,null,0,null,null,null,null,null,0.29166666666666663,null,null,null,null,null,0.375,null,null,null,null,null,0,null,null,null,null,null,0.29166666666666663,null,null,null,null,null,0.375,null,null,null,null,null,0,null,null,null,null,null,0.29166666666666663,null,null,null,null,null,{"$f":"IFERROR(CW84-CW83,0)","v":0.375},null,null,null,null,null,0,null,null,null,null,null,0.29166666666666663,null,null,null,null,null,0.375,null,null,null,null,null,0,null,null,null,null,null,0.29166666666666663,null,null,null,null,null,0.375,null,null,null,null,null,0,null,null,null,null,null,0.29166666666666663,null,null,null,null,null,0.375,null,null,null,null,null,0,null,null,null,null,null,{"$f":"IFERROR(FK84-FK83,0)","v":0.29166666666666663},null,null,null,null,null,0.375,null,null,null,null,null,0,null,null,null,null,null,0.29166666666666663,null,null,null,null,null,0.375,null,null,null,null,null,0,null,null,null,null,null,0.25,null,null,null,null,null,0,null,null,null,null,null,null,null,null,null,null,null,null,null,null,null,null,null,null,null,null,null,null,null,{"$f":"SUM(AC85:HF85)","v":6.625}]
[]
[null,null,null,null,null,null,null,null,null,null,null,null,null,null,null,null,null,null,null,null,null,null,null,"НОЧЬ",null,null,null,null,{"$f":"(MIN(AC84,6/24)-MIN(AC83,6/24)+MAX(AC84,22/24)-MAX(AC83,22/24))*24+(AC84<AC83)*8","v":5.9999999999999973},null,null,null,null,null,{"$f":"(MIN(AI84,6/24)-MIN(AI83,6/24)+MAX(AI84,22/24)-MAX(AI83,22/24))*24+(AI84<AI83)*8","v":0},null,null,null,null,null,{"$f":"(MIN(AO84,6/24)-MIN(AO83,6/24)+MAX(AO84,22/24)-MAX(AO83,22/24))*24+(AO84<AO83)*8","v":2.0000000000000009},null,null,null,null,null,{"$f":"(MIN(AU84,6/24)-MIN(AU83,6/24)+MAX(AU84,22/24)-MAX(AU83,22/24))*24+(AU84<AU83)*8","v":5.9999999999999973},null,null,null,null,null,{"$f":"(MIN(BA84,6/24)-MIN(BA83,6/24)+MAX(BA84,22/24)-MAX(BA83,22/24))*24+(BA84<BA83)*8","v":0},null,null,null,null,null,{"$f":"(MIN(BG84,6/24)-MIN(BG83,6/24)+MAX(BG84,22/24)-MAX(BG83,22/24))*24+(BG84<BG83)*8","v":2.0000000000000009},null,null,null,null,null,{"$f":"(MIN(BM84,6/24)-MIN(BM83,6/24)+MAX(BM84,22/24)-MAX(BM83,22/24))*24+(BM84<BM83)*8","v":5.9999999999999973},null,null,null,null,null,{"$f":"(MIN(BS84,6/24)-MIN(BS83,6/24)+MAX(BS84,22/24)-MAX(BS83,22/24))*24+(BS84<BS83)*8","v":0},null,null,null,null,null,{"$f":"(MIN(BY84,6/24)-MIN(BY83,6/24)+MAX(BY84,22/24)-MAX(BY83,22/24))*24+(BY84<BY83)*8","v":2.0000000000000009},null,null,null,null,null,{"$f":"(MIN(CE84,6/24)-MIN(CE83,6/24)+MAX(CE84,22/24)-MAX(CE83,22/24))*24+(CE84<CE83)*8","v":5.9999999999999973},null,null,null,null,null,{"$f":"(MIN(CK84,6/24)-MIN(CK83,6/24)+MAX(CK84,22/24)-MAX(CK83,22/24))*24+(CK84<CK83)*8","v":0},null,null,null,null,null,{"$f":"(MIN(CQ84,6/24)-MIN(CQ83,6/24)+MAX(CQ84,22/24)-MAX(CQ83,22/24))*24+(CQ84<CQ83)*8","v":2.0000000000000009},null,null,null,null,null,{"$f":"(MIN(CW84,6/24)-MIN(CW83,6/24)+MAX(CW84,22/24)-MAX(CW83,22/24))*24+(CW84<CW83)*8","v":5.9999999999999973},null,null,null,null,null,{"$f":"(MIN(DC84,6/24)-MIN(DC83,6/24)+MAX(DC84,22/24)-MAX(DC83,22/24))*24+(DC84<DC83)*8","v":0},null,null,null,null,null,{"$f":"(MIN(DI84,6/24)-MIN(DI83,6/24)+MAX(DI84,22/24)-MAX(DI83,22/24))*24+(DI84<DI83)*8","v":2.0000000000000009},null,null,null,null,null,{"$f":"(MIN(DO84,6/24)-MIN(DO83,6/24)+MAX(DO84,22/24)-MAX(DO83,22/24))*24+(DO84<DO83)*8","v":5.9999999999999973},null,null,null,null,null,{"$f":"(MIN(DU84,6/24)-MIN(DU83,6/24)+MAX(DU84,22/24)-MAX(DU83,22/24))*24+(DU84<DU83)*8","v":0},null,null,null,null,null,{"$f":"(MIN(EA84,6/24)-MIN(EA83,6/24)+MAX(EA84,22/24)-MAX(EA83,22/24))*24+(EA84<EA83)*8","v":2.0000000000000009},null,null,null,null,null,{"$f":"(MIN(EG84,6/24)-MIN(EG83,6/24)+MAX(EG84,22/24)-MAX(EG83,22/24))*24+(EG84<EG83)*8","v":5.9999999999999973},null,null,null,null,null,{"$f":"(MIN(EM84,6/24)-MIN(EM83,6/24)+MAX(EM84,22/24)-MAX(EM83,22/24))*24+(EM84<EM83)*8","v":0},null,null,null,null,null,{"$f":"(MIN(ES84,6/24)-MIN(ES83,6/24)+MAX(ES84,22/24)-MAX(ES83,22/24))*24+(ES84<ES83)*8","v":2.0000000000000009},null,null,null,null,null,{"$f":"(MIN(EY84,6/24)-MIN(EY83,6/24)+MAX(EY84,22/24)-MAX(EY83,22/24))*24+(EY84<EY83)*8","v":5.9999999999999973},null,null,null,null,null,{"$f":"(MIN(FE84,6/24)-MIN(FE83,6/24)+MAX(FE84,22/24)-MAX(FE83,22/24))*24+(FE84<FE83)*8","v":0},null,null,null,null,null,{"$f":"(MIN(FK84,6/24)-MIN(FK83,6/24)+MAX(FK84,22/24)-MAX(FK83,22/24))*24+(FK84<FK83)*8","v":2.0000000000000009},null,null,null,null,null,{"$f":"(MIN(FQ84,6/24)-MIN(FQ83,6/24)+MAX(FQ84,22/24)-MAX(FQ83,22/24))*24+(FQ84<FQ83)*8","v":5.9999999999999973},null,null,null,null,null,{"$f":"(MIN(FW84,6/24)-MIN(FW83,6/24)+MAX(FW84,22/24)-MAX(FW83,22/24))*24+(FW84<FW83)*8","v":0},null,null,null,null,null,{"$f":"(MIN(GC84,6/24)-MIN(GC83,6/24)+MAX(GC84,22/24)-MAX(GC83,22/24))*24+(GC84<GC83)*8","v":2.0000000000000009},null,null,null,null,null,{"$f":"(MIN(GI84,6/24)-MIN(GI83,6/24)+MAX(GI84,22/24)-MAX(GI83,22/24))*24+(GI84<GI83)*8","v":5.9999999999999973},null,null,null,null,null,{"$f":"(MIN(GO84,6/24)-MIN(GO83,6/24)+MAX(GO84,22/24)-MAX(GO83,22/24))*24+(GO84<GO83)*8","v":0},null,null,null,null,null,{"$f":"(MIN(GU84,6/24)-MIN(GU83,6/24)+MAX(GU84,22/24)-MAX(GU83,22/24))*24+(GU84<GU83)*8","v":2.0000000000000009},null,null,null,null,null,{"$f":"(MIN(HA84,6/24)-MIN(HA83,6/24)+MAX(HA84,22/24)-MAX(HA83,22/24))*24+(HA84<HA83)*8","v":0},null,null,null,null,null,null,null,null,null,null,null,null,null,null,null,null,null,null,null,null,null,null,null,{"$f":"SUM(AC87:HF87)","v":79.999999999999986}]
[9]
[null,null,null,null,null,null,null,null,null,null,null,null,null,null,null,null,null,null,null,null,null,null,null,"пр","пр",null,null,null,null,null,null,null,null,null,null,null,null,null,null,null,null,null,null,null,null,null,0.375,null,null,null,null,null,null,null,null,null,null,null,null,null,null,null,null,null,null,null,null,null,null,null,null,null,null,null,null,null,null,null,null,null,null,null,null,null,null,null,null,null,null,null,null,null,null,null,null,null,null,null,null,null,null,null,null,null,null,null,null,null,null,null,null,null,null,null,null,null,null,null,null,null,null,null,null,null,null,null,null,null,null,null,null,null,null,null,null,null,null,null,null,null,null,null,null,null,null,null,null,null,null,null,null,null,null,null,null,null,null,null,null,null,null,null,null,null,null,null,null,null,null,null,null,null,null,null,null,null,null,null,null,null,null,null,null,null,null,null,null,null,null,null,null,null,null,null,null,null,null,null,null,null,null,null,null,null,null,null,null,null,null,null,null,null,null,null,{"$f":"COUNT(AC89:HF89)","v":1},null,null,null,null,null,null,null,null,null,null,null,null,null,null,null,null,null,{"$f":"SUM(AC89:HF89)","v":0.375},null,{"$f":"VLOOKUP($HY$17,'[4]производственный календарь '!$B$2:$F$13,2,0)","v":159}]
[null,null,null,null,null,null,null,null,null,null,null,null,null,null,null,null,null,null,null,null,null,null,null,null,"от",null,null,null,null,null,null,null,null,null,null,null,null,null,null,null,null,null,null,null,null,null,null,null,null,null,null,null,null,null,null,null,null,null,null,null,null,null,null,null,null,null,null,null,null,null,null,null,null,null,null,null,null,null,null,null,null,null,null,null,null,null,null,null,null,null,null,null,null,null,null,null,null,null,null,null,null,null,null,null,null,null,null,null,null,null,null,null,null,null,null,null,null,null,null,null,null,null,null,null,null,null,null,null,null,null,null,null,null,null,null,null,null,null,null,null,null,null,null,null,null,null,null,null,null,null,null,null,null,null,null,null,null,null,null,null,null,null,null,null,null,null,null,null,null,null,null,null,null,null,null,null,null,null,null,null,null,null,null,null,null,null,null,null,null,null,null,null,null,null,null,null,null,null,null,null,null,null,null,null,null,null,null,null,null,null,null,null,null,null,0]
[]
[]
[null,null,null,null,null,"С графиком ознакомлен(а):"]
[]
[null,null,null,null,null,1,null,null,null,null,null,null,null,null,null,null,null,null,null,null,null,null,null,null,null,null,null,null,null,null,null,null,null,null,null,null,null,null,null,null,null,null,null,null,null,null,null,null,null,null,null,null,null,null,null,null,null,null,null,null,null,null,null,"\"___\"______________2020"]
[null,null,null,null,null,2,null,null,null,null,null,null,null,null,null,null,null,null,null,null,null,null,null,null,null,null,null,null,null,null,null,null,null,null,null,null,null,null,null,null,null,null,null,null,null,null,null,null,null,null,null,null,null,null,null,null,null,null,null,null,null,null,null,"\"___\"______________2020"]
[null,null,null,null,null,3,null,null,null,null,null,null,null,null,null,null,null,null,null,null,null,null,null,null,null,null,null,null,null,null,null,null,null,null,null,null,null,null,null,null,null,null,null,null,null,null,null,null,null,null,null,null,null,null,null,null,null,null,null,null,null,null,null,"\"___\"______________2020"]
[null,null,null,null,null,4,null,null,null,null,null,null,null,null,null,null,null,null,null,null,null,null,null,null,null,null,null,null,null,null,null,null,null,null,null,null,null,null,null,null,null,null,null,null,null,null,null,null,null,null,null,null,null,null,null,null,null,null,null,null,null,null,null,"\"___\"______________2020"]
[null,null,null,null,null,5,null,null,null,null,null,null,null,null,null,null,null,null,null,null,null,null,null,null,null,null,null,null,null,null,null,null,null,null,null,null,null,null,null,null,null,null,null,null,null,null,null,null,null,null,null,null,null,null,null,null,null,null,null,null,null,null,null,"\"___\"______________2020"]
[null,null,null,null,null,6,null,null,null,null,null,null,null,null,null,null,null,null,null,null,null,null,null,null,null,null,null,null,null,null,null,null,null,null,null,null,null,null,null,null,null,null,null,null,null,null,null,null,null,null,null,null,null,null,null,null,null,null,null,null,null,null,null,"\"___\"______________2020"]
[null,null,null,null,null,7,null,null,null,null,null,null,null,null,null,null,null,null,null,null,null,null,null,null,null,null,null,null,null,null,null,null,null,null,null,null,null,null,null,null,null,null,null,null,null,null,null,null,null,null,null,null,null,null,null,null,null,null,null,null,null,null,null,"\"___\"______________2020"]
[null,null,null,null,null,8,null,null,null,null,null,null,null,null,null,null,null,null,null,null,null,null,null,null,null,null,null,null,null,null,null,null,null,null,null,null,null,null,null,null,null,null,null,null,null,null,null,null,null,null,null,null,null,null,null,null,null,null,null,null,null,null,null,"\"___\"______________2020"]
[null,null,null,null,null,9,null,null,null,null,null,null,null,null,null,null,null,null,null,null,null,null,null,null,null,null,null,null,null,null,null,null,null,null,null,null,null,null,null,null,null,null,null,null,null,null,null,null,null,null,null,null,null,null,null,null,null,null,null,null,null,null,null,"\"___\"______________2020"]
[null,null,null,null,null,10,null,null,null,null,null,null,null,null,null,null,null,null,null,null,null,null,null,null,null,null,null,null,null,null,null,null,null,null,null,null,null,null,null,null,null,null,null,null,null,null,null,null,null,null,null,null,null,null,null,null,null,null,null,null,null,null,null,"\"___\"______________2020"]
[null,null,null,null,null,11,null,null,null,null,null,null,null,null,null,null,null,null,null,null,null,null,null,null,null,null,null,null,null,null,null,null,null,null,null,null,null,null,null,null,null,null,null,null,null,null,null,null,null,null,null,null,null,null,null,null,null,null,null,null,null,null,null,"\"___\"______________2020"]
[null,null,null,null,null,12,null,null,null,null,null,null,null,null,null,null,null,null,null,null,null,null,null,null,null,null,null,null,null,null,null,null,null,null,null,null,null,null,null,null,null,null,null,null,null,null,null,null,null,null,null,null,null,null,null,null,null,null,null,null,null,null,null,"\"___\"______________2020"]

{"sheet":"ТАБЕЛЬ  И.Б. НОЯБРЬ","index":1,"n_rows":69,"n_cols":60,"rows_kept":69,"cut":false,"hidden":false,"merged":[[1,0,1,6],[1,44,1,48],[2,2,2,12],[2,24,2,26],[2,27,2,29],[3,0,3,2],[3,38,3,42],[6,4,6,16],[6,17,6,22],[6,23,6,25],[6,38,6,42],[6,43,6,46],[6,48,6,56],[3,51,3,56],[4,0,4,6],[5,8,5,20],[5,38,5,41],[5,44,5,46],[5,48,5,53],[7,17,7,22],[8,0,11,0],[8,1,11,1],[8,2,11,2],[8,3,11,3],[8,4,11,4],[8,5,8,36],[9,11,11,11],[9,12,11,12],[9,13,11,13],[8,38,8,45],[8,46,11,46],[8,47,8,55],[8,56,11,56],[9,5,11,5],[9,6,11,6],[9,7,11,7],[9,8,11,8],[9,9,11,9],[9,10,11,10],[9,20,11,20],[9,21,11,21],[9,22,11,22],[9,23,11,23],[9,24,11,24],[9,25,11,25],[9,14,11,14],[9,15,11,15],[9,16,11,16],[9,17,11,17],[9,18,11,18],[9,19,11,19],[9,32,11,32],[9,33,11,33],[9,34,11,34],[9,35,11,35],[9,36,11,36],[9,37,11,37],[9,26,11,26],[9,27,11,27],[9,28,11,28],[9,29,11,29],[9,30,11,30],[9,31,11,31],[9,51,11,51],[9,52,11,52],[9,53,11,53],[9,54,11,54],[9,55,11,55],[10,39,11,39],[10,40,10,45],[9,38,11,38],[9,39,9,45],[9,47,11,47],[9,48,11,48],[9,49,11,49],[9,50,11,50],[13,46,13,55],[15,2,16,2],[15,3,16,3],[15,37,16,37],[15,38,16,38],[15,39,17,39],[15,40,17,40],[15,41,17,41],[15,42,17,42],[15,43,17,43],[15,56,17,56],[17,2,18,2],[17,3,18,3],[17,37,18,37],[17,38,18,38],[18,39,20,39],[18,40,20,40],[18,41,20,41],[18,42,20,42],[18,43,20,43],[15,50,17,50],[15,51,17,51],[15,52,17,52],[15,53,17,53],[15,54,17,54],[15,55,17,55],[15,44,17,44],[15,45,17,45],[15,46,17,46],[15,47,17,47],[15,48,17,48],[15,49,17,49],[18,56,20,56],[19,2,20,2],[19,3,20,3],[19,37,20,37],[19,38,20,38],[21,2,22,2],[21,3,22,3],[21,37,22,37],[21,38,22,38],[21,39,23,39],[18,50,20,50],[18,51,20,51],[18,52,20,52],[18,53,20,53],[18,54,20,54],[18,55,20,55],[18,44,20,44],[18,45,20,45],[18,46,20,46],[18,47,20,47],[18,48,20,48],[18,49,20,49],[21,52,23,52],[21,53,23,53],[21,54,23,54],[21,55,23,55],[21,56,23,56],[23,2,24,2],[23,3,24,3],[23,37,24,37],[23,38,24,38],[24,39,26,39],[21,46,23,46],[21,47,23,47],[21,48,23,48],[21,49,23,49],[21,50,23,50],[21,51,23,51],[21,40,23,40],[21,41,23,41],[21,42,23,42],[21,43,23,43],[21,44,23,44],[21,45,23,45],[25,2,26,2],[25,3,26,3],[25,37,26,37],[25,38,26,38],[24,46,26,46],[24,47,26,47],[24,48,26,48],[24,49,26,49],[24,50,26,50],[24,40,26,40],[24,41,26,41],[24,42,26,42],[24,43,26,43],[24,44,26,44],[24,45,26,45],[27,37,28,37],[27,38,28,38],[27,39,29,39],[27,40,29,40],[24,52,26,52],[24,53,26,53],[24,54,26,54],[24,55,26,55],[24,56,26,56],[24,51,26,51],[27,53,29,53],[27,54,29,54],[27,55,29,55],[27,56,29,56],[29,2,30,2],[29,3,30,3],[29,37,30,37],[29,38,30,38],[30,39,32,39],[30,40,32,40],[27,47,29,47],[27,48,29,48],[27,49,29,49],[27,50,29,50],[27,51,29,51],[27,52,29,52],[27,41,29,41],[27,42,29,42],[27,43,29,43],[27,44,29,44],[27,45,29,45],[27,46,29,46],[27,2,28,2],[27,3,28,3],[33,37,34,37],[33,38,34,38],[33,39,34,39],[33,40,34,40],[30,53,32,53],[30,54,32,54],[30,55,32,55],[30,56,32,56],[31,2,32,2],[31,3,32,3],[31,37,32,37],[31,38,32,38],[30,47,32,47],[30,48,32,48],[30,49,32,49],[30,50,32,50],[30,51,32,51],[30,52,32,52],[30,41,32,41],[30,42,32,42],[30,43,32,43],[30,44,32,44],[30,45,32,45],[30,46,32,46],[33,53,34,53],[33,54,34,54],[33,55,34,55],[33,56,34,56],[35,2,36,2],[35,3,36,3],[35,37,36,37],[35,38,36,38],[35,39,36,39],[35,40,36,40],[33,47,34,47],[33,48,34,48],[33,49,34,49],[33,50,34,50],[33,51,34,51],[33,52,34,52],[33,41,34,41],[33,42,34,42],[33,43,34,43],[33,44,34,44],[33,45,34,45],[33,46,34,46],[33,2,34,2],[33,3,34,3],[35,53,36,53],[35,54,36,54],[35,55,36,55],[35,56,36,56],[39,8,39,13],[39,15,39,17],[39,19,39,23],[35,47,36,47],[35,48,36,48],[35,49,36,49],[35,50,36,50],[35,51,36,51],[35,52,36,52],[35,41,36,41],[35,42,36,42],[35,43,36,43],[35,44,36,44],[35,45,36,45],[35,46,36,46],[43,3,43,48],[44,5,44,48],[45,26,48,53],[42,30,42,53],[40,0,40,6],[40,8,40,13],[40,15,40,17],[40,19,40,23],[41,8,41,13],[41,15,41,17],[41,19,41,23]]}
[]
[]
[]
[]
["название структурного подразделения"]
[null,null,null,null,null,null,null,null,"ГРАФИК РАБОТЫ",null,null,null,null,null,null,null,null,null,null,null,null,null,null,null,null,null,null,null,null,null,null,null,null,null,null,null,null,null,null,null,null,null,"с",null,null,null,null,"по","2020-05-31"]
[null,null,null,null,"обслуживающего персонала на",null,null,null,null,null,null,null,null,null,null,null,null,{"$f":"IF(DAY(D48)>=28,EDATE(D48,1),D48)","v":"2020-11-01"},null,null,null,null,null,"года",null,null,null,null,null,null,null,null,null,null,null,null,null,null,null,null,null,null,null,"Рабочих дней",null,null,null,{"$f":"VLOOKUP(AM8,'[4]производственный календарь '!$B$2:$D$13,3,0)","v":20},"Рабочих часов",null,null,null,null,null,null,null,null,{"$f":"VLOOKUP(AM8,'[4]производственный календарь '!$B$2:D13,2,0)","v":159}]
[null,null,null,null,null,null,null,null,null,null,null,null,null,null,null,null,null,"МАРТ",null,null,null,null,null,null,null,null,null,null,null,null,null,null,null,null,null,null,null,null,"ноябрь"]
["№ п/п","Табельний номер","Фамилия, и., о.","Профессия,\nдолжность","номер","Отметки о явках и неявках на работу по числам месяца (часов)",null,null,null,null,null,null,null,null,null,null,null,null,null,null,null,null,null,null,null,null,null,null,null,null,null,null,null,null,null,null,null," ","отработано за месяц",null,null,null,null,null,null,null,"Всего неявок","Дни неявок",null,null,null,null,null,null,null,null,"Выходные дни"]
[null,null,null,null,null,1,2,3,4,5,6,7,8,9,10,11,12,13,14,15,"X",16,17,18,19,20,21,22,23,24,25,26,27,28,29,30,31,"дни явок","всего отработано","часов",null,null,null,null,null,null,null,"Очередной отпуск","Больничные","Бесплатный отпуск (А)","Отпуск родовой","Учеьный отпуск","Отпуск ЧАЭС","Прогул","Отпуск женский","Командировка"]
[null,null,null,null,null,null,null,null,null,null,null,null,null,null,null,null,null,null,null,null,null,null,null,null,null,null,null,null,null,null,null,null,null,null,null,null,null,null,null,"всего отработано","из них"]
[null,null,null,null,null,null," "," ",null,null,null,null,null," ",null,null,null,null,null,null,null,null,null,null,null,null,null,null,null,null,null,null,null,null,null,null,null,null,null,null,"Ночные","Вечерние","Праздничные","Сверхурочные","Работы в выходной","Переработка"]
[null,null,null,null,null,null,null,null,null,null,null,null,null,null,null,null,null,null,null,null,"Х"]
[1,"2","3","4","5",null,null,null,null,null,null,null,null,null,null,null,null,null,null,null,"6",null,null,null,null,null,null,null,null,null,null,null,null,null,null,null,null,"7",null,"9",null,null,null,null,null,null,"10",null,null,null,null,null,null,null,null,null,"11",null,null,"Столбец1"]
[null,null,null,null,null,null,null,null,null,null,null,null,null,null,null,null,null,null,null,null,null,null,null,null,null,null,null,null,null,null,null,null,null,null,null,null,null,null,null,null,null,null,null,null,null,null,null,null,null,null,null,null,null,null,null,null,null,null,null,"управляющий участка"]
[null,null,null,"управляющий участка",null,{"$f":"IFERROR(INDEX('[4]ГРАФИК И.Б.НОЯБРЬ '!$AC25:$HF25,1,MATCH(F$10,'[4]ГРАФИК И.Б.НОЯБРЬ '!$AC$19:$HF$19,0)),\"\")","v":"06:00:00"},{"$f":"IFERROR(INDEX('[4]ГРАФИК И.Б.НОЯБРЬ '!$AC25:$HF25,1,MATCH(G$10,'[4]ГРАФИК И.Б.НОЯБРЬ '!$AC$19:$HF$19,0)),\"\")","v":"06:00:00"},{"$f":"IFERROR(INDEX('[4]ГРАФИК И.Б.НОЯБРЬ '!$AC25:$HF25,1,MATCH(H$10,'[4]ГРАФИК И.Б.НОЯБРЬ '!$AC$19:$HF$19,0)),\"\")","v":"05:00:00"},{"$f":"IFERROR(INDEX('[4]ГРАФИК И.Б.НОЯБРЬ '!$AC25:$HF25,1,MATCH(I$10,'[4]ГРАФИК И.Б.НОЯБРЬ '!$AC$19:$HF$19,0)),\"\")","v":"00:00:00"},{"$f":"IFERROR(INDEX('[4]ГРАФИК И.Б.НОЯБРЬ '!$AC25:$HF25,1,MATCH(J$10,'[4]ГРАФИК И.Б.НОЯБРЬ '!$AC$19:$HF$19,0)),\"\")","v":"06:00:00"},{"$f":"IFERROR(INDEX('[4]ГРАФИК И.Б.НОЯБРЬ '!$AC25:$HF25,1,MATCH(K$10,'[4]ГРАФИК И.Б.НОЯБРЬ '!$AC$19:$HF$19,0)),\"\")","v":"06:00:00"},{"$f":"IFERROR(INDEX('[4]ГРАФИК И.Б.НОЯБРЬ '!$AC25:$HF25,1,MATCH(L$10,'[4]ГРАФИК И.Б.НОЯБРЬ '!$AC$19:$HF$19,0)),\"\")","v":"06:00:00"},{"$f":"IFERROR(INDEX('[4]ГРАФИК И.Б.НОЯБРЬ '!$AC25:$HF25,1,MATCH(M$10,'[4]ГРАФИК И.Б.НОЯБРЬ '!$AC$19:$HF$19,0)),\"\")","v":"03:00:00"},{"$f":"IFERROR(INDEX('[4]ГРАФИК И.Б.НОЯБРЬ '!$AC25:$HF25,1,MATCH(N$10,'[4]ГРАФИК И.Б.НОЯБРЬ '!$AC$19:$HF$19,0)),\"\")","v":"03:00:00"},{"$f":"IFERROR(INDEX('[4]ГРАФИК И.Б.НОЯБРЬ '!$AC25:$HF25,1,MATCH(O$10,'[4]ГРАФИК И.Б.НОЯБРЬ '!$AC$19:$HF$19,0)),\"\")","v":"05:00:00"},{"$f":"IFERROR(INDEX('[4]ГРАФИК И.Б.НОЯБРЬ '!$AC25:$HF25,1,MATCH(P$10,'[4]ГРАФИК И.Б.НОЯБРЬ '!$AC$19:$HF$19,0)),\"\")","v":"00:00:00"},{"$f":"IFERROR(INDEX('[4]ГРАФИК И.Б.НОЯБРЬ '!$AC25:$HF25,1,MATCH(Q$10,'[4]ГРАФИК И.Б.НОЯБРЬ '!$AC$19:$HF$19,0)),\"\")","v":"06:00:00"},{"$f":"IFERROR(INDEX('[4]ГРАФИК И.Б.НОЯБРЬ '!$AC25:$HF25,1,MATCH(R$10,'[4]ГРАФИК И.Б.НОЯБРЬ '!$AC$19:$HF$19,0)),\"\")","v":"06:00:00"},{"$f":"IFERROR(INDEX('[4]ГРАФИК И.Б.НОЯБРЬ '!$AC25:$HF25,1,MATCH(S$10,'[4]ГРАФИК И.Б.НОЯБРЬ '!$AC$19:$HF$19,0)),\"\")","v":"07:00:00"},{"$f":"IFERROR(INDEX('[4]ГРАФИК И.Б.НОЯБРЬ '!$AC25:$HF25,1,MATCH(T$10,'[4]ГРАФИК И.Б.НОЯБРЬ '!$AC$19:$HF$19,0)),\"\")","v":"07:00:00"},{"$f":"IFERROR(INDEX('[4]ГРАФИК И.Б.НОЯБРЬ '!$AC25:$HF25,1,MATCH(U$10,'[4]ГРАФИК И.Б.НОЯБРЬ '!$AC$19:$HF$19,0)),\"\")","v":""},{"$f":"IFERROR(INDEX('[4]ГРАФИК И.Б.НОЯБРЬ '!$AC25:$HF25,1,MATCH(V$10,'[4]ГРАФИК И.Б.НОЯБРЬ '!$AC$19:$HF$19,0)),\"\")","v":"07:00:00"},{"$f":"IFERROR(INDEX('[4]ГРАФИК И.Б.НОЯБРЬ '!$AC25:$HF25,1,MATCH(W$10,'[4]ГРАФИК И.Б.НОЯБРЬ '!$AC$19:$HF$19,0)),\"\")","v":"05:00:00"},{"$f":"IFERROR(INDEX('[4]ГРАФИК И.Б.НОЯБРЬ '!$AC25:$HF25,1,MATCH(X$10,'[4]ГРАФИК И.Б.НОЯБРЬ '!$AC$19:$HF$19,0)),\"\")","v":"00:00:00"},{"$f":"IFERROR(INDEX('[4]ГРАФИК И.Б.НОЯБРЬ '!$AC25:$HF25,1,MATCH(Y$10,'[4]ГРАФИК И.Б.НОЯБРЬ '!$AC$19:$HF$19,0)),\"\")","v":"07:00:00"},{"$f":"IFERROR(INDEX('[4]ГРАФИК И.Б.НОЯБРЬ '!$AC25:$HF25,1,MATCH(Z$10,'[4]ГРАФИК И.Б.НОЯБРЬ '!$AC$19:$HF$19,0)),\"\")","v":"07:00:00"},{"$f":"IFERROR(INDEX('[4]ГРАФИК И.Б.НОЯБРЬ '!$AC25:$HF25,1,MATCH(AA$10,'[4]ГРАФИК И.Б.НОЯБРЬ '!$AC$19:$HF$19,0)),\"\")","v":"07:00:00"},{"$f":"IFERROR(INDEX('[4]ГРАФИК И.Б.НОЯБРЬ '!$AC25:$HF25,1,MATCH(AB$10,'[4]ГРАФИК И.Б.НОЯБРЬ '!$AC$19:$HF$19,0)),\"\")","v":"07:00:00"},{"$f":"IFERROR(INDEX('[4]ГРАФИК И.Б.НОЯБРЬ '!$AC25:$HF25,1,MATCH(AC$10,'[4]ГРАФИК И.Б.НОЯБРЬ '!$AC$19:$HF$19,0)),\"\")","v":"07:00:00"},{"$f":"IFERROR(INDEX('[4]ГРАФИК И.Б.НОЯБРЬ '!$AC25:$HF25,1,MATCH(AD$10,'[4]ГРАФИК И.Б.НОЯБРЬ '!$AC$19:$HF$19,0)),\"\")","v":"05:00:00"},{"$f":"IFERROR(INDEX('[4]ГРАФИК И.Б.НОЯБРЬ '!$AC25:$HF25,1,MATCH(AE$10,'[4]ГРАФИК И.Б.НОЯБРЬ '!$AC$19:$HF$19,0)),\"\")","v":"00:00:00"},{"$f":"IFERROR(INDEX('[4]ГРАФИК И.Б.НОЯБРЬ '!$AC25:$HF25,1,MATCH(AF$10,'[4]ГРАФИК И.Б.НОЯБРЬ '!$AC$19:$HF$19,0)),\"\")","v":"07:00:00"},{"$f":"IFERROR(INDEX('[4]ГРАФИК И.Б.НОЯБРЬ '!$AC25:$HF25,1,MATCH(AG$10,'[4]ГРАФИК И.Б.НОЯБРЬ '!$AC$19:$HF$19,0)),\"\")","v":"07:00:00"},{"$f":"IFERROR(INDEX('[4]ГРАФИК И.Б.НОЯБРЬ '!$AC25:$HF25,1,MATCH(AH$10,'[4]ГРАФИК И.Б.НОЯБРЬ '!$AC$19:$HF$19,0)),\"\")","v":"07:00:00"},{"$f":"IFERROR(INDEX('[4]ГРАФИК И.Б.НОЯБРЬ '!$AC25:$HF25,1,MATCH(AI$10,'[4]ГРАФИК И.Б.НОЯБРЬ '!$AC$19:$HF$19,0)),\"\")","v":"07:00:00"},{"$f":"IFERROR(INDEX('[4]ГРАФИК И.Б.НОЯБРЬ '!$AC25:$HF25,1,MATCH(AJ$10,'[4]ГРАФИК И.Б.НОЯБРЬ '!$AC$19:$HF$19,0)),\"\")","v":"07:00:00"},{"$f":"IFERROR(INDEX('[4]ГРАФИК И.Б.НОЯБРЬ '!$AC25:$HF25,1,MATCH(AK$10,'[4]ГРАФИК И.Б.НОЯБРЬ '!$AC$19:$HF$19,0)),\"\")","v":""},{"$f":"COUNTIF($F16:$AK16,\">0\")","v":26},{"$f":"SUM($F$16:$AK$16)","v":6.6250000000000018},null,null,null,null,null,null,null,null,{"$f":"COUNTIF($F17:$AK17,\"=От\")","v":0},null,null,null,null,null,null,null,null,{"$f":"COUNTIF(F17:AK17,\"В\")","v":4},null,null,"слесарь-ремонтник"]
[null,null,null,null,null,{"$f":"IF('[4]ГРАФИК И.Б.НОЯБРЬ '!AC22=\"ОТ\",\"ОТ\",IF(F16=0,\"В\",\"Я\"))","v":"Я"},{"$f":"IF('[4]ГРАФИК И.Б.НОЯБРЬ '!AD22=\"ОТ\",\"ОТ\",IF(G16=0,\"В\",\"Я\"))","v":"Я"},{"$f":"IF('[4]ГРАФИК И.Б.НОЯБРЬ '!AE22=\"ОТ\",\"ОТ\",IF(H16=0,\"В\",\"Я\"))","v":"Я"},{"$f":"IF('[4]ГРАФИК И.Б.НОЯБРЬ '!AF22=\"ОТ\",\"ОТ\",IF(I16=0,\"В\",\"Я\"))","v":"В"},{"$f":"IF('[4]ГРАФИК И.Б.НОЯБРЬ '!AG22=\"ОТ\",\"ОТ\",IF(J16=0,\"В\",\"Я\"))","v":"Я"},{"$f":"IF('[4]ГРАФИК И.Б.НОЯБРЬ '!AH22=\"ОТ\",\"ОТ\",IF(K16=0,\"В\",\"Я\"))","v":"Я"},{"$f":"IF('[4]ГРАФИК И.Б.НОЯБРЬ '!AI22=\"ОТ\",\"ОТ\",IF(L16=0,\"В\",\"Я\"))","v":"Я"},{"$f":"IF('[4]ГРАФИК И.Б.НОЯБРЬ '!AJ22=\"ОТ\",\"ОТ\",IF(M16=0,\"В\",\"Я\"))","v":"Я"},{"$f":"IF('[4]ГРАФИК И.Б.НОЯБРЬ '!AK22=\"ОТ\",\"ОТ\",IF(N16=0,\"В\",\"Я\"))","v":"Я"},{"$f":"IF('[4]ГРАФИК И.Б.НОЯБРЬ '!AL22=\"ОТ\",\"ОТ\",IF(O16=0,\"В\",\"Я\"))","v":"Я"},{"$f":"IF('[4]ГРАФИК И.Б.НОЯБРЬ '!AM22=\"ОТ\",\"ОТ\",IF(P16=0,\"В\",\"Я\"))","v":"В"},{"$f":"IF('[4]ГРАФИК И.Б.НОЯБРЬ '!AN22=\"ОТ\",\"ОТ\",IF(Q16=0,\"В\",\"Я\"))","v":"Я"},{"$f":"IF('[4]ГРАФИК И.Б.НОЯБРЬ '!AO22=\"ОТ\",\"ОТ\",IF(R16=0,\"В\",\"Я\"))","v":"Я"},{"$f":"IF('[4]ГРАФИК И.Б.НОЯБРЬ '!AP22=\"ОТ\",\"ОТ\",IF(S16=0,\"В\",\"Я\"))","v":"Я"},{"$f":"IF('[4]ГРАФИК И.Б.НОЯБРЬ '!AQ22=\"ОТ\",\"ОТ\",IF(T16=0,\"В\",\"Я\"))","v":"Я"}," ",{"$f":"IF('[4]ГРАФИК И.Б.НОЯБРЬ '!AS22=\"ОТ\",\"ОТ\",IF(V16=0,\"В\",\"Я\"))","v":"Я"},{"$f":"IF('[4]ГРАФИК И.Б.НОЯБРЬ '!AT22=\"ОТ\",\"ОТ\",IF(W16=0,\"В\",\"Я\"))","v":"Я"},{"$f":"IF('[4]ГРАФИК И.Б.НОЯБРЬ '!AU22=\"ОТ\",\"ОТ\",IF(X16=0,\"В\",\"Я\"))","v":"В"},{"$f":"IF('[4]ГРАФИК И.Б.НОЯБРЬ '!AV22=\"ОТ\",\"ОТ\",IF(Y16=0,\"В\",\"Я\"))","v":"Я"},{"$f":"IF('[4]ГРАФИК И.Б.НОЯБРЬ '!AW22=\"ОТ\",\"ОТ\",IF(Z16=0,\"В\",\"Я\"))","v":"Я"},{"$f":"IF('[4]ГРАФИК И.Б.НОЯБРЬ '!AX22=\"ОТ\",\"ОТ\",IF(AA16=0,\"В\",\"Я\"))","v":"Я"},{"$f":"IF('[4]ГРАФИК И.Б.НОЯБРЬ '!AY22=\"ОТ\",\"ОТ\",IF(AB16=0,\"В\",\"Я\"))","v":"Я"},{"$f":"IF('[4]ГРАФИК И.Б.НОЯБРЬ '!AZ22=\"ОТ\",\"ОТ\",IF(AC16=0,\"В\",\"Я\"))","v":"Я"},{"$f":"IF('[4]ГРАФИК И.Б.НОЯБРЬ '!BA22=\"ОТ\",\"ОТ\",IF(AD16=0,\"В\",\"Я\"))","v":"Я"},{"$f":"IF('[4]ГРАФИК И.Б.НОЯБРЬ '!BB22=\"ОТ\",\"ОТ\",IF(AE16=0,\"В\",\"Я\"))","v":"В"},{"$f":"IF('[4]ГРАФИК И.Б.НОЯБРЬ '!BC22=\"ОТ\",\"ОТ\",IF(AF16=0,\"В\",\"Я\"))","v":"Я"},{"$f":"IF('[4]ГРАФИК И.Б.НОЯБРЬ '!BD22=\"ОТ\",\"ОТ\",IF(AG16=0,\"В\",\"Я\"))","v":"Я"},{"$f":"IF('[4]ГРАФИК И.Б.НОЯБРЬ '!BE22=\"ОТ\",\"ОТ\",IF(AH16=0,\"В\",\"Я\"))","v":"Я"},{"$f":"IF('[4]ГРАФИК И.Б.НОЯБРЬ '!BF22=\"ОТ\",\"ОТ\",IF(AI16=0,\"В\",\"Я\"))","v":"Я"},{"$f":"IF('[4]ГРАФИК И.Б.НОЯБРЬ '!BG22=\"ОТ\",\"ОТ\",IF(AJ16=0,\"В\",\"Я\"))","v":"Я"},null,null,null,null,null,null,null,null,null,null,null,null,null,null,null,null,null,null,null,null,null,null,null,"кассир билетный"]
[null,null,null,"слесарь-ремонтник",null,{"$f":"IFERROR(INDEX('[4]ГРАФИК И.Б.НОЯБРЬ '!$AC31:$HF31,1,MATCH(F$10,'[4]ГРАФИК И.Б.НОЯБРЬ '!$AC$19:$HF$19,0)),\"\")","v":"00:00:00"},{"$f":"IFERROR(INDEX('[4]ГРАФИК И.Б.НОЯБРЬ '!$AC31:$HF31,1,MATCH(G$10,'[4]ГРАФИК И.Б.НОЯБРЬ '!$AC$19:$HF$19,0)),\"\")","v":"00:00:00"},{"$f":"IFERROR(INDEX('[4]ГРАФИК И.Б.НОЯБРЬ '!$AC31:$HF31,1,MATCH(H$10,'[4]ГРАФИК И.Б.НОЯБРЬ '!$AC$19:$HF$19,0)),\"\")","v":"09:00:00"},{"$f":"IFERROR(INDEX('[4]ГРАФИК И.Б.НОЯБРЬ '!$AC31:$HF31,1,MATCH(I$10,'[4]ГРАФИК И.Б.НОЯБРЬ '!$AC$19:$HF$19,0)),\"\")","v":"00:00:00"},{"$f":"IFERROR(INDEX('[4]ГРАФИК И.Б.НОЯБРЬ '!$AC31:$HF31,1,MATCH(J$10,'[4]ГРАФИК И.Б.НОЯБРЬ '!$AC$19:$HF$19,0)),\"\")","v":"09:00:00"},{"$f":"IFERROR(INDEX('[4]ГРАФИК И.Б.НОЯБРЬ '!$AC31:$HF31,1,MATCH(K$10,'[4]ГРАФИК И.Б.НОЯБРЬ '!$AC$19:$HF$19,0)),\"\")","v":"09:00:00"},{"$f":"IFERROR(INDEX('[4]ГРАФИК И.Б.НОЯБРЬ '!$AC31:$HF31,1,MATCH(L$10,'[4]ГРАФИК И.Б.НОЯБРЬ '!$AC$19:$HF$19,0)),\"\")","v":"09:00:00"},{"$f":"IFERROR(INDEX('[4]ГРАФИК И.Б.НОЯБРЬ '!$AC31:$HF31,1,MATCH(M$10,'[4]ГРАФИК И.Б.НОЯБРЬ '!$AC$19:$HF$19,0)),\"\")","v":"00:00:00"},{"$f":"IFERROR(INDEX('[4]ГРАФИК И.Б.НОЯБРЬ '!$AC31:$HF31,1,MATCH(N$10,'[4]ГРАФИК И.Б.НОЯБРЬ '!$AC$19:$HF$19,0)),\"\")","v":"00:00:00"},{"$f":"IFERROR(INDEX('[4]ГРАФИК И.Б.НОЯБРЬ '!$AC31:$HF31,1,MATCH(O$10,'[4]ГРАФИК И.Б.НОЯБРЬ '!$AC$19:$HF$19,0)),\"\")","v":"09:00:00"},{"$f":"IFERROR(INDEX('[4]ГРАФИК И.Б.НОЯБРЬ '!$AC31:$HF31,1,MATCH(P$10,'[4]ГРАФИК И.Б.НОЯБРЬ '!$AC$19:$HF$19,0)),\"\")","v":"09:00:00"},{"$f":"IFERROR(INDEX('[4]ГРАФИК И.Б.НОЯБРЬ '!$AC31:$HF31,1,MATCH(Q$10,'[4]ГРАФИК И.Б.НОЯБРЬ '!$AC$19:$HF$19,0)),\"\")","v":"09:00:00"},{"$f":"IFERROR(INDEX('[4]ГРАФИК И.Б.НОЯБРЬ '!$AC31:$HF31,1,MATCH(R$10,'[4]ГРАФИК И.Б.НОЯБРЬ '!$AC$19:$HF$19,0)),\"\")","v":"08:00:00"},{"$f":"IFERROR(INDEX('[4]ГРАФИК И.Б.НОЯБРЬ '!$AC31:$HF31,1,MATCH(S$10,'[4]ГРАФИК И.Б.НОЯБРЬ '!$AC$19:$HF$19,0)),\"\")","v":"08:00:00"},{"$f":"IFERROR(INDEX('[4]ГРАФИК И.Б.НОЯБРЬ '!$AC31:$HF31,1,MATCH(T$10,'[4]ГРАФИК И.Б.НОЯБРЬ '!$AC$19:$HF$19,0)),\"\")","v":"00:00:00"},{"$f":"IFERROR(INDEX('[4]ГРАФИК И.Б.НОЯБРЬ '!$AC31:$HF31,1,MATCH(U$10,'[4]ГРАФИК И.Б.НОЯБРЬ '!$AC$19:$HF$19,0)),\"\")","v":""},{"$f":"IFERROR(INDEX('[4]ГРАФИК И.Б.НОЯБРЬ '!$AC31:$HF31,1,MATCH(V$10,'[4]ГРАФИК И.Б.НОЯБРЬ '!$AC$19:$HF$19,0)),\"\")","v":"00:00:00"},{"$f":"IFERROR(INDEX('[4]ГРАФИК И.Б.НОЯБРЬ '!$AC31:$HF31,1,MATCH(W$10,'[4]ГРАФИК И.Б.НОЯБРЬ '!$AC$19:$HF$19,0)),\"\")","v":"08:00:00"},{"$f":"IFERROR(INDEX('[4]ГРАФИК И.Б.НОЯБРЬ '!$AC31:$HF31,1,MATCH(X$10,'[4]ГРАФИК И.Б.НОЯБРЬ '!$AC$19:$HF$19,0)),\"\")","v":"08:00:00"},{"$f":"IFERROR(INDEX('[4]ГРАФИК И.Б.НОЯБРЬ '!$AC31:$HF31,1,MATCH(Y$10,'[4]ГРАФИК И.Б.НОЯБРЬ '!$AC$19:$HF$19,0)),\"\")","v":"08:00:00"},{"$f":"IFERROR(INDEX('[4]ГРАФИК И.Б.НОЯБРЬ '!$AC31:$HF31,1,MATCH(Z$10,'[4]ГРАФИК И.Б.НОЯБРЬ '!$AC$19:$HF$19,0)),\"\")","v":"08:00:00"},{"$f":"IFERROR(INDEX('[4]ГРАФИК И.Б.НОЯБРЬ '!$AC31:$HF31,1,MATCH(AA$10,'[4]ГРАФИК И.Б.НОЯБРЬ '!$AC$19:$HF$19,0)),\"\")","v":"08:00:00"},{"$f":"IFERROR(INDEX('[4]ГРАФИК И.Б.НОЯБРЬ '!$AC31:$HF31,1,MATCH(AB$10,'[4]ГРАФИК И.Б.НОЯБРЬ '!$AC$19:$HF$19,0)),\"\")","v":"00:00:00"},{"$f":"IFERROR(INDEX('[4]ГРАФИК И.Б.НОЯБРЬ '!$AC31:$HF31,1,MATCH(AC$10,'[4]ГРАФИК И.Б.НОЯБРЬ '!$AC$19:$HF$19,0)),\"\")","v":"00:00:00"},{"$f":"IFERROR(INDEX('[4]ГРАФИК И.Б.НОЯБРЬ '!$AC31:$HF31,1,MATCH(AD$10,'[4]ГРАФИК И.Б.НОЯБРЬ '!$AC$19:$HF$19,0)),\"\")","v":"08:00:00"},{"$f":"IFERROR(INDEX('[4]ГРАФИК И.Б.НОЯБРЬ '!$AC31:$HF31,1,MATCH(AE$10,'[4]ГРАФИК И.Б.НОЯБРЬ '!$AC$19:$HF$19,0)),\"\")","v":"08:00:00"},{"$f":"IFERROR(INDEX('[4]ГРАФИК И.Б.НОЯБРЬ '!$AC31:$HF31,1,MATCH(AF$10,'[4]ГРАФИК И.Б.НОЯБРЬ '!$AC$19:$HF$19,0)),\"\")","v":"08:00:00"},{"$f":"IFERROR(INDEX('[4]ГРАФИК И.Б.НОЯБРЬ '!$AC31:$HF31,1,MATCH(AG$10,'[4]ГРАФИК И.Б.НОЯБРЬ '!$AC$19:$HF$19,0)),\"\")","v":"08:00:00"},{"$f":"IFERROR(INDEX('[4]ГРАФИК И.Б.НОЯБРЬ '!$AC31:$HF31,1,MATCH(AH$10,'[4]ГРАФИК И.Б.НОЯБРЬ '!$AC$19:$HF$19,0)),\"\")","v":"08:00:00"},{"$f":"IFERROR(INDEX('[4]ГРАФИК И.Б.НОЯБРЬ '!$AC31:$HF31,1,MATCH(AI$10,'[4]ГРАФИК И.Б.НОЯБРЬ '!$AC$19:$HF$19,0)),\"\")","v":"00:00:00"},{"$f":"IFERROR(INDEX('[4]ГРАФИК И.Б.НОЯБРЬ '!$AC31:$HF31,1,MATCH(AJ$10,'[4]ГРАФИК И.Б.НОЯБРЬ '!$AC$19:$HF$19,0)),\"\")","v":"00:00:00"},{"$f":"IFERROR(INDEX('[4]ГРАФИК И.Б.НОЯБРЬ '!$AC31:$HF31,1,MATCH(AK$10,'[4]ГРАФИК И.Б.НОЯБРЬ '!$AC$19:$HF$19,0)),\"\")","v":""},{"$f":"COUNTIF($F18:$AK18,\">0\")","v":19},{"$f":"SUM($F$18:$AK$18)","v":6.6249999999999982},null,null,null,null,null,null,null,null,null,null,null,null,null,null,null,null,null,{"$f":"COUNTIF(F19:AK19,\"В\")","v":11},null,null,"контролёр-посадчик аттракциона"]
[null,null,null,null,null,{"$f":"IF('[4]ГРАФИК И.Б.НОЯБРЬ '!AC28=\"ОТ\",\"ОТ\",IF(F18=0,\"В\",\"Я\"))","v":"В"},{"$f":"IF('[4]ГРАФИК И.Б.НОЯБРЬ '!AD28=\"ОТ\",\"ОТ\",IF(G18=0,\"В\",\"Я\"))","v":"В"},{"$f":"IF('[4]ГРАФИК И.Б.НОЯБРЬ '!AE28=\"ОТ\",\"ОТ\",IF(H18=0,\"В\",\"Я\"))","v":"Я"},{"$f":"IF('[4]ГРАФИК И.Б.НОЯБРЬ '!AF28=\"ОТ\",\"ОТ\",IF(I18=0,\"В\",\"Я\"))","v":"В"},{"$f":"IF('[4]ГРАФИК И.Б.НОЯБРЬ '!AG28=\"ОТ\",\"ОТ\",IF(J18=0,\"В\",\"Я\"))","v":"Я"},{"$f":"IF('[4]ГРАФИК И.Б.НОЯБРЬ '!AH28=\"ОТ\",\"ОТ\",IF(K18=0,\"В\",\"Я\"))","v":"Я"},{"$f":"IF('[4]ГРАФИК И.Б.НОЯБРЬ '!AI28=\"ОТ\",\"ОТ\",IF(L18=0,\"В\",\"Я\"))","v":"Я"},{"$f":"IF('[4]ГРАФИК И.Б.НОЯБРЬ '!AJ28=\"ОТ\",\"ОТ\",IF(M18=0,\"В\",\"Я\"))","v":"В"},{"$f":"IF('[4]ГРАФИК И.Б.НОЯБРЬ '!AK28=\"ОТ\",\"ОТ\",IF(N18=0,\"В\",\"Я\"))","v":"В"},{"$f":"IF('[4]ГРАФИК И.Б.НОЯБРЬ '!AL28=\"ОТ\",\"ОТ\",IF(O18=0,\"В\",\"Я\"))","v":"Я"},{"$f":"IF('[4]ГРАФИК И.Б.НОЯБРЬ '!AM28=\"ОТ\",\"ОТ\",IF(P18=0,\"В\",\"Я\"))","v":"Я"},{"$f":"IF('[4]ГРАФИК И.Б.НОЯБРЬ '!AN28=\"ОТ\",\"ОТ\",IF(Q18=0,\"В\",\"Я\"))","v":"Я"},{"$f":"IF('[4]ГРАФИК И.Б.НОЯБРЬ '!AO28=\"ОТ\",\"ОТ\",IF(R18=0,\"В\",\"Я\"))","v":"Я"},{"$f":"IF('[4]ГРАФИК И.Б.НОЯБРЬ '!AP28=\"ОТ\",\"ОТ\",IF(S18=0,\"В\",\"Я\"))","v":"Я"},{"$f":"IF('[4]ГРАФИК И.Б.НОЯБРЬ '!AQ28=\"ОТ\",\"ОТ\",IF(T18=0,\"В\",\"Я\"))","v":"В"}," ",{"$f":"IF('[4]ГРАФИК И.Б.НОЯБРЬ '!AS28=\"ОТ\",\"ОТ\",IF(V18=0,\"В\",\"Я\"))","v":"В"},{"$f":"IF('[4]ГРАФИК И.Б.НОЯБРЬ '!AT28=\"ОТ\",\"ОТ\",IF(W18=0,\"В\",\"Я\"))","v":"Я"},{"$f":"IF('[4]ГРАФИК И.Б.НОЯБРЬ '!AU28=\"ОТ\",\"ОТ\",IF(X18=0,\"В\",\"Я\"))","v":"Я"},{"$f":"IF('[4]ГРАФИК И.Б.НОЯБРЬ '!AV28=\"ОТ\",\"ОТ\",IF(Y18=0,\"В\",\"Я\"))","v":"Я"},{"$f":"IF('[4]ГРАФИК И.Б.НОЯБРЬ '!AW28=\"ОТ\",\"ОТ\",IF(Z18=0,\"В\",\"Я\"))","v":"Я"},{"$f":"IF('[4]ГРАФИК И.Б.НОЯБРЬ '!AX28=\"ОТ\",\"ОТ\",IF(AA18=0,\"В\",\"Я\"))","v":"Я"},{"$f":"IF('[4]ГРАФИК И.Б.НОЯБРЬ '!AY28=\"ОТ\",\"ОТ\",IF(AB18=0,\"В\",\"Я\"))","v":"В"},{"$f":"IF('[4]ГРАФИК И.Б.НОЯБРЬ '!AZ28=\"ОТ\",\"ОТ\",IF(AC18=0,\"В\",\"Я\"))","v":"В"},{"$f":"IF('[4]ГРАФИК И.Б.НОЯБРЬ '!BA28=\"ОТ\",\"ОТ\",IF(AD18=0,\"В\",\"Я\"))","v":"Я"},{"$f":"IF('[4]ГРАФИК И.Б.НОЯБРЬ '!BB28=\"ОТ\",\"ОТ\",IF(AE18=0,\"В\",\"Я\"))","v":"Я"},{"$f":"IF('[4]ГРАФИК И.Б.НОЯБРЬ '!BC28=\"ОТ\",\"ОТ\",IF(AF18=0,\"В\",\"Я\"))","v":"Я"},{"$f":"IF('[4]ГРАФИК И.Б.НОЯБРЬ '!BD28=\"ОТ\",\"ОТ\",IF(AG18=0,\"В\",\"Я\"))","v":"Я"},{"$f":"IF('[4]ГРАФИК И.Б.НОЯБРЬ '!BE28=\"ОТ\",\"ОТ\",IF(AH18=0,\"В\",\"Я\"))","v":"Я"},{"$f":"IF('[4]ГРАФИК И.Б.НОЯБРЬ '!BF28=\"ОТ\",\"ОТ\",IF(AI18=0,\"В\",\"Я\"))","v":"В"},{"$f":"IF('[4]ГРАФИК И.Б.НОЯБРЬ '!BG28=\"ОТ\",\"ОТ\",IF(AJ18=0,\"В\",\"Я\"))","v":"В"},null,null,null,null,null,null,null,null,null,null,null,null,null,null,null,null,null,null,null,null,null,null,null,"сторож"]
[null,null,null,"кассир билетный",null,{"$f":"INDEX('[4]ГРАФИК И.Б.НОЯБРЬ '!$AC37:$HF37,1,MATCH(F$10,'[4]ГРАФИК И.Б.НОЯБРЬ '!$AC$19:$HF$19,0))","v":"00:00:00"},{"$f":"INDEX('[4]ГРАФИК И.Б.НОЯБРЬ '!$AC37:$HF37,1,MATCH(G$10,'[4]ГРАФИК И.Б.НОЯБРЬ '!$AC$19:$HF$19,0))","v":"11:00:00"},{"$f":"INDEX('[4]ГРАФИК И.Б.НОЯБРЬ '!$AC37:$HF37,1,MATCH(H$10,'[4]ГРАФИК И.Б.НОЯБРЬ '!$AC$19:$HF$19,0))","v":"00:00:00"},{"$f":"INDEX('[4]ГРАФИК И.Б.НОЯБРЬ '!$AC37:$HF37,1,MATCH(I$10,'[4]ГРАФИК И.Б.НОЯБРЬ '!$AC$19:$HF$19,0))","v":"11:00:00"},{"$f":"INDEX('[4]ГРАФИК И.Б.НОЯБРЬ '!$AC37:$HF37,1,MATCH(J$10,'[4]ГРАФИК И.Б.НОЯБРЬ '!$AC$19:$HF$19,0))","v":"00:00:00"},{"$f":"INDEX('[4]ГРАФИК И.Б.НОЯБРЬ '!$AC37:$HF37,1,MATCH(K$10,'[4]ГРАФИК И.Б.НОЯБРЬ '!$AC$19:$HF$19,0))","v":"11:00:00"},{"$f":"INDEX('[4]ГРАФИК И.Б.НОЯБРЬ '!$AC37:$HF37,1,MATCH(L$10,'[4]ГРАФИК И.Б.НОЯБРЬ '!$AC$19:$HF$19,0))","v":"00:00:00"},{"$f":"INDEX('[4]ГРАФИК И.Б.НОЯБРЬ '!$AC37:$HF37,1,MATCH(M$10,'[4]ГРАФИК И.Б.НОЯБРЬ '!$AC$19:$HF$19,0))","v":"11:00:00"},{"$f":"INDEX('[4]ГРАФИК И.Б.НОЯБРЬ '!$AC37:$HF37,1,MATCH(N$10,'[4]ГРАФИК И.Б.НОЯБРЬ '!$AC$19:$HF$19,0))","v":"00:00:00"},{"$f":"INDEX('[4]ГРАФИК И.Б.НОЯБРЬ '!$AC37:$HF37,1,MATCH(O$10,'[4]ГРАФИК И.Б.НОЯБРЬ '!$AC$19:$HF$19,0))","v":"11:00:00"},{"$f":"INDEX('[4]ГРАФИК И.Б.НОЯБРЬ '!$AC37:$HF37,1,MATCH(P$10,'[4]ГРАФИК И.Б.НОЯБРЬ '!$AC$19:$HF$19,0))","v":"00:00:00"},{"$f":"INDEX('[4]ГРАФИК И.Б.НОЯБРЬ '!$AC37:$HF37,1,MATCH(Q$10,'[4]ГРАФИК И.Б.НОЯБРЬ '!$AC$19:$HF$19,0))","v":"11:00:00"},{"$f":"INDEX('[4]ГРАФИК И.Б.НОЯБРЬ '!$AC37:$HF37,1,MATCH(R$10,'[4]ГРАФИК И.Б.НОЯБРЬ '!$AC$19:$HF$19,0))","v":"00:00:00"},{"$f":"INDEX('[4]ГРАФИК И.Б.НОЯБРЬ '!$AC37:$HF37,1,MATCH(S$10,'[4]ГРАФИК И.Б.НОЯБРЬ '!$AC$19:$HF$19,0))","v":"11:00:00"},{"$f":"INDEX('[4]ГРАФИК И.Б.НОЯБРЬ '!$AC37:$HF37,1,MATCH(T$10,'[4]ГРАФИК И.Б.НОЯБРЬ '!$AC$19:$HF$19,0))","v":"00:00:00"},null,{"$f":"INDEX('[4]ГРАФИК И.Б.НОЯБРЬ '!$AC37:$HF37,1,MATCH(V$10,'[4]ГРАФИК И.Б.НОЯБРЬ '!$AC$19:$HF$19,0))","v":"11:00:00"},{"$f":"INDEX('[4]ГРАФИК И.Б.НОЯБРЬ '!$AC37:$HF37,1,MATCH(W$10,'[4]ГРАФИК И.Б.НОЯБРЬ '!$AC$19:$HF$19,0))","v":"00:00:00"},{"$f":"INDEX('[4]ГРАФИК И.Б.НОЯБРЬ '!$AC37:$HF37,1,MATCH(X$10,'[4]ГРАФИК И.Б.НОЯБРЬ '!$AC$19:$HF$19,0))","v":"11:00:00"},{"$f":"INDEX('[4]ГРАФИК И.Б.НОЯБРЬ '!$AC37:$HF37,1,MATCH(Y$10,'[4]ГРАФИК И.Б.НОЯБРЬ '!$AC$19:$HF$19,0))","v":"00:00:00"},{"$f":"INDEX('[4]ГРАФИК И.Б.НОЯБРЬ '!$AC37:$HF37,1,MATCH(Z$10,'[4]ГРАФИК И.Б.НОЯБРЬ '!$AC$19:$HF$19,0))","v":"10:00:00"},{"$f":"INDEX('[4]ГРАФИК И.Б.НОЯБРЬ '!$AC37:$HF37,1,MATCH(AA$10,'[4]ГРАФИК И.Б.НОЯБРЬ '!$AC$19:$HF$19,0))","v":"00:00:00"},{"$f":"INDEX('[4]ГРАФИК И.Б.НОЯБРЬ '!$AC37:$HF37,1,MATCH(AB$10,'[4]ГРАФИК И.Б.НОЯБРЬ '!$AC$19:$HF$19,0))","v":"10:00:00"},{"$f":"INDEX('[4]ГРАФИК И.Б.НОЯБРЬ '!$AC37:$HF37,1,MATCH(AC$10,'[4]ГРАФИК И.Б.НОЯБРЬ '!$AC$19:$HF$19,0))","v":"00:00:00"},{"$f":"INDEX('[4]ГРАФИК И.Б.НОЯБРЬ '!$AC37:$HF37,1,MATCH(AD$10,'[4]ГРАФИК И.Б.НОЯБРЬ '!$AC$19:$HF$19,0))","v":"10:00:00"},{"$f":"INDEX('[4]ГРАФИК И.Б.НОЯБРЬ '!$AC37:$HF37,1,MATCH(AE$10,'[4]ГРАФИК И.Б.НОЯБРЬ '!$AC$19:$HF$19,0))","v":"00:00:00"},{"$f":"INDEX('[4]ГРАФИК И.Б.НОЯБРЬ '!$AC37:$HF37,1,MATCH(AF$10,'[4]ГРАФИК И.Б.НОЯБРЬ '!$AC$19:$HF$19,0))","v":"10:00:00"},{"$f":"INDEX('[4]ГРАФИК И.Б.НОЯБРЬ '!$AC37:$HF37,1,MATCH(AG$10,'[4]ГРАФИК И.Б.НОЯБРЬ '!$AC$19:$HF$19,0))","v":"00:00:00"},{"$f":"INDEX('[4]ГРАФИК И.Б.НОЯБРЬ '!$AC37:$HF37,1,MATCH(AH$10,'[4]ГРАФИК И.Б.НОЯБРЬ '!$AC$19:$HF$19,0))","v":"10:00:00"},{"$f":"INDEX('[4]ГРАФИК И.Б.НОЯБРЬ '!$AC37:$HF37,1,MATCH(AI$10,'[4]ГРАФИК И.Б.НОЯБРЬ '!$AC$19:$HF$19,0))","v":"00:00:00"},{"$f":"INDEX('[4]ГРАФИК И.Б.НОЯБРЬ '!$AC37:$HF37,1,MATCH(AJ$10,'[4]ГРАФИК И.Б.НОЯБРЬ '!$AC$19:$HF$19,0))","v":"10:00:00"},null,{"$f":"COUNTIF($F20:$AK20,\">0\")","v":15},{"$f":"SUM($F$20:$AK$20)","v":6.6250000000000018},null,null,null,null,null,null,null,null,null,null,null,null,null,null,null,null,null,{"$f":"COUNTIF(F21:AK21,\"В\")","v":15},null,null,"дворник"]
[null,null,null,null,null,{"$f":"IF('[4]ГРАФИК И.Б.НОЯБРЬ '!AC34=\"ОТ\",\"ОТ\",IF(F20=0,\"В\",\"Я\"))","v":"В"},{"$f":"IF('[4]ГРАФИК И.Б.НОЯБРЬ '!AD34=\"ОТ\",\"ОТ\",IF(G20=0,\"В\",\"Я\"))","v":"Я"},{"$f":"IF('[4]ГРАФИК И.Б.НОЯБРЬ '!AE34=\"ОТ\",\"ОТ\",IF(H20=0,\"В\",\"Я\"))","v":"В"},{"$f":"IF('[4]ГРАФИК И.Б.НОЯБРЬ '!AF34=\"ОТ\",\"ОТ\",IF(I20=0,\"В\",\"Я\"))","v":"Я"},{"$f":"IF('[4]ГРАФИК И.Б.НОЯБРЬ '!AG34=\"ОТ\",\"ОТ\",IF(J20=0,\"В\",\"Я\"))","v":"В"},{"$f":"IF('[4]ГРАФИК И.Б.НОЯБРЬ '!AH34=\"ОТ\",\"ОТ\",IF(K20=0,\"В\",\"Я\"))","v":"Я"},{"$f":"IF('[4]ГРАФИК И.Б.НОЯБРЬ '!AI34=\"ОТ\",\"ОТ\",IF(L20=0,\"В\",\"Я\"))","v":"В"},{"$f":"IF('[4]ГРАФИК И.Б.НОЯБРЬ '!AJ34=\"ОТ\",\"ОТ\",IF(M20=0,\"В\",\"Я\"))","v":"Я"},{"$f":"IF('[4]ГРАФИК И.Б.НОЯБРЬ '!AK34=\"ОТ\",\"ОТ\",IF(N20=0,\"В\",\"Я\"))","v":"В"},{"$f":"IF('[4]ГРАФИК И.Б.НОЯБРЬ '!AL34=\"ОТ\",\"ОТ\",IF(O20=0,\"В\",\"Я\"))","v":"Я"},{"$f":"IF('[4]ГРАФИК И.Б.НОЯБРЬ '!AM34=\"ОТ\",\"ОТ\",IF(P20=0,\"В\",\"Я\"))","v":"В"},{"$f":"IF('[4]ГРАФИК И.Б.НОЯБРЬ '!AN34=\"ОТ\",\"ОТ\",IF(Q20=0,\"В\",\"Я\"))","v":"Я"},{"$f":"IF('[4]ГРАФИК И.Б.НОЯБРЬ '!AO34=\"ОТ\",\"ОТ\",IF(R20=0,\"В\",\"Я\"))","v":"В"},{"$f":"IF('[4]ГРАФИК И.Б.НОЯБРЬ '!AP34=\"ОТ\",\"ОТ\",IF(S20=0,\"В\",\"Я\"))","v":"Я"},{"$f":"IF('[4]ГРАФИК И.Б.НОЯБРЬ '!AQ34=\"ОТ\",\"ОТ\",IF(T20=0,\"В\",\"Я\"))","v":"В"}," ",{"$f":"IF('[4]ГРАФИК И.Б.НОЯБРЬ '!AS34=\"ОТ\",\"ОТ\",IF(V20=0,\"В\",\"Я\"))","v":"Я"},{"$f":"IF('[4]ГРАФИК И.Б.НОЯБРЬ '!AT34=\"ОТ\",\"ОТ\",IF(W20=0,\"В\",\"Я\"))","v":"В"},{"$f":"IF('[4]ГРАФИК И.Б.НОЯБРЬ '!AU34=\"ОТ\",\"ОТ\",IF(X20=0,\"В\",\"Я\"))","v":"Я"},{"$f":"IF('[4]ГРАФИК И.Б.НОЯБРЬ '!AV34=\"ОТ\",\"ОТ\",IF(Y20=0,\"В\",\"Я\"))","v":"В"},{"$f":"IF('[4]ГРАФИК И.Б.НОЯБРЬ '!AW34=\"ОТ\",\"ОТ\",IF(Z20=0,\"В\",\"Я\"))","v":"Я"},{"$f":"IF('[4]ГРАФИК И.Б.НОЯБРЬ '!AX34=\"ОТ\",\"ОТ\",IF(AA20=0,\"В\",\"Я\"))","v":"В"},{"$f":"IF('[4]ГРАФИК И.Б.НОЯБРЬ '!AY34=\"ОТ\",\"ОТ\",IF(AB20=0,\"В\",\"Я\"))","v":"Я"},{"$f":"IF('[4]ГРАФИК И.Б.НОЯБРЬ '!AZ34=\"ОТ\",\"ОТ\",IF(AC20=0,\"В\",\"Я\"))","v":"В"},{"$f":"IF('[4]ГРАФИК И.Б.НОЯБРЬ '!BA34=\"ОТ\",\"ОТ\",IF(AD20=0,\"В\",\"Я\"))","v":"Я"},{"$f":"IF('[4]ГРАФИК И.Б.НОЯБРЬ '!BB34=\"ОТ\",\"ОТ\",IF(AE20=0,\"В\",\"Я\"))","v":"В"},{"$f":"IF('[4]ГРАФИК И.Б.НОЯБРЬ '!BC34=\"ОТ\",\"ОТ\",IF(AF20=0,\"В\",\"Я\"))","v":"Я"},{"$f":"IF('[4]ГРАФИК И.Б.НОЯБРЬ '!BD34=\"ОТ\",\"ОТ\",IF(AG20=0,\"В\",\"Я\"))","v":"В"},{"$f":"IF('[4]ГРАФИК И.Б.НОЯБРЬ '!BE34=\"ОТ\",\"ОТ\",IF(AH20=0,\"В\",\"Я\"))","v":"Я"},{"$f":"IF('[4]ГРАФИК И.Б.НОЯБРЬ '!BF34=\"ОТ\",\"ОТ\",IF(AI20=0,\"В\",\"Я\"))","v":"В"},{"$f":"IF('[4]ГРАФИК И.Б.НОЯБРЬ '!BG34=\"ОТ\",\"ОТ\",IF(AJ20=0,\"В\",\"Я\"))","v":"Я"}]
[null,null,null,"кассир билетный",null,{"$f":"IFERROR(INDEX('[4]ГРАФИК И.Б.НОЯБРЬ '!$AC43:$HF43,1,MATCH(F$10,'[4]ГРАФИК И.Б.НОЯБРЬ '!$AC$19:$HF$19,0)),\"\")","v":"11:00:00"},{"$f":"IFERROR(INDEX('[4]ГРАФИК И.Б.НОЯБРЬ '!$AC43:$HF43,1,MATCH(G$10,'[4]ГРАФИК И.Б.НОЯБРЬ '!$AC$19:$HF$19,0)),\"\")","v":"00:00:00"},{"$f":"IFERROR(INDEX('[4]ГРАФИК И.Б.НОЯБРЬ '!$AC43:$HF43,1,MATCH(H$10,'[4]ГРАФИК И.Б.НОЯБРЬ '!$AC$19:$HF$19,0)),\"\")","v":"11:00:00"},{"$f":"IFERROR(INDEX('[4]ГРАФИК И.Б.НОЯБРЬ '!$AC43:$HF43,1,MATCH(I$10,'[4]ГРАФИК И.Б.НОЯБРЬ '!$AC$19:$HF$19,0)),\"\")","v":"00:00:00"},{"$f":"IFERROR(INDEX('[4]ГРАФИК И.Б.НОЯБРЬ '!$AC43:$HF43,1,MATCH(J$10,'[4]ГРАФИК И.Б.НОЯБРЬ '!$AC$19:$HF$19,0)),\"\")","v":"11:00:00"},{"$f":"IFERROR(INDEX('[4]ГРАФИК И.Б.НОЯБРЬ '!$AC43:$HF43,1,MATCH(K$10,'[4]ГРАФИК И.Б.НОЯБРЬ '!$AC$19:$HF$19,0)),\"\")","v":"00:00:00"},{"$f":"IFERROR(INDEX('[4]ГРАФИК И.Б.НОЯБРЬ '!$AC43:$HF43,1,MATCH(L$10,'[4]ГРАФИК И.Б.НОЯБРЬ '!$AC$19:$HF$19,0)),\"\")","v":"11:00:00"},{"$f":"IFERROR(INDEX('[4]ГРАФИК И.Б.НОЯБРЬ '!$AC43:$HF43,1,MATCH(M$10,'[4]ГРАФИК И.Б.НОЯБРЬ '!$AC$19:$HF$19,0)),\"\")","v":"00:00:00"},{"$f":"IFERROR(INDEX('[4]ГРАФИК И.Б.НОЯБРЬ '!$AC43:$HF43,1,MATCH(N$10,'[4]ГРАФИК И.Б.НОЯБРЬ '!$AC$19:$HF$19,0)),\"\")","v":"11:00:00"},{"$f":"IFERROR(INDEX('[4]ГРАФИК И.Б.НОЯБРЬ '!$AC43:$HF43,1,MATCH(O$10,'[4]ГРАФИК И.Б.НОЯБРЬ '!$AC$19:$HF$19,0)),\"\")","v":"00:00:00"},{"$f":"IFERROR(INDEX('[4]ГРАФИК И.Б.НОЯБРЬ '!$AC43:$HF43,1,MATCH(P$10,'[4]ГРАФИК И.Б.НОЯБРЬ '!$AC$19:$HF$19,0)),\"\")","v":"11:00:00"},{"$f":"IFERROR(INDEX('[4]ГРАФИК И.Б.НОЯБРЬ '!$AC43:$HF43,1,MATCH(Q$10,'[4]ГРАФИК И.Б.НОЯБРЬ '!$AC$19:$HF$19,0)),\"\")","v":"00:00:00"},{"$f":"IFERROR(INDEX('[4]ГРАФИК И.Б.НОЯБРЬ '!$AC43:$HF43,1,MATCH(R$10,'[4]ГРАФИК И.Б.НОЯБРЬ '!$AC$19:$HF$19,0)),\"\")","v":"11:00:00"},{"$f":"IFERROR(INDEX('[4]ГРАФИК И.Б.НОЯБРЬ '!$AC43:$HF43,1,MATCH(S$10,'[4]ГРАФИК И.Б.НОЯБРЬ '!$AC$19:$HF$19,0)),\"\")","v":"00:00:00"},{"$f":"IFERROR(INDEX('[4]ГРАФИК И.Б.НОЯБРЬ '!$AC43:$HF43,1,MATCH(T$10,'[4]ГРАФИК И.Б.НОЯБРЬ '!$AC$19:$HF$19,0)),\"\")","v":"11:00:00"},{"$f":"IFERROR(INDEX('[4]ГРАФИК И.Б.НОЯБРЬ '!$AC43:$HF43,1,MATCH(U$10,'[4]ГРАФИК И.Б.НОЯБРЬ '!$AC$19:$HF$19,0)),\"\")","v":""},{"$f":"IFERROR(INDEX('[4]ГРАФИК И.Б.НОЯБРЬ '!$AC43:$HF43,1,MATCH(V$10,'[4]ГРАФИК И.Б.НОЯБРЬ '!$AC$19:$HF$19,0)),\"\")","v":"00:00:00"},{"$f":"IFERROR(INDEX('[4]ГРАФИК И.Б.НОЯБРЬ '!$AC43:$HF43,1,MATCH(W$10,'[4]ГРАФИК И.Б.НОЯБРЬ '!$AC$19:$HF$19,0)),\"\")","v":"11:00:00"},{"$f":"IFERROR(INDEX('[4]ГРАФИК И.Б.НОЯБРЬ '!$AC43:$HF43,1,MATCH(X$10,'[4]ГРАФИК И.Б.НОЯБРЬ '!$AC$19:$HF$19,0)),\"\")","v":"00:00:00"},{"$f":"IFERROR(INDEX('[4]ГРАФИК И.Б.НОЯБРЬ '!$AC43:$HF43,1,MATCH(Y$10,'[4]ГРАФИК И.Б.НОЯБРЬ '!$AC$19:$HF$19,0)),\"\")","v":"10:00:00"},{"$f":"IFERROR(INDEX('[4]ГРАФИК И.Б.НОЯБРЬ '!$AC43:$HF43,1,MATCH(Z$10,'[4]ГРАФИК И.Б.НОЯБРЬ '!$AC$19:$HF$19,0)),\"\")","v":"00:00:00"},{"$f":"IFERROR(INDEX('[4]ГРАФИК И.Б.НОЯБРЬ '!$AC43:$HF43,1,MATCH(AA$10,'[4]ГРАФИК И.Б.НОЯБРЬ '!$AC$19:$HF$19,0)),\"\")","v":"10:00:00"},{"$f":"IFERROR(INDEX('[4]ГРАФИК И.Б.НОЯБРЬ '!$AC43:$HF43,1,MATCH(AB$10,'[4]ГРАФИК И.Б.НОЯБРЬ '!$AC$19:$HF$19,0)),\"\")","v":"00:00:00"},{"$f":"IFERROR(INDEX('[4]ГРАФИК И.Б.НОЯБРЬ '!$AC43:$HF43,1,MATCH(AC$10,'[4]ГРАФИК И.Б.НОЯБРЬ '!$AC$19:$HF$19,0)),\"\")","v":"10:00:00"},{"$f":"IFERROR(INDEX('[4]ГРАФИК И.Б.НОЯБРЬ '!$AC43:$HF43,1,MATCH(AD$10,'[4]ГРАФИК И.Б.НОЯБРЬ '!$AC$19:$HF$19,0)),\"\")","v":"00:00:00"},{"$f":"IFERROR(INDEX('[4]ГРАФИК И.Б.НОЯБРЬ '!$AC43:$HF43,1,MATCH(AE$10,'[4]ГРАФИК И.Б.НОЯБРЬ '!$AC$19:$HF$19,0)),\"\")","v":"10:00:00"},{"$f":"IFERROR(INDEX('[4]ГРАФИК И.Б.НОЯБРЬ '!$AC43:$HF43,1,MATCH(AF$10,'[4]ГРАФИК И.Б.НОЯБРЬ '!$AC$19:$HF$19,0)),\"\")","v":"00:00:00"},{"$f":"IFERROR(INDEX('[4]ГРАФИК И.Б.НОЯБРЬ '!$AC43:$HF43,1,MATCH(AG$10,'[4]ГРАФИК И.Б.НОЯБРЬ '!$AC$19:$HF$19,0)),\"\")","v":"10:00:00"},{"$f":"IFERROR(INDEX('[4]ГРАФИК И.Б.НОЯБРЬ '!$AC43:$HF43,1,MATCH(AH$10,'[4]ГРАФИК И.Б.НОЯБРЬ '!$AC$19:$HF$19,0)),\"\")","v":"00:00:00"},{"$f":"IFERROR(INDEX('[4]ГРАФИК И.Б.НОЯБРЬ '!$AC43:$HF43,1,MATCH(AI$10,'[4]ГРАФИК И.Б.НОЯБРЬ '!$AC$19:$HF$19,0)),\"\")","v":"10:00:00"},{"$f":"IFERROR(INDEX('[4]ГРАФИК И.Б.НОЯБРЬ '!$AC43:$HF43,1,MATCH(AJ$10,'[4]ГРАФИК И.Б.НОЯБРЬ '!$AC$19:$HF$19,0)),\"\")","v":"00:00:00"},{"$f":"IFERROR(INDEX('[4]ГРАФИК И.Б.НОЯБРЬ '!$AC43:$HF43,1,MATCH(AK$10,'[4]ГРАФИК И.Б.НОЯБРЬ '!$AC$19:$HF$19,0)),\"\")","v":""},{"$f":"COUNTIF($F22:$AK22,\">0\")","v":15},{"$f":"SUM($F$22:$AK$22)","v":6.6250000000000018},null,null,null,null,null,null,null,null,null,null,null,null,null,null,null,null,null,{"$f":"COUNTIF(F23:AK23,\"В\")","v":15}]
[null,null,null,null,null,{"$f":"IF('[4]ГРАФИК И.Б.НОЯБРЬ '!AC40=\"ОТ\",\"ОТ\",IF(F22=0,\"В\",\"Я\"))","v":"Я"},{"$f":"IF('[4]ГРАФИК И.Б.НОЯБРЬ '!AD40=\"ОТ\",\"ОТ\",IF(G22=0,\"В\",\"Я\"))","v":"В"},{"$f":"IF('[4]ГРАФИК И.Б.НОЯБРЬ '!AE40=\"ОТ\",\"ОТ\",IF(H22=0,\"В\",\"Я\"))","v":"Я"},{"$f":"IF('[4]ГРАФИК И.Б.НОЯБРЬ '!AF40=\"ОТ\",\"ОТ\",IF(I22=0,\"В\",\"Я\"))","v":"В"},{"$f":"IF('[4]ГРАФИК И.Б.НОЯБРЬ '!AG40=\"ОТ\",\"ОТ\",IF(J22=0,\"В\",\"Я\"))","v":"Я"},{"$f":"IF('[4]ГРАФИК И.Б.НОЯБРЬ '!AH40=\"ОТ\",\"ОТ\",IF(K22=0,\"В\",\"Я\"))","v":"В"},{"$f":"IF('[4]ГРАФИК И.Б.НОЯБРЬ '!AI40=\"ОТ\",\"ОТ\",IF(L22=0,\"В\",\"Я\"))","v":"Я"},{"$f":"IF('[4]ГРАФИК И.Б.НОЯБРЬ '!AJ40=\"ОТ\",\"ОТ\",IF(M22=0,\"В\",\"Я\"))","v":"В"},{"$f":"IF('[4]ГРАФИК И.Б.НОЯБРЬ '!AK40=\"ОТ\",\"ОТ\",IF(N22=0,\"В\",\"Я\"))","v":"Я"},{"$f":"IF('[4]ГРАФИК И.Б.НОЯБРЬ '!AL40=\"ОТ\",\"ОТ\",IF(O22=0,\"В\",\"Я\"))","v":"В"},{"$f":"IF('[4]ГРАФИК И.Б.НОЯБРЬ '!AM40=\"ОТ\",\"ОТ\",IF(P22=0,\"В\",\"Я\"))","v":"Я"},{"$f":"IF('[4]ГРАФИК И.Б.НОЯБРЬ '!AN40=\"ОТ\",\"ОТ\",IF(Q22=0,\"В\",\"Я\"))","v":"В"},{"$f":"IF('[4]ГРАФИК И.Б.НОЯБРЬ '!AO40=\"ОТ\",\"ОТ\",IF(R22=0,\"В\",\"Я\"))","v":"Я"},{"$f":"IF('[4]ГРАФИК И.Б.НОЯБРЬ '!AP40=\"ОТ\",\"ОТ\",IF(S22=0,\"В\",\"Я\"))","v":"В"},{"$f":"IF('[4]ГРАФИК И.Б.НОЯБРЬ '!AQ40=\"ОТ\",\"ОТ\",IF(T22=0,\"В\",\"Я\"))","v":"Я"}," ",{"$f":"IF('[4]ГРАФИК И.Б.НОЯБРЬ '!AS40=\"ОТ\",\"ОТ\",IF(V22=0,\"В\",\"Я\"))","v":"В"},{"$f":"IF('[4]ГРАФИК И.Б.НОЯБРЬ '!AT40=\"ОТ\",\"ОТ\",IF(W22=0,\"В\",\"Я\"))","v":"Я"},{"$f":"IF('[4]ГРАФИК И.Б.НОЯБРЬ '!AU40=\"ОТ\",\"ОТ\",IF(X22=0,\"В\",\"Я\"))","v":"В"},{"$f":"IF('[4]ГРАФИК И.Б.НОЯБРЬ '!AV40=\"ОТ\",\"ОТ\",IF(Y22=0,\"В\",\"Я\"))","v":"Я"},{"$f":"IF('[4]ГРАФИК И.Б.НОЯБРЬ '!AW40=\"ОТ\",\"ОТ\",IF(Z22=0,\"В\",\"Я\"))","v":"В"},{"$f":"IF('[4]ГРАФИК И.Б.НОЯБРЬ '!AX40=\"ОТ\",\"ОТ\",IF(AA22=0,\"В\",\"Я\"))","v":"Я"},{"$f":"IF('[4]ГРАФИК И.Б.НОЯБРЬ '!AY40=\"ОТ\",\"ОТ\",IF(AB22=0,\"В\",\"Я\"))","v":"В"},{"$f":"IF('[4]ГРАФИК И.Б.НОЯБРЬ '!AZ40=\"ОТ\",\"ОТ\",IF(AC22=0,\"В\",\"Я\"))","v":"Я"},{"$f":"IF('[4]ГРАФИК И.Б.НОЯБРЬ '!BA40=\"ОТ\",\"ОТ\",IF(AD22=0,\"В\",\"Я\"))","v":"В"},{"$f":"IF('[4]ГРАФИК И.Б.НОЯБРЬ '!BB40=\"ОТ\",\"ОТ\",IF(AE22=0,\"В\",\"Я\"))","v":"Я"},{"$f":"IF('[4]ГРАФИК И.Б.НОЯБРЬ '!BC40=\"ОТ\",\"ОТ\",IF(AF22=0,\"В\",\"Я\"))","v":"В"},{"$f":"IF('[4]ГРАФИК И.Б.НОЯБРЬ '!BD40=\"ОТ\",\"ОТ\",IF(AG22=0,\"В\",\"Я\"))","v":"Я"},{"$f":"IF('[4]ГРАФИК И.Б.НОЯБРЬ '!BE40=\"ОТ\",\"ОТ\",IF(AH22=0,\"В\",\"Я\"))","v":"В"},{"$f":"IF('[4]ГРАФИК И.Б.НОЯБРЬ '!BF40=\"ОТ\",\"ОТ\",IF(AI22=0,\"В\",\"Я\"))","v":"Я"},{"$f":"IF('[4]ГРАФИК И.Б.НОЯБРЬ '!BG40=\"ОТ\",\"ОТ\",IF(AJ22=0,\"В\",\"Я\"))","v":"В"}]
[null,null,null,"дворник",null,{"$f":"IFERROR(INDEX('[4]ГРАФИК И.Б.НОЯБРЬ '!$AC49:$HF49,1,MATCH(F$10,'[4]ГРАФИК И.Б.НОЯБРЬ '!$AC$19:$HF$19,0)),\"\")","v":"06:00:00"},{"$f":"IFERROR(INDEX('[4]ГРАФИК И.Б.НОЯБРЬ '!$AC49:$HF49,1,MATCH(G$10,'[4]ГРАФИК И.Б.НОЯБРЬ '!$AC$19:$HF$19,0)),\"\")","v":"06:00:00"},{"$f":"IFERROR(INDEX('[4]ГРАФИК И.Б.НОЯБРЬ '!$AC49:$HF49,1,MATCH(H$10,'[4]ГРАФИК И.Б.НОЯБРЬ '!$AC$19:$HF$19,0)),\"\")","v":"06:00:00"},{"$f":"IFERROR(INDEX('[4]ГРАФИК И.Б.НОЯБРЬ '!$AC49:$HF49,1,MATCH(I$10,'[4]ГРАФИК И.Б.НОЯБРЬ '!$AC$19:$HF$19,0)),\"\")","v":"00:00:00"},{"$f":"IFERROR(INDEX('[4]ГРАФИК И.Б.НОЯБРЬ '!$AC49:$HF49,1,MATCH(J$10,'[4]ГРАФИК И.Б.НОЯБРЬ '!$AC$19:$HF$19,0)),\"\")","v":"05:00:00"},{"$f":"IFERROR(INDEX('[4]ГРАФИК И.Б.НОЯБРЬ '!$AC49:$HF49,1,MATCH(K$10,'[4]ГРАФИК И.Б.НОЯБРЬ '!$AC$19:$HF$19,0)),\"\")","v":"00:00:00"},{"$f":"IFERROR(INDEX('[4]ГРАФИК И.Б.НОЯБРЬ '!$AC49:$HF49,1,MATCH(L$10,'[4]ГРАФИК И.Б.НОЯБРЬ '!$AC$19:$HF$19,0)),\"\")","v":"06:00:00"},{"$f":"IFERROR(INDEX('[4]ГРАФИК И.Б.НОЯБРЬ '!$AC49:$HF49,1,MATCH(M$10,'[4]ГРАФИК И.Б.НОЯБРЬ '!$AC$19:$HF$19,0)),\"\")","v":"06:00:00"},{"$f":"IFERROR(INDEX('[4]ГРАФИК И.Б.НОЯБРЬ '!$AC49:$HF49,1,MATCH(N$10,'[4]ГРАФИК И.Б.НОЯБРЬ '!$AC$19:$HF$19,0)),\"\")","v":"06:00:00"},{"$f":"IFERROR(INDEX('[4]ГРАФИК И.Б.НОЯБРЬ '!$AC49:$HF49,1,MATCH(O$10,'[4]ГРАФИК И.Б.НОЯБРЬ '!$AC$19:$HF$19,0)),\"\")","v":"06:00:00"},{"$f":"IFERROR(INDEX('[4]ГРАФИК И.Б.НОЯБРЬ '!$AC49:$HF49,1,MATCH(P$10,'[4]ГРАФИК И.Б.НОЯБРЬ '!$AC$19:$HF$19,0)),\"\")","v":"06:00:00"},{"$f":"IFERROR(INDEX('[4]ГРАФИК И.Б.НОЯБРЬ '!$AC49:$HF49,1,MATCH(Q$10,'[4]ГРАФИК И.Б.НОЯБРЬ '!$AC$19:$HF$19,0)),\"\")","v":"05:00:00"},{"$f":"IFERROR(INDEX('[4]ГРАФИК И.Б.НОЯБРЬ '!$AC49:$HF49,1,MATCH(R$10,'[4]ГРАФИК И.Б.НОЯБРЬ '!$AC$19:$HF$19,0)),\"\")","v":"00:00:00"},{"$f":"IFERROR(INDEX('[4]ГРАФИК И.Б.НОЯБРЬ '!$AC49:$HF49,1,MATCH(S$10,'[4]ГРАФИК И.Б.НОЯБРЬ '!$AC$19:$HF$19,0)),\"\")","v":"07:00:00"},{"$f":"IFERROR(INDEX('[4]ГРАФИК И.Б.НОЯБРЬ '!$AC49:$HF49,1,MATCH(T$10,'[4]ГРАФИК И.Б.НОЯБРЬ '!$AC$19:$HF$19,0)),\"\")","v":"07:00:00"},{"$f":"IFERROR(INDEX('[4]ГРАФИК И.Б.НОЯБРЬ '!$AC49:$HF49,1,MATCH(U$10,'[4]ГРАФИК И.Б.НОЯБРЬ '!$AC$19:$HF$19,0)),\"\")","v":""},{"$f":"IFERROR(INDEX('[4]ГРАФИК И.Б.НОЯБРЬ '!$AC49:$HF49,1,MATCH(V$10,'[4]ГРАФИК И.Б.НОЯБРЬ '!$AC$19:$HF$19,0)),\"\")","v":"07:00:00"},{"$f":"IFERROR(INDEX('[4]ГРАФИК И.Б.НОЯБРЬ '!$AC49:$HF49,1,MATCH(W$10,'[4]ГРАФИК И.Б.НОЯБРЬ '!$AC$19:$HF$19,0)),\"\")","v":"07:00:00"},{"$f":"IFERROR(INDEX('[4]ГРАФИК И.Б.НОЯБРЬ '!$AC49:$HF49,1,MATCH(X$10,'[4]ГРАФИК И.Б.НОЯБРЬ '!$AC$19:$HF$19,0)),\"\")","v":"07:00:00"},{"$f":"IFERROR(INDEX('[4]ГРАФИК И.Б.НОЯБРЬ '!$AC49:$HF49,1,MATCH(Y$10,'[4]ГРАФИК И.Б.НОЯБРЬ '!$AC$19:$HF$19,0)),\"\")","v":"05:00:00"},{"$f":"IFERROR(INDEX('[4]ГРАФИК И.Б.НОЯБРЬ '!$AC49:$HF49,1,MATCH(Z$10,'[4]ГРАФИК И.Б.НОЯБРЬ '!$AC$19:$HF$19,0)),\"\")","v":"00:00:00"},{"$f":"IFERROR(INDEX('[4]ГРАФИК И.Б.НОЯБРЬ '!$AC49:$HF49,1,MATCH(AA$10,'[4]ГРАФИК И.Б.НОЯБРЬ '!$AC$19:$HF$19,0)),\"\")","v":"07:00:00"},{"$f":"IFERROR(INDEX('[4]ГРАФИК И.Б.НОЯБРЬ '!$AC49:$HF49,1,MATCH(AB$10,'[4]ГРАФИК И.Б.НОЯБРЬ '!$AC$19:$HF$19,0)),\"\")","v":"07:00:00"},{"$f":"IFERROR(INDEX('[4]ГРАФИК И.Б.НОЯБРЬ '!$AC49:$HF49,1,MATCH(AC$10,'[4]ГРАФИК И.Б.НОЯБРЬ '!$AC$19:$HF$19,0)),\"\")","v":"07:00:00"},{"$f":"IFERROR(INDEX('[4]ГРАФИК И.Б.НОЯБРЬ '!$AC49:$HF49,1,MATCH(AD$10,'[4]ГРАФИК И.Б.НОЯБРЬ '!$AC$19:$HF$19,0)),\"\")","v":"07:00:00"},{"$f":"IFERROR(INDEX('[4]ГРАФИК И.Б.НОЯБРЬ '!$AC49:$HF49,1,MATCH(AE$10,'[4]ГРАФИК И.Б.НОЯБРЬ '!$AC$19:$HF$19,0)),\"\")","v":"07:00:00"},{"$f":"IFERROR(INDEX('[4]ГРАФИК И.Б.НОЯБРЬ '!$AC49:$HF49,1,MATCH(AF$10,'[4]ГРАФИК И.Б.НОЯБРЬ '!$AC$19:$HF$19,0)),\"\")","v":"05:00:00"},{"$f":"IFERROR(INDEX('[4]ГРАФИК И.Б.НОЯБРЬ '!$AC49:$HF49,1,MATCH(AG$10,'[4]ГРАФИК И.Б.НОЯБРЬ '!$AC$19:$HF$19,0)),\"\")","v":"00:00:00"},{"$f":"IFERROR(INDEX('[4]ГРАФИК И.Б.НОЯБРЬ '!$AC49:$HF49,1,MATCH(AH$10,'[4]ГРАФИК И.Б.НОЯБРЬ '!$AC$19:$HF$19,0)),\"\")","v":"07:00:00"},{"$f":"IFERROR(INDEX('[4]ГРАФИК И.Б.НОЯБРЬ '!$AC49:$HF49,1,MATCH(AI$10,'[4]ГРАФИК И.Б.НОЯБРЬ '!$AC$19:$HF$19,0)),\"\")","v":"07:00:00"},{"$f":"IFERROR(INDEX('[4]ГРАФИК И.Б.НОЯБРЬ '!$AC49:$HF49,1,MATCH(AJ$10,'[4]ГРАФИК И.Б.НОЯБРЬ '!$AC$19:$HF$19,0)),\"\")","v":"07:00:00"},{"$f":"IFERROR(INDEX('[4]ГРАФИК И.Б.НОЯБРЬ '!$AC49:$HF49,1,MATCH(AK$10,'[4]ГРАФИК И.Б.НОЯБРЬ '!$AC$19:$HF$19,0)),\"\")","v":""},{"$f":"COUNTIF($F24:$AK24,\">0\")","v":25},{"$f":"SUM($F$24:$AK$24)","v":6.6250000000000009},null,null,null,null,null,null,null,null,null,null,null,null,null,null,null,null,null,{"$f":"COUNTIF(F25:AK25,\"В\")","v":5}]
[null,null,null,null,null,{"$f":"IF('[4]ГРАФИК И.Б.НОЯБРЬ '!AC46=\"ОТ\",\"ОТ\",IF(F24=0,\"В\",\"Я\"))","v":"Я"},{"$f":"IF('[4]ГРАФИК И.Б.НОЯБРЬ '!AD46=\"ОТ\",\"ОТ\",IF(G24=0,\"В\",\"Я\"))","v":"Я"},{"$f":"IF('[4]ГРАФИК И.Б.НОЯБРЬ '!AE46=\"ОТ\",\"ОТ\",IF(H24=0,\"В\",\"Я\"))","v":"Я"},{"$f":"IF('[4]ГРАФИК И.Б.НОЯБРЬ '!AF46=\"ОТ\",\"ОТ\",IF(I24=0,\"В\",\"Я\"))","v":"В"},{"$f":"IF('[4]ГРАФИК И.Б.НОЯБРЬ '!AG46=\"ОТ\",\"ОТ\",IF(J24=0,\"В\",\"Я\"))","v":"Я"},{"$f":"IF('[4]ГРАФИК И.Б.НОЯБРЬ '!AH46=\"ОТ\",\"ОТ\",IF(K24=0,\"В\",\"Я\"))","v":"В"},{"$f":"IF('[4]ГРАФИК И.Б.НОЯБРЬ '!AI46=\"ОТ\",\"ОТ\",IF(L24=0,\"В\",\"Я\"))","v":"Я"},{"$f":"IF('[4]ГРАФИК И.Б.НОЯБРЬ '!AJ46=\"ОТ\",\"ОТ\",IF(M24=0,\"В\",\"Я\"))","v":"Я"},{"$f":"IF('[4]ГРАФИК И.Б.НОЯБРЬ '!AK46=\"ОТ\",\"ОТ\",IF(N24=0,\"В\",\"Я\"))","v":"Я"},{"$f":"IF('[4]ГРАФИК И.Б.НОЯБРЬ '!AL46=\"ОТ\",\"ОТ\",IF(O24=0,\"В\",\"Я\"))","v":"Я"},{"$f":"IF('[4]ГРАФИК И.Б.НОЯБРЬ '!AM46=\"ОТ\",\"ОТ\",IF(P24=0,\"В\",\"Я\"))","v":"Я"},{"$f":"IF('[4]ГРАФИК И.Б.НОЯБРЬ '!AN46=\"ОТ\",\"ОТ\",IF(Q24=0,\"В\",\"Я\"))","v":"Я"},{"$f":"IF('[4]ГРАФИК И.Б.НОЯБРЬ '!AO46=\"ОТ\",\"ОТ\",IF(R24=0,\"В\",\"Я\"))","v":"В"},{"$f":"IF('[4]ГРАФИК И.Б.НОЯБРЬ '!AP46=\"ОТ\",\"ОТ\",IF(S24=0,\"В\",\"Я\"))","v":"Я"},{"$f":"IF('[4]ГРАФИК И.Б.НОЯБРЬ '!AQ46=\"ОТ\",\"ОТ\",IF(T24=0,\"В\",\"Я\"))","v":"Я"}," ",{"$f":"IF('[4]ГРАФИК И.Б.НОЯБРЬ '!AS46=\"ОТ\",\"ОТ\",IF(V24=0,\"В\",\"Я\"))","v":"Я"},{"$f":"IF('[4]ГРАФИК И.Б.НОЯБРЬ '!AT46=\"ОТ\",\"ОТ\",IF(W24=0,\"В\",\"Я\"))","v":"Я"},{"$f":"IF('[4]ГРАФИК И.Б.НОЯБРЬ '!AU46=\"ОТ\",\"ОТ\",IF(X24=0,\"В\",\"Я\"))","v":"Я"},{"$f":"IF('[4]ГРАФИК И.Б.НОЯБРЬ '!AV46=\"ОТ\",\"ОТ\",IF(Y24=0,\"В\",\"Я\"))","v":"Я"},{"$f":"IF('[4]ГРАФИК И.Б.НОЯБРЬ '!AW46=\"ОТ\",\"ОТ\",IF(Z24=0,\"В\",\"Я\"))","v":"В"},{"$f":"IF('[4]ГРАФИК И.Б.НОЯБРЬ '!AX46=\"ОТ\",\"ОТ\",IF(AA24=0,\"В\",\"Я\"))","v":"Я"},{"$f":"IF('[4]ГРАФИК И.Б.НОЯБРЬ '!AY46=\"ОТ\",\"ОТ\",IF(AB24=0,\"В\",\"Я\"))","v":"Я"},{"$f":"IF('[4]ГРАФИК И.Б.НОЯБРЬ '!AZ46=\"ОТ\",\"ОТ\",IF(AC24=0,\"В\",\"Я\"))","v":"Я"},{"$f":"IF('[4]ГРАФИК И.Б.НОЯБРЬ '!BA46=\"ОТ\",\"ОТ\",IF(AD24=0,\"В\",\"Я\"))","v":"Я"},{"$f":"IF('[4]ГРАФИК И.Б.НОЯБРЬ '!BB46=\"ОТ\",\"ОТ\",IF(AE24=0,\"В\",\"Я\"))","v":"Я"},{"$f":"IF('[4]ГРАФИК И.Б.НОЯБРЬ '!BC46=\"ОТ\",\"ОТ\",IF(AF24=0,\"В\",\"Я\"))","v":"Я"},{"$f":"IF('[4]ГРАФИК И.Б.НОЯБРЬ '!BD46=\"ОТ\",\"ОТ\",IF(AG24=0,\"В\",\"Я\"))","v":"В"},{"$f":"IF('[4]ГРАФИК И.Б.НОЯБРЬ '!BE46=\"ОТ\",\"ОТ\",IF(AH24=0,\"В\",\"Я\"))","v":"Я"},{"$f":"IF('[4]ГРАФИК И.Б.НОЯБРЬ '!BF46=\"ОТ\",\"ОТ\",IF(AI24=0,\"В\",\"Я\"))","v":"Я"},{"$f":"IF('[4]ГРАФИК И.Б.НОЯБРЬ '!BG46=\"ОТ\",\"ОТ\",IF(AJ24=0,\"В\",\"Я\"))","v":"Я"}]
[null,null,null,"контролёр-посадчик аттракциона",null,{"$f":"IFERROR(INDEX('[4]ГРАФИК И.Б.НОЯБРЬ '!$AC55:$HF55,1,MATCH(F$10,'[4]ГРАФИК И.Б.НОЯБРЬ '!$AC$19:$HF$19,0)),\"\")","v":"00:00:00"},{"$f":"IFERROR(INDEX('[4]ГРАФИК И.Б.НОЯБРЬ '!$AC55:$HF55,1,MATCH(G$10,'[4]ГРАФИК И.Б.НОЯБРЬ '!$AC$19:$HF$19,0)),\"\")","v":"11:00:00"},{"$f":"IFERROR(INDEX('[4]ГРАФИК И.Б.НОЯБРЬ '!$AC55:$HF55,1,MATCH(H$10,'[4]ГРАФИК И.Б.НОЯБРЬ '!$AC$19:$HF$19,0)),\"\")","v":"00:00:00"},{"$f":"IFERROR(INDEX('[4]ГРАФИК И.Б.НОЯБРЬ '!$AC55:$HF55,1,MATCH(I$10,'[4]ГРАФИК И.Б.НОЯБРЬ '!$AC$19:$HF$19,0)),\"\")","v":"11:00:00"},{"$f":"IFERROR(INDEX('[4]ГРАФИК И.Б.НОЯБРЬ '!$AC55:$HF55,1,MATCH(J$10,'[4]ГРАФИК И.Б.НОЯБРЬ '!$AC$19:$HF$19,0)),\"\")","v":"00:00:00"},{"$f":"IFERROR(INDEX('[4]ГРАФИК И.Б.НОЯБРЬ '!$AC55:$HF55,1,MATCH(K$10,'[4]ГРАФИК И.Б.НОЯБРЬ '!$AC$19:$HF$19,0)),\"\")","v":"11:00:00"},{"$f":"IFERROR(INDEX('[4]ГРАФИК И.Б.НОЯБРЬ '!$AC55:$HF55,1,MATCH(L$10,'[4]ГРАФИК И.Б.НОЯБРЬ '!$AC$19:$HF$19,0)),\"\")","v":"00:00:00"},{"$f":"IFERROR(INDEX('[4]ГРАФИК И.Б.НОЯБРЬ '!$AC55:$HF55,1,MATCH(M$10,'[4]ГРАФИК И.Б.НОЯБРЬ '!$AC$19:$HF$19,0)),\"\")","v":"11:00:00"},{"$f":"IFERROR(INDEX('[4]ГРАФИК И.Б.НОЯБРЬ '!$AC55:$HF55,1,MATCH(N$10,'[4]ГРАФИК И.Б.НОЯБРЬ '!$AC$19:$HF$19,0)),\"\")","v":"00:00:00"},{"$f":"IFERROR(INDEX('[4]ГРАФИК И.Б.НОЯБРЬ '!$AC55:$HF55,1,MATCH(O$10,'[4]ГРАФИК И.Б.НОЯБРЬ '!$AC$19:$HF$19,0)),\"\")","v":"11:00:00"},{"$f":"IFERROR(INDEX('[4]ГРАФИК И.Б.НОЯБРЬ '!$AC55:$HF55,1,MATCH(P$10,'[4]ГРАФИК И.Б.НОЯБРЬ '!$AC$19:$HF$19,0)),\"\")","v":"00:00:00"},{"$f":"IFERROR(INDEX('[4]ГРАФИК И.Б.НОЯБРЬ '!$AC55:$HF55,1,MATCH(Q$10,'[4]ГРАФИК И.Б.НОЯБРЬ '!$AC$19:$HF$19,0)),\"\")","v":"11:00:00"},{"$f":"IFERROR(INDEX('[4]ГРАФИК И.Б.НОЯБРЬ '!$AC55:$HF55,1,MATCH(R$10,'[4]ГРАФИК И.Б.НОЯБРЬ '!$AC$19:$HF$19,0)),\"\")","v":"00:00:00"},{"$f":"IFERROR(INDEX('[4]ГРАФИК И.Б.НОЯБРЬ '!$AC55:$HF55,1,MATCH(S$10,'[4]ГРАФИК И.Б.НОЯБРЬ '!$AC$19:$HF$19,0)),\"\")","v":"11:00:00"},{"$f":"IFERROR(INDEX('[4]ГРАФИК И.Б.НОЯБРЬ '!$AC55:$HF55,1,MATCH(T$10,'[4]ГРАФИК И.Б.НОЯБРЬ '!$AC$19:$HF$19,0)),\"\")","v":"00:00:00"},{"$f":"IFERROR(INDEX('[4]ГРАФИК И.Б.НОЯБРЬ '!$AC55:$HF55,1,MATCH(U$10,'[4]ГРАФИК И.Б.НОЯБРЬ '!$AC$19:$HF$19,0)),\"\")","v":""},{"$f":"IFERROR(INDEX('[4]ГРАФИК И.Б.НОЯБРЬ '!$AC55:$HF55,1,MATCH(V$10,'[4]ГРАФИК И.Б.НОЯБРЬ '!$AC$19:$HF$19,0)),\"\")","v":"11:00:00"},{"$f":"IFERROR(INDEX('[4]ГРАФИК И.Б.НОЯБРЬ '!$AC55:$HF55,1,MATCH(W$10,'[4]ГРАФИК И.Б.НОЯБРЬ '!$AC$19:$HF$19,0)),\"\")","v":"00:00:00"},{"$f":"IFERROR(INDEX('[4]ГРАФИК И.Б.НОЯБРЬ '!$AC55:$HF55,1,MATCH(X$10,'[4]ГРАФИК И.Б.НОЯБРЬ '!$AC$19:$HF$19,0)),\"\")","v":"11:00:00"},{"$f":"IFERROR(INDEX('[4]ГРАФИК И.Б.НОЯБРЬ '!$AC55:$HF55,1,MATCH(Y$10,'[4]ГРАФИК И.Б.НОЯБРЬ '!$AC$19:$HF$19,0)),\"\")","v":"00:00:00"},{"$f":"IFERROR(INDEX('[4]ГРАФИК И.Б.НОЯБРЬ '!$AC55:$HF55,1,MATCH(Z$10,'[4]ГРАФИК И.Б.НОЯБРЬ '!$AC$19:$HF$19,0)),\"\")","v":"10:00:00"},{"$f":"IFERROR(INDEX('[4]ГРАФИК И.Б.НОЯБРЬ '!$AC55:$HF55,1,MATCH(AA$10,'[4]ГРАФИК И.Б.НОЯБРЬ '!$AC$19:$HF$19,0)),\"\")","v":"00:00:00"},{"$f":"IFERROR(INDEX('[4]ГРАФИК И.Б.НОЯБРЬ '!$AC55:$HF55,1,MATCH(AB$10,'[4]ГРАФИК И.Б.НОЯБРЬ '!$AC$19:$HF$19,0)),\"\")","v":"10:00:00"},{"$f":"IFERROR(INDEX('[4]ГРАФИК И.Б.НОЯБРЬ '!$AC55:$HF55,1,MATCH(AC$10,'[4]ГРАФИК И.Б.НОЯБРЬ '!$AC$19:$HF$19,0)),\"\")","v":"00:00:00"},{"$f":"IFERROR(INDEX('[4]ГРАФИК И.Б.НОЯБРЬ '!$AC55:$HF55,1,MATCH(AD$10,'[4]ГРАФИК И.Б.НОЯБРЬ '!$AC$19:$HF$19,0)),\"\")","v":"10:00:00"},{"$f":"IFERROR(INDEX('[4]ГРАФИК И.Б.НОЯБРЬ '!$AC55:$HF55,1,MATCH(AE$10,'[4]ГРАФИК И.Б.НОЯБРЬ '!$AC$19:$HF$19,0)),\"\")","v":"00:00:00"},{"$f":"IFERROR(INDEX('[4]ГРАФИК И.Б.НОЯБРЬ '!$AC55:$HF55,1,MATCH(AF$10,'[4]ГРАФИК И.Б.НОЯБРЬ '!$AC$19:$HF$19,0)),\"\")","v":"10:00:00"},{"$f":"IFERROR(INDEX('[4]ГРАФИК И.Б.НОЯБРЬ '!$AC55:$HF55,1,MATCH(AG$10,'[4]ГРАФИК И.Б.НОЯБРЬ '!$AC$19:$HF$19,0)),\"\")","v":"00:00:00"},{"$f":"IFERROR(INDEX('[4]ГРАФИК И.Б.НОЯБРЬ '!$AC55:$HF55,1,MATCH(AH$10,'[4]ГРАФИК И.Б.НОЯБРЬ '!$AC$19:$HF$19,0)),\"\")","v":"10:00:00"},{"$f":"IFERROR(INDEX('[4]ГРАФИК И.Б.НОЯБРЬ '!$AC55:$HF55,1,MATCH(AI$10,'[4]ГРАФИК И.Б.НОЯБРЬ '!$AC$19:$HF$19,0)),\"\")","v":"00:00:00"},{"$f":"IFERROR(INDEX('[4]ГРАФИК И.Б.НОЯБРЬ '!$AC55:$HF55,1,MATCH(AJ$10,'[4]ГРАФИК И.Б.НОЯБРЬ '!$AC$19:$HF$19,0)),\"\")","v":"10:00:00"},{"$f":"IFERROR(INDEX('[4]ГРАФИК И.Б.НОЯБРЬ '!$AC55:$HF55,1,MATCH(AK$10,'[4]ГРАФИК И.Б.НОЯБРЬ '!$AC$19:$HF$19,0)),\"\")","v":""},{"$f":"COUNTIF($F26:$AK26,\">0\")","v":15},{"$f":"SUM($F$26:$AK$26)","v":6.6250000000000018},null,null,null,null,null,null,null,null,null,null,null,null,null,null,null,null,null,{"$f":"COUNTIF(F27:AK27,\"В\")","v":15}]
[null,null,null,null,null,{"$f":"IF('[4]ГРАФИК И.Б.НОЯБРЬ '!AC52=\"ОТ\",\"ОТ\",IF(F26=0,\"В\",\"Я\"))","v":"В"},{"$f":"IF('[4]ГРАФИК И.Б.НОЯБРЬ '!AD52=\"ОТ\",\"ОТ\",IF(G26=0,\"В\",\"Я\"))","v":"Я"},{"$f":"IF('[4]ГРАФИК И.Б.НОЯБРЬ '!AE52=\"ОТ\",\"ОТ\",IF(H26=0,\"В\",\"Я\"))","v":"В"},{"$f":"IF('[4]ГРАФИК И.Б.НОЯБРЬ '!AF52=\"ОТ\",\"ОТ\",IF(I26=0,\"В\",\"Я\"))","v":"Я"},{"$f":"IF('[4]ГРАФИК И.Б.НОЯБРЬ '!AG52=\"ОТ\",\"ОТ\",IF(J26=0,\"В\",\"Я\"))","v":"В"},{"$f":"IF('[4]ГРАФИК И.Б.НОЯБРЬ '!AH52=\"ОТ\",\"ОТ\",IF(K26=0,\"В\",\"Я\"))","v":"Я"},{"$f":"IF('[4]ГРАФИК И.Б.НОЯБРЬ '!AI52=\"ОТ\",\"ОТ\",IF(L26=0,\"В\",\"Я\"))","v":"В"},{"$f":"IF('[4]ГРАФИК И.Б.НОЯБРЬ '!AJ52=\"ОТ\",\"ОТ\",IF(M26=0,\"В\",\"Я\"))","v":"Я"},{"$f":"IF('[4]ГРАФИК И.Б.НОЯБРЬ '!AK52=\"ОТ\",\"ОТ\",IF(N26=0,\"В\",\"Я\"))","v":"В"},{"$f":"IF('[4]ГРАФИК И.Б.НОЯБРЬ '!AL52=\"ОТ\",\"ОТ\",IF(O26=0,\"В\",\"Я\"))","v":"Я"},{"$f":"IF('[4]ГРАФИК И.Б.НОЯБРЬ '!AM52=\"ОТ\",\"ОТ\",IF(P26=0,\"В\",\"Я\"))","v":"В"},{"$f":"IF('[4]ГРАФИК И.Б.НОЯБРЬ '!AN52=\"ОТ\",\"ОТ\",IF(Q26=0,\"В\",\"Я\"))","v":"Я"},{"$f":"IF('[4]ГРАФИК И.Б.НОЯБРЬ '!AO52=\"ОТ\",\"ОТ\",IF(R26=0,\"В\",\"Я\"))","v":"В"},{"$f":"IF('[4]ГРАФИК И.Б.НОЯБРЬ '!AP52=\"ОТ\",\"ОТ\",IF(S26=0,\"В\",\"Я\"))","v":"Я"},{"$f":"IF('[4]ГРАФИК И.Б.НОЯБРЬ '!AQ52=\"ОТ\",\"ОТ\",IF(T26=0,\"В\",\"Я\"))","v":"В"},null,{"$f":"IF('[4]ГРАФИК И.Б.НОЯБРЬ '!AS52=\"ОТ\",\"ОТ\",IF(V26=0,\"В\",\"Я\"))","v":"Я"},{"$f":"IF('[4]ГРАФИК И.Б.НОЯБРЬ '!AT52=\"ОТ\",\"ОТ\",IF(W26=0,\"В\",\"Я\"))","v":"В"},{"$f":"IF('[4]ГРАФИК И.Б.НОЯБРЬ '!AU52=\"ОТ\",\"ОТ\",IF(X26=0,\"В\",\"Я\"))","v":"Я"},{"$f":"IF('[4]ГРАФИК И.Б.НОЯБРЬ '!AV52=\"ОТ\",\"ОТ\",IF(Y26=0,\"В\",\"Я\"))","v":"В"},{"$f":"IF('[4]ГРАФИК И.Б.НОЯБРЬ '!AW52=\"ОТ\",\"ОТ\",IF(Z26=0,\"В\",\"Я\"))","v":"Я"},{"$f":"IF('[4]ГРАФИК И.Б.НОЯБРЬ '!AX52=\"ОТ\",\"ОТ\",IF(AA26=0,\"В\",\"Я\"))","v":"В"},{"$f":"IF('[4]ГРАФИК И.Б.НОЯБРЬ '!AY52=\"ОТ\",\"ОТ\",IF(AB26=0,\"В\",\"Я\"))","v":"Я"},{"$f":"IF('[4]ГРАФИК И.Б.НОЯБРЬ '!AZ52=\"ОТ\",\"ОТ\",IF(AC26=0,\"В\",\"Я\"))","v":"В"},{"$f":"IF('[4]ГРАФИК И.Б.НОЯБРЬ '!BA52=\"ОТ\",\"ОТ\",IF(AD26=0,\"В\",\"Я\"))","v":"Я"},{"$f":"IF('[4]ГРАФИК И.Б.НОЯБРЬ '!BB52=\"ОТ\",\"ОТ\",IF(AE26=0,\"В\",\"Я\"))","v":"В"},{"$f":"IF('[4]ГРАФИК И.Б.НОЯБРЬ '!BC52=\"ОТ\",\"ОТ\",IF(AF26=0,\"В\",\"Я\"))","v":"Я"},{"$f":"IF('[4]ГРАФИК И.Б.НОЯБРЬ '!BD52=\"ОТ\",\"ОТ\",IF(AG26=0,\"В\",\"Я\"))","v":"В"},{"$f":"IF('[4]ГРАФИК И.Б.НОЯБРЬ '!BE52=\"ОТ\",\"ОТ\",IF(AH26=0,\"В\",\"Я\"))","v":"Я"},{"$f":"IF('[4]ГРАФИК И.Б.НОЯБРЬ '!BF52=\"ОТ\",\"ОТ\",IF(AI26=0,\"В\",\"Я\"))","v":"В"},{"$f":"IF('[4]ГРАФИК И.Б.НОЯБРЬ '!BG52=\"ОТ\",\"ОТ\",IF(AJ26=0,\"В\",\"Я\"))","v":"Я"}]
[null,null,{"$f":"'ГРАФИК И.Б.НОЯБРЬ '!F58","v":"Нурлиева Е.А., котролёр-посадчик аттракциона НЧ"},"контролёр-посадчик аттракциона",null,{"$f":"IFERROR(INDEX('[4]ГРАФИК И.Б.НОЯБРЬ '!$AC61:$HF61,1,MATCH(F$10,'[4]ГРАФИК И.Б.НОЯБРЬ '!$AC$19:$HF$19,0)),\"\")","v":"11:00:00"},{"$f":"IFERROR(INDEX('[4]ГРАФИК И.Б.НОЯБРЬ '!$AC61:$HF61,1,MATCH(G$10,'[4]ГРАФИК И.Б.НОЯБРЬ '!$AC$19:$HF$19,0)),\"\")","v":"00:00:00"},{"$f":"IFERROR(INDEX('[4]ГРАФИК И.Б.НОЯБРЬ '!$AC61:$HF61,1,MATCH(H$10,'[4]ГРАФИК И.Б.НОЯБРЬ '!$AC$19:$HF$19,0)),\"\")","v":"11:00:00"},{"$f":"IFERROR(INDEX('[4]ГРАФИК И.Б.НОЯБРЬ '!$AC61:$HF61,1,MATCH(I$10,'[4]ГРАФИК И.Б.НОЯБРЬ '!$AC$19:$HF$19,0)),\"\")","v":"00:00:00"},{"$f":"IFERROR(INDEX('[4]ГРАФИК И.Б.НОЯБРЬ '!$AC61:$HF61,1,MATCH(J$10,'[4]ГРАФИК И.Б.НОЯБРЬ '!$AC$19:$HF$19,0)),\"\")","v":"11:00:00"},{"$f":"IFERROR(INDEX('[4]ГРАФИК И.Б.НОЯБРЬ '!$AC61:$HF61,1,MATCH(K$10,'[4]ГРАФИК И.Б.НОЯБРЬ '!$AC$19:$HF$19,0)),\"\")","v":"00:00:00"},{"$f":"IFERROR(INDEX('[4]ГРАФИК И.Б.НОЯБРЬ '!$AC61:$HF61,1,MATCH(L$10,'[4]ГРАФИК И.Б.НОЯБРЬ '!$AC$19:$HF$19,0)),\"\")","v":"11:00:00"},{"$f":"IFERROR(INDEX('[4]ГРАФИК И.Б.НОЯБРЬ '!$AC61:$HF61,1,MATCH(M$10,'[4]ГРАФИК И.Б.НОЯБРЬ '!$AC$19:$HF$19,0)),\"\")","v":"00:00:00"},{"$f":"IFERROR(INDEX('[4]ГРАФИК И.Б.НОЯБРЬ '!$AC61:$HF61,1,MATCH(N$10,'[4]ГРАФИК И.Б.НОЯБРЬ '!$AC$19:$HF$19,0)),\"\")","v":"11:00:00"},{"$f":"IFERROR(INDEX('[4]ГРАФИК И.Б.НОЯБРЬ '!$AC61:$HF61,1,MATCH(O$10,'[4]ГРАФИК И.Б.НОЯБРЬ '!$AC$19:$HF$19,0)),\"\")","v":"00:00:00"},{"$f":"IFERROR(INDEX('[4]ГРАФИК И.Б.НОЯБРЬ '!$AC61:$HF61,1,MATCH(P$10,'[4]ГРАФИК И.Б.НОЯБРЬ '!$AC$19:$HF$19,0)),\"\")","v":"11:00:00"},{"$f":"IFERROR(INDEX('[4]ГРАФИК И.Б.НОЯБРЬ '!$AC61:$HF61,1,MATCH(Q$10,'[4]ГРАФИК И.Б.НОЯБРЬ '!$AC$19:$HF$19,0)),\"\")","v":"00:00:00"},{"$f":"IFERROR(INDEX('[4]ГРАФИК И.Б.НОЯБРЬ '!$AC61:$HF61,1,MATCH(R$10,'[4]ГРАФИК И.Б.НОЯБРЬ '!$AC$19:$HF$19,0)),\"\")","v":"11:00:00"},{"$f":"IFERROR(INDEX('[4]ГРАФИК И.Б.НОЯБРЬ '!$AC61:$HF61,1,MATCH(S$10,'[4]ГРАФИК И.Б.НОЯБРЬ '!$AC$19:$HF$19,0)),\"\")","v":"00:00:00"},{"$f":"IFERROR(INDEX('[4]ГРАФИК И.Б.НОЯБРЬ '!$AC61:$HF61,1,MATCH(T$10,'[4]ГРАФИК И.Б.НОЯБРЬ '!$AC$19:$HF$19,0)),\"\")","v":"11:00:00"},{"$f":"IFERROR(INDEX('[4]ГРАФИК И.Б.НОЯБРЬ '!$AC61:$HF61,1,MATCH(U$10,'[4]ГРАФИК И.Б.НОЯБРЬ '!$AC$19:$HF$19,0)),\"\")","v":""},{"$f":"IFERROR(INDEX('[4]ГРАФИК И.Б.НОЯБРЬ '!$AC61:$HF61,1,MATCH(V$10,'[4]ГРАФИК И.Б.НОЯБРЬ '!$AC$19:$HF$19,0)),\"\")","v":"00:00:00"},{"$f":"IFERROR(INDEX('[4]ГРАФИК И.Б.НОЯБРЬ '!$AC61:$HF61,1,MATCH(W$10,'[4]ГРАФИК И.Б.НОЯБРЬ '!$AC$19:$HF$19,0)),\"\")","v":"00:00:00"},{"$f":"IFERROR(INDEX('[4]ГРАФИК И.Б.НОЯБРЬ '!$AC61:$HF61,1,MATCH(X$10,'[4]ГРАФИК И.Б.НОЯБРЬ '!$AC$19:$HF$19,0)),\"\")","v":"00:00:00"},{"$f":"IFERROR(INDEX('[4]ГРАФИК И.Б.НОЯБРЬ '!$AC61:$HF61,1,MATCH(Y$10,'[4]ГРАФИК И.Б.НОЯБРЬ '!$AC$19:$HF$19,0)),\"\")","v":"00:00:00"},{"$f":"IFERROR(INDEX('[4]ГРАФИК И.Б.НОЯБРЬ '!$AC61:$HF61,1,MATCH(Z$10,'[4]ГРАФИК И.Б.НОЯБРЬ '!$AC$19:$HF$19,0)),\"\")","v":"00:00:00"},{"$f":"IFERROR(INDEX('[4]ГРАФИК И.Б.НОЯБРЬ '!$AC61:$HF61,1,MATCH(AA$10,'[4]ГРАФИК И.Б.НОЯБРЬ '!$AC$19:$HF$19,0)),\"\")","v":"00:00:00"},{"$f":"IFERROR(INDEX('[4]ГРАФИК И.Б.НОЯБРЬ '!$AC61:$HF61,1,MATCH(AB$10,'[4]ГРАФИК И.Б.НОЯБРЬ '!$AC$19:$HF$19,0)),\"\")","v":"00:00:00"},{"$f":"IFERROR(INDEX('[4]ГРАФИК И.Б.НОЯБРЬ '!$AC61:$HF61,1,MATCH(AC$10,'[4]ГРАФИК И.Б.НОЯБРЬ '!$AC$19:$HF$19,0)),\"\")","v":"00:00:00"},{"$f":"IFERROR(INDEX('[4]ГРАФИК И.Б.НОЯБРЬ '!$AC61:$HF61,1,MATCH(AD$10,'[4]ГРАФИК И.Б.НОЯБРЬ '!$AC$19:$HF$19,0)),\"\")","v":"00:00:00"},{"$f":"IFERROR(INDEX('[4]ГРАФИК И.Б.НОЯБРЬ '!$AC61:$HF61,1,MATCH(AE$10,'[4]ГРАФИК И.Б.НОЯБРЬ '!$AC$19:$HF$19,0)),\"\")","v":"00:00:00"},{"$f":"IFERROR(INDEX('[4]ГРАФИК И.Б.НОЯБРЬ '!$AC61:$HF61,1,MATCH(AF$10,'[4]ГРАФИК И.Б.НОЯБРЬ '!$AC$19:$HF$19,0)),\"\")","v":"00:00:00"},{"$f":"IFERROR(INDEX('[4]ГРАФИК И.Б.НОЯБРЬ '!$AC61:$HF61,1,MATCH(AG$10,'[4]ГРАФИК И.Б.НОЯБРЬ '!$AC$19:$HF$19,0)),\"\")","v":"00:00:00"},{"$f":"IFERROR(INDEX('[4]ГРАФИК И.Б.НОЯБРЬ '!$AC61:$HF61,1,MATCH(AH$10,'[4]ГРАФИК И.Б.НОЯБРЬ '!$AC$19:$HF$19,0)),\"\")","v":"00:00:00"},{"$f":"IFERROR(INDEX('[4]ГРАФИК И.Б.НОЯБРЬ '!$AC61:$HF61,1,MATCH(AI$10,'[4]ГРАФИК И.Б.НОЯБРЬ '!$AC$19:$HF$19,0)),\"\")","v":"00:00:00"},{"$f":"IFERROR(INDEX('[4]ГРАФИК И.Б.НОЯБРЬ '!$AC61:$HF61,1,MATCH(AJ$10,'[4]ГРАФИК И.Б.НОЯБРЬ '!$AC$19:$HF$19,0)),\"\")","v":"00:00:00"},{"$f":"IFERROR(INDEX('[4]ГРАФИК И.Б.НОЯБРЬ '!$AC61:$HF61,1,MATCH(AK$10,'[4]ГРАФИК И.Б.НОЯБРЬ '!$AC$19:$HF$19,0)),\"\")","v":""},{"$f":"COUNTIF($F28:$AK28,\">0\")","v":8},{"$f":"SUM($F$28:$AK$28)","v":3.666666666666667},null,null,null,null,null,null,null,null,null,null,null,null,null,null,null,null,null,{"$f":"COUNTIF(F29:AK29,\"В\")","v":8}]
[null,null,null,null,null,{"$f":"IF(F28=0,IF(INDEX('ГРАФИК И.Б.НОЯБРЬ '!$AC$21:$HF$64,MATCH($C28,'ГРАФИК И.Б.НОЯБРЬ '!$F$21:$F$64,),MATCH(F$10,'ГРАФИК И.Б.НОЯБРЬ '!$AC$19:$HA$19,))=\"ОТ\",\"ОТ\",\"В\"),\"Я\")","v":"Я"},{"$f":"IF(G28=0,IF(INDEX('ГРАФИК И.Б.НОЯБРЬ '!$AC$21:$HF$64,MATCH($C28,'ГРАФИК И.Б.НОЯБРЬ '!$F$21:$F$64,),MATCH(G$10,'ГРАФИК И.Б.НОЯБРЬ '!$AC$19:$HA$19,))=\"ОТ\",\"ОТ\",\"В\"),\"Я\")","v":"В"},{"$f":"IF(H28=0,IF(INDEX('ГРАФИК И.Б.НОЯБРЬ '!$AC$21:$HF$64,MATCH($C28,'ГРАФИК И.Б.НОЯБРЬ '!$F$21:$F$64,),MATCH(H$10,'ГРАФИК И.Б.НОЯБРЬ '!$AC$19:$HA$19,))=\"ОТ\",\"ОТ\",\"В\"),\"Я\")","v":"Я"},{"$f":"IF(I28=0,IF(INDEX('ГРАФИК И.Б.НОЯБРЬ '!$AC$21:$HF$64,MATCH($C28,'ГРАФИК И.Б.НОЯБРЬ '!$F$21:$F$64,),MATCH(I$10,'ГРАФИК И.Б.НОЯБРЬ '!$AC$19:$HA$19,))=\"ОТ\",\"ОТ\",\"В\"),\"Я\")","v":"В"},{"$f":"IF(J28=0,IF(INDEX('ГРАФИК И.Б.НОЯБРЬ '!$AC$21:$HF$64,MATCH($C28,'ГРАФИК И.Б.НОЯБРЬ '!$F$21:$F$64,),MATCH(J$10,'ГРАФИК И.Б.НОЯБРЬ '!$AC$19:$HA$19,))=\"ОТ\",\"ОТ\",\"В\"),\"Я\")","v":"Я"},{"$f":"IF(K28=0,IF(INDEX('ГРАФИК И.Б.НОЯБРЬ '!$AC$21:$HF$64,MATCH($C28,'ГРАФИК И.Б.НОЯБРЬ '!$F$21:$F$64,),MATCH(K$10,'ГРАФИК И.Б.НОЯБРЬ '!$AC$19:$HA$19,))=\"ОТ\",\"ОТ\",\"В\"),\"Я\")","v":"В"},{"$f":"IF(L28=0,IF(INDEX('ГРАФИК И.Б.НОЯБРЬ '!$AC$21:$HF$64,MATCH($C28,'ГРАФИК И.Б.НОЯБРЬ '!$F$21:$F$64,),MATCH(L$10,'ГРАФИК И.Б.НОЯБРЬ '!$AC$19:$HA$19,))=\"ОТ\",\"ОТ\",\"В\"),\"Я\")","v":"Я"},{"$f":"IF(M28=0,IF(INDEX('ГРАФИК И.Б.НОЯБРЬ '!$AC$21:$HF$64,MATCH($C28,'ГРАФИК И.Б.НОЯБРЬ '!$F$21:$F$64,),MATCH(M$10,'ГРАФИК И.Б.НОЯБРЬ '!$AC$19:$HA$19,))=\"ОТ\",\"ОТ\",\"В\"),\"Я\")","v":"В"},{"$f":"IF(N28=0,IF(INDEX('ГРАФИК И.Б.НОЯБРЬ '!$AC$21:$HF$64,MATCH($C28,'ГРАФИК И.Б.НОЯБРЬ '!$F$21:$F$64,),MATCH(N$10,'ГРАФИК И.Б.НОЯБРЬ '!$AC$19:$HA$19,))=\"ОТ\",\"ОТ\",\"В\"),\"Я\")","v":"Я"},{"$f":"IF(O28=0,IF(INDEX('ГРАФИК И.Б.НОЯБРЬ '!$AC$21:$HF$64,MATCH($C28,'ГРАФИК И.Б.НОЯБРЬ '!$F$21:$F$64,),MATCH(O$10,'ГРАФИК И.Б.НОЯБРЬ '!$AC$19:$HA$19,))=\"ОТ\",\"ОТ\",\"В\"),\"Я\")","v":"В"},{"$f":"IF(P28=0,IF(INDEX('ГРАФИК И.Б.НОЯБРЬ '!$AC$21:$HF$64,MATCH($C28,'ГРАФИК И.Б.НОЯБРЬ '!$F$21:$F$64,),MATCH(P$10,'ГРАФИК И.Б.НОЯБРЬ '!$AC$19:$HA$19,))=\"ОТ\",\"ОТ\",\"В\"),\"Я\")","v":"Я"},{"$f":"IF(Q28=0,IF(INDEX('ГРАФИК И.Б.НОЯБРЬ '!$AC$21:$HF$64,MATCH($C28,'ГРАФИК И.Б.НОЯБРЬ '!$F$21:$F$64,),MATCH(Q$10,'ГРАФИК И.Б.НОЯБРЬ '!$AC$19:$HA$19,))=\"ОТ\",\"ОТ\",\"В\"),\"Я\")","v":"В"},{"$f":"IF(R28=0,IF(INDEX('ГРАФИК И.Б.НОЯБРЬ '!$AC$21:$HF$64,MATCH($C28,'ГРАФИК И.Б.НОЯБРЬ '!$F$21:$F$64,),MATCH(R$10,'ГРАФИК И.Б.НОЯБРЬ '!$AC$19:$HA$19,))=\"ОТ\",\"ОТ\",\"В\"),\"Я\")","v":"Я"},{"$f":"IF(S28=0,IF(INDEX('ГРАФИК И.Б.НОЯБРЬ '!$AC$21:$HF$64,MATCH($C28,'ГРАФИК И.Б.НОЯБРЬ '!$F$21:$F$64,),MATCH(S$10,'ГРАФИК И.Б.НОЯБРЬ '!$AC$19:$HA$19,))=\"ОТ\",\"ОТ\",\"В\"),\"Я\")","v":"В"},{"$f":"IF(T28=0,IF(INDEX('ГРАФИК И.Б.НОЯБРЬ '!$AC$21:$HF$64,MATCH($C28,'ГРАФИК И.Б.НОЯБРЬ '!$F$21:$F$64,),MATCH(T$10,'ГРАФИК И.Б.НОЯБРЬ '!$AC$19:$HA$19,))=\"ОТ\",\"ОТ\",\"В\"),\"Я\")","v":"Я"},{"$f":"IF(U28=0,IF(INDEX('ГРАФИК И.Б.НОЯБРЬ '!$AC$21:$HF$64,MATCH($C28,'ГРАФИК И.Б.НОЯБРЬ '!$F$21:$F$64,),MATCH(U$10,'ГРАФИК И.Б.НОЯБРЬ '!$AC$19:$HA$19,))=\"ОТ\",\"ОТ\",\"В\"),\"Я\")","v":"Я"},{"$f":"IF(V28=0,IF(INDEX('ГРАФИК И.Б.НОЯБРЬ '!$AC$21:$HF$64,MATCH($C28,'ГРАФИК И.Б.НОЯБРЬ '!$F$21:$F$64,),MATCH(V$10,'ГРАФИК И.Б.НОЯБРЬ '!$AC$19:$HA$19,))=\"ОТ\",\"ОТ\",\"В\"),\"Я\")","v":"В"},{"$f":"IF(W28=0,IF(INDEX('ГРАФИК И.Б.НОЯБРЬ '!$AC$21:$HF$64,MATCH($C28,'ГРАФИК И.Б.НОЯБРЬ '!$F$21:$F$64,),MATCH(W$10,'ГРАФИК И.Б.НОЯБРЬ '!$AC$19:$HA$19,))=\"ОТ\",\"ОТ\",\"В\"),\"Я\")","v":"ОТ"},{"$f":"IF(X28=0,IF(INDEX('ГРАФИК И.Б.НОЯБРЬ '!$AC$21:$HF$64,MATCH($C28,'ГРАФИК И.Б.НОЯБРЬ '!$F$21:$F$64,),MATCH(X$10,'ГРАФИК И.Б.НОЯБРЬ '!$AC$19:$HA$19,))=\"ОТ\",\"ОТ\",\"В\"),\"Я\")","v":"ОТ"},{"$f":"IF(Y28=0,IF(INDEX('ГРАФИК И.Б.НОЯБРЬ '!$AC$21:$HF$64,MATCH($C28,'ГРАФИК И.Б.НОЯБРЬ '!$F$21:$F$64,),MATCH(Y$10,'ГРАФИК И.Б.НОЯБРЬ '!$AC$19:$HA$19,))=\"ОТ\",\"ОТ\",\"В\"),\"Я\")","v":"ОТ"},{"$f":"IF(Z28=0,IF(INDEX('ГРАФИК И.Б.НОЯБРЬ '!$AC$21:$HF$64,MATCH($C28,'ГРАФИК И.Б.НОЯБРЬ '!$F$21:$F$64,),MATCH(Z$10,'ГРАФИК И.Б.НОЯБРЬ '!$AC$19:$HA$19,))=\"ОТ\",\"ОТ\",\"В\"),\"Я\")","v":"ОТ"},{"$f":"IF(AA28=0,IF(INDEX('ГРАФИК И.Б.НОЯБРЬ '!$AC$21:$HF$64,MATCH($C28,'ГРАФИК И.Б.НОЯБРЬ '!$F$21:$F$64,),MATCH(AA$10,'ГРАФИК И.Б.НОЯБРЬ '!$AC$19:$HA$19,))=\"ОТ\",\"ОТ\",\"В\"),\"Я\")","v":"ОТ"},{"$f":"IF(AB28=0,IF(INDEX('ГРАФИК И.Б.НОЯБРЬ '!$AC$21:$HF$64,MATCH($C28,'ГРАФИК И.Б.НОЯБРЬ '!$F$21:$F$64,),MATCH(AB$10,'ГРАФИК И.Б.НОЯБРЬ '!$AC$19:$HA$19,))=\"ОТ\",\"ОТ\",\"В\"),\"Я\")","v":"ОТ"},{"$f":"IF(AC28=0,IF(INDEX('ГРАФИК И.Б.НОЯБРЬ '!$AC$21:$HF$64,MATCH($C28,'ГРАФИК И.Б.НОЯБРЬ '!$F$21:$F$64,),MATCH(AC$10,'ГРАФИК И.Б.НОЯБРЬ '!$AC$19:$HA$19,))=\"ОТ\",\"ОТ\",\"В\"),\"Я\")","v":"ОТ"},{"$f":"IF(AD28=0,IF(INDEX('ГРАФИК И.Б.НОЯБРЬ '!$AC$21:$HF$64,MATCH($C28,'ГРАФИК И.Б.НОЯБРЬ '!$F$21:$F$64,),MATCH(AD$10,'ГРАФИК И.Б.НОЯБРЬ '!$AC$19:$HA$19,))=\"ОТ\",\"ОТ\",\"В\"),\"Я\")","v":"ОТ"},{"$f":"IF(AE28=0,IF(INDEX('ГРАФИК И.Б.НОЯБРЬ '!$AC$21:$HF$64,MATCH($C28,'ГРАФИК И.Б.НОЯБРЬ '!$F$21:$F$64,),MATCH(AE$10,'ГРАФИК И.Б.НОЯБРЬ '!$AC$19:$HA$19,))=\"ОТ\",\"ОТ\",\"В\"),\"Я\")","v":"ОТ"},{"$f":"IF(AF28=0,IF(INDEX('ГРАФИК И.Б.НОЯБРЬ '!$AC$21:$HF$64,MATCH($C28,'ГРАФИК И.Б.НОЯБРЬ '!$F$21:$F$64,),MATCH(AF$10,'ГРАФИК И.Б.НОЯБРЬ '!$AC$19:$HA$19,))=\"ОТ\",\"ОТ\",\"В\"),\"Я\")","v":"ОТ"},{"$f":"IF(AG28=0,IF(INDEX('ГРАФИК И.Б.НОЯБРЬ '!$AC$21:$HF$64,MATCH($C28,'ГРАФИК И.Б.НОЯБРЬ '!$F$21:$F$64,),MATCH(AG$10,'ГРАФИК И.Б.НОЯБРЬ '!$AC$19:$HA$19,))=\"ОТ\",\"ОТ\",\"В\"),\"Я\")","v":"ОТ"},{"$f":"IF(AH28=0,IF(INDEX('ГРАФИК И.Б.НОЯБРЬ '!$AC$21:$HF$64,MATCH($C28,'ГРАФИК И.Б.НОЯБРЬ '!$F$21:$F$64,),MATCH(AH$10,'ГРАФИК И.Б.НОЯБРЬ '!$AC$19:$HA$19,))=\"ОТ\",\"ОТ\",\"В\"),\"Я\")","v":"ОТ"},{"$f":"IF(AI28=0,IF(INDEX('ГРАФИК И.Б.НОЯБРЬ '!$AC$21:$HF$64,MATCH($C28,'ГРАФИК И.Б.НОЯБРЬ '!$F$21:$F$64,),MATCH(AI$10,'ГРАФИК И.Б.НОЯБРЬ '!$AC$19:$HA$19,))=\"ОТ\",\"ОТ\",\"В\"),\"Я\")","v":"ОТ"},{"$f":"IF(AJ28=0,IF(INDEX('ГРАФИК И.Б.НОЯБРЬ '!$AC$21:$HF$64,MATCH($C28,'ГРАФИК И.Б.НОЯБРЬ '!$F$21:$F$64,),MATCH(AJ$10,'ГРАФИК И.Б.НОЯБРЬ '!$AC$19:$HA$19,))=\"ОТ\",\"ОТ\",\"В\"),\"Я\")","v":"ОТ"},{"$f":"IF(AK28=0,IF(INDEX('ГРАФИК И.Б.НОЯБРЬ '!$AC$21:$HF$64,MATCH($C28,'ГРАФИК И.Б.НОЯБРЬ '!$F$21:$F$64,),MATCH(AK$10,'ГРАФИК И.Б.НОЯБРЬ '!$AC$19:$HA$19,))=\"ОТ\",\"ОТ\",\"В\"),\"Я\")","v":"Я"}]
[null,null,null,"контролёр-посадчик аттракциона",null,{"$f":"IFERROR(INDEX('[4]ГРАФИК И.Б.НОЯБРЬ '!$AC68:$HF68,1,MATCH(F$10,'[4]ГРАФИК И.Б.НОЯБРЬ '!$AC$19:$HF$19,0)),\"\")","v":"00:00:00"},{"$f":"IFERROR(INDEX('[4]ГРАФИК И.Б.НОЯБРЬ '!$AC68:$HF68,1,MATCH(G$10,'[4]ГРАФИК И.Б.НОЯБРЬ '!$AC$19:$HF$19,0)),\"\")","v":"11:00:00"},{"$f":"IFERROR(INDEX('[4]ГРАФИК И.Б.НОЯБРЬ '!$AC68:$HF68,1,MATCH(H$10,'[4]ГРАФИК И.Б.НОЯБРЬ '!$AC$19:$HF$19,0)),\"\")","v":"00:00:00"},{"$f":"IFERROR(INDEX('[4]ГРАФИК И.Б.НОЯБРЬ '!$AC68:$HF68,1,MATCH(I$10,'[4]ГРАФИК И.Б.НОЯБРЬ '!$AC$19:$HF$19,0)),\"\")","v":"11:00:00"},{"$f":"IFERROR(INDEX('[4]ГРАФИК И.Б.НОЯБРЬ '!$AC68:$HF68,1,MATCH(J$10,'[4]ГРАФИК И.Б.НОЯБРЬ '!$AC$19:$HF$19,0)),\"\")","v":"00:00:00"},{"$f":"IFERROR(INDEX('[4]ГРАФИК И.Б.НОЯБРЬ '!$AC68:$HF68,1,MATCH(K$10,'[4]ГРАФИК И.Б.НОЯБРЬ '!$AC$19:$HF$19,0)),\"\")","v":"11:00:00"},{"$f":"IFERROR(INDEX('[4]ГРАФИК И.Б.НОЯБРЬ '!$AC68:$HF68,1,MATCH(L$10,'[4]ГРАФИК И.Б.НОЯБРЬ '!$AC$19:$HF$19,0)),\"\")","v":"00:00:00"},{"$f":"IFERROR(INDEX('[4]ГРАФИК И.Б.НОЯБРЬ '!$AC68:$HF68,1,MATCH(M$10,'[4]ГРАФИК И.Б.НОЯБРЬ '!$AC$19:$HF$19,0)),\"\")","v":"11:00:00"},{"$f":"IFERROR(INDEX('[4]ГРАФИК И.Б.НОЯБРЬ '!$AC68:$HF68,1,MATCH(N$10,'[4]ГРАФИК И.Б.НОЯБРЬ '!$AC$19:$HF$19,0)),\"\")","v":"00:00:00"},{"$f":"IFERROR(INDEX('[4]ГРАФИК И.Б.НОЯБРЬ '!$AC68:$HF68,1,MATCH(O$10,'[4]ГРАФИК И.Б.НОЯБРЬ '!$AC$19:$HF$19,0)),\"\")","v":"11:00:00"},{"$f":"IFERROR(INDEX('[4]ГРАФИК И.Б.НОЯБРЬ '!$AC68:$HF68,1,MATCH(P$10,'[4]ГРАФИК И.Б.НОЯБРЬ '!$AC$19:$HF$19,0)),\"\")","v":"00:00:00"},{"$f":"IFERROR(INDEX('[4]ГРАФИК И.Б.НОЯБРЬ '!$AC68:$HF68,1,MATCH(Q$10,'[4]ГРАФИК И.Б.НОЯБРЬ '!$AC$19:$HF$19,0)),\"\")","v":"11:00:00"},{"$f":"IFERROR(INDEX('[4]ГРАФИК И.Б.НОЯБРЬ '!$AC68:$HF68,1,MATCH(R$10,'[4]ГРАФИК И.Б.НОЯБРЬ '!$AC$19:$HF$19,0)),\"\")","v":"00:00:00"},{"$f":"IFERROR(INDEX('[4]ГРАФИК И.Б.НОЯБРЬ '!$AC68:$HF68,1,MATCH(S$10,'[4]ГРАФИК И.Б.НОЯБРЬ '!$AC$19:$HF$19,0)),\"\")","v":"11:00:00"},{"$f":"IFERROR(INDEX('[4]ГРАФИК И.Б.НОЯБРЬ '!$AC68:$HF68,1,MATCH(T$10,'[4]ГРАФИК И.Б.НОЯБРЬ '!$AC$19:$HF$19,0)),\"\")","v":"00:00:00"},{"$f":"IFERROR(INDEX('[4]ГРАФИК И.Б.НОЯБРЬ '!$AC68:$HF68,1,MATCH(U$10,'[4]ГРАФИК И.Б.НОЯБРЬ '!$AC$19:$HF$19,0)),\"\")","v":""},{"$f":"IFERROR(INDEX('[4]ГРАФИК И.Б.НОЯБРЬ '!$AC68:$HF68,1,MATCH(V$10,'[4]ГРАФИК И.Б.НОЯБРЬ '!$AC$19:$HF$19,0)),\"\")","v":"11:00:00"},{"$f":"IFERROR(INDEX('[4]ГРАФИК И.Б.НОЯБРЬ '!$AC68:$HF68,1,MATCH(W$10,'[4]ГРАФИК И.Б.НОЯБРЬ '!$AC$19:$HF$19,0)),\"\")","v":"00:00:00"},{"$f":"IFERROR(INDEX('[4]ГРАФИК И.Б.НОЯБРЬ '!$AC68:$HF68,1,MATCH(X$10,'[4]ГРАФИК И.Б.НОЯБРЬ '!$AC$19:$HF$19,0)),\"\")","v":"11:00:00"},{"$f":"IFERROR(INDEX('[4]ГРАФИК И.Б.НОЯБРЬ '!$AC68:$HF68,1,MATCH(Y$10,'[4]ГРАФИК И.Б.НОЯБРЬ '!$AC$19:$HF$19,0)),\"\")","v":"00:00:00"},{"$f":"IFERROR(INDEX('[4]ГРАФИК И.Б.НОЯБРЬ '!$AC68:$HF68,1,MATCH(Z$10,'[4]ГРАФИК И.Б.НОЯБРЬ '!$AC$19:$HF$19,0)),\"\")","v":"10:00:00"},{"$f":"IFERROR(INDEX('[4]ГРАФИК И.Б.НОЯБРЬ '!$AC68:$HF68,1,MATCH(AA$10,'[4]ГРАФИК И.Б.НОЯБРЬ '!$AC$19:$HF$19,0)),\"\")","v":"00:00:00"},{"$f":"IFERROR(INDEX('[4]ГРАФИК И.Б.НОЯБРЬ '!$AC68:$HF68,1,MATCH(AB$10,'[4]ГРАФИК И.Б.НОЯБРЬ '!$AC$19:$HF$19,0)),\"\")","v":"10:00:00"},{"$f":"IFERROR(INDEX('[4]ГРАФИК И.Б.НОЯБРЬ '!$AC68:$HF68,1,MATCH(AC$10,'[4]ГРАФИК И.Б.НОЯБРЬ '!$AC$19:$HF$19,0)),\"\")","v":"00:00:00"},{"$f":"IFERROR(INDEX('[4]ГРАФИК И.Б.НОЯБРЬ '!$AC68:$HF68,1,MATCH(AD$10,'[4]ГРАФИК И.Б.НОЯБРЬ '!$AC$19:$HF$19,0)),\"\")","v":"10:00:00"},{"$f":"IFERROR(INDEX('[4]ГРАФИК И.Б.НОЯБРЬ '!$AC68:$HF68,1,MATCH(AE$10,'[4]ГРАФИК И.Б.НОЯБРЬ '!$AC$19:$HF$19,0)),\"\")","v":"00:00:00"},{"$f":"IFERROR(INDEX('[4]ГРАФИК И.Б.НОЯБРЬ '!$AC68:$HF68,1,MATCH(AF$10,'[4]ГРАФИК И.Б.НОЯБРЬ '!$AC$19:$HF$19,0)),\"\")","v":"10:00:00"},{"$f":"IFERROR(INDEX('[4]ГРАФИК И.Б.НОЯБРЬ '!$AC68:$HF68,1,MATCH(AG$10,'[4]ГРАФИК И.Б.НОЯБРЬ '!$AC$19:$HF$19,0)),\"\")","v":"00:00:00"},{"$f":"IFERROR(INDEX('[4]ГРАФИК И.Б.НОЯБРЬ '!$AC68:$HF68,1,MATCH(AH$10,'[4]ГРАФИК И.Б.НОЯБРЬ '!$AC$19:$HF$19,0)),\"\")","v":"10:00:00"},{"$f":"IFERROR(INDEX('[4]ГРАФИК И.Б.НОЯБРЬ '!$AC68:$HF68,1,MATCH(AI$10,'[4]ГРАФИК И.Б.НОЯБРЬ '!$AC$19:$HF$19,0)),\"\")","v":"00:00:00"},{"$f":"IFERROR(INDEX('[4]ГРАФИК И.Б.НОЯБРЬ '!$AC68:$HF68,1,MATCH(AJ$10,'[4]ГРАФИК И.Б.НОЯБРЬ '!$AC$19:$HF$19,0)),\"\")","v":"10:00:00"},{"$f":"IFERROR(INDEX('[4]ГРАФИК И.Б.НОЯБРЬ '!$AC68:$HF68,1,MATCH(AK$10,'[4]ГРАФИК И.Б.НОЯБРЬ '!$AC$19:$HF$19,0)),\"\")","v":""},{"$f":"COUNTIF($F30:$AK30,\">0\")","v":15},{"$f":"SUM($F$30:$AK$30)","v":6.6250000000000018},null,{"$f":"SUMIF($F30:$AK30,\">8\",$F31:$AK31)","v":0},{"$f":"COUNTIF($F30:$AK30,\"=12\")+COUNTIF($F31:$AK31,\"=8\")*2","v":0},{"$f":"SUMIF($F$12:$AK$12,\"ЧП\",$F30:$AK30)","v":0},{"$f":"SUMPRODUCT(IF(ISNUMBER(F30:AK30),(F30:AK30>8)*(F30:AK30-8),0))","v":0},{"$f":"SUMIF(#REF!,\"в\",$F30:$AK30)","v":{"$error":"#REF!"}},{"$f":"IF($AN30>$BF$7,$AN30-$BF$7,\"–\")","v":"–"},{"$f":"SUM($AV30:$BD31)","v":0},{"$f":"COUNTIF($F30:$AK30,\"=От\")","v":0},{"$f":"COUNTIF($F30:$AK30,\"=Б\")","v":0},{"$f":"COUNTIF($F30:$AK30,\"=А\")","v":0},{"$f":"COUNTIF($F30:$AK30,\"=Ор\")","v":0},{"$f":"COUNTIF($F30:$AK30,\"=У\")","v":0},{"$f":"COUNTIF($F30:$AK30,\"=Ч\")","v":0},{"$f":"COUNTIF($F30:$AK30,\"=Пр\")","v":0},{"$f":"COUNTIF($F30:$AK30,\"=Ож\")","v":0},{"$f":"COUNTIF($F30:$AK30,\"=К\")","v":0},{"$f":"COUNTIF(F31:AK31,\"В\")","v":15}]
[null,null,null,null,null,{"$f":"IF('[4]ГРАФИК И.Б.НОЯБРЬ '!AC65=\"ОТ\",\"ОТ\",IF(F30=0,\"В\",\"Я\"))","v":"В"},{"$f":"IF('[4]ГРАФИК И.Б.НОЯБРЬ '!AD65=\"ОТ\",\"ОТ\",IF(G30=0,\"В\",\"Я\"))","v":"Я"},{"$f":"IF('[4]ГРАФИК И.Б.НОЯБРЬ '!AE65=\"ОТ\",\"ОТ\",IF(H30=0,\"В\",\"Я\"))","v":"В"},{"$f":"IF('[4]ГРАФИК И.Б.НОЯБРЬ '!AF65=\"ОТ\",\"ОТ\",IF(I30=0,\"В\",\"Я\"))","v":"Я"},{"$f":"IF('[4]ГРАФИК И.Б.НОЯБРЬ '!AG65=\"ОТ\",\"ОТ\",IF(J30=0,\"В\",\"Я\"))","v":"В"},{"$f":"IF('[4]ГРАФИК И.Б.НОЯБРЬ '!AH65=\"ОТ\",\"ОТ\",IF(K30=0,\"В\",\"Я\"))","v":"Я"},{"$f":"IF('[4]ГРАФИК И.Б.НОЯБРЬ '!AI65=\"ОТ\",\"ОТ\",IF(L30=0,\"В\",\"Я\"))","v":"В"},{"$f":"IF('[4]ГРАФИК И.Б.НОЯБРЬ '!AJ65=\"ОТ\",\"ОТ\",IF(M30=0,\"В\",\"Я\"))","v":"Я"},{"$f":"IF('[4]ГРАФИК И.Б.НОЯБРЬ '!AK65=\"ОТ\",\"ОТ\",IF(N30=0,\"В\",\"Я\"))","v":"В"},{"$f":"IF('[4]ГРАФИК И.Б.НОЯБРЬ '!AL65=\"ОТ\",\"ОТ\",IF(O30=0,\"В\",\"Я\"))","v":"Я"},{"$f":"IF('[4]ГРАФИК И.Б.НОЯБРЬ '!AM65=\"ОТ\",\"ОТ\",IF(P30=0,\"В\",\"Я\"))","v":"В"},{"$f":"IF('[4]ГРАФИК И.Б.НОЯБРЬ '!AN65=\"ОТ\",\"ОТ\",IF(Q30=0,\"В\",\"Я\"))","v":"Я"},{"$f":"IF('[4]ГРАФИК И.Б.НОЯБРЬ '!AO65=\"ОТ\",\"ОТ\",IF(R30=0,\"В\",\"Я\"))","v":"В"},{"$f":"IF('[4]ГРАФИК И.Б.НОЯБРЬ '!AP65=\"ОТ\",\"ОТ\",IF(S30=0,\"В\",\"Я\"))","v":"Я"},{"$f":"IF('[4]ГРАФИК И.Б.НОЯБРЬ '!AQ65=\"ОТ\",\"ОТ\",IF(T30=0,\"В\",\"Я\"))","v":"В"}," ",{"$f":"IF('[4]ГРАФИК И.Б.НОЯБРЬ '!AS65=\"ОТ\",\"ОТ\",IF(V30=0,\"В\",\"Я\"))","v":"Я"},{"$f":"IF('[4]ГРАФИК И.Б.НОЯБРЬ '!AT65=\"ОТ\",\"ОТ\",IF(W30=0,\"В\",\"Я\"))","v":"В"},{"$f":"IF('[4]ГРАФИК И.Б.НОЯБРЬ '!AU65=\"ОТ\",\"ОТ\",IF(X30=0,\"В\",\"Я\"))","v":"Я"},{"$f":"IF('[4]ГРАФИК И.Б.НОЯБРЬ '!AV65=\"ОТ\",\"ОТ\",IF(Y30=0,\"В\",\"Я\"))","v":"В"},{"$f":"IF('[4]ГРАФИК И.Б.НОЯБРЬ '!AW65=\"ОТ\",\"ОТ\",IF(Z30=0,\"В\",\"Я\"))","v":"Я"},{"$f":"IF('[4]ГРАФИК И.Б.НОЯБРЬ '!AX65=\"ОТ\",\"ОТ\",IF(AA30=0,\"В\",\"Я\"))","v":"В"},{"$f":"IF('[4]ГРАФИК И.Б.НОЯБРЬ '!AY65=\"ОТ\",\"ОТ\",IF(AB30=0,\"В\",\"Я\"))","v":"Я"},{"$f":"IF('[4]ГРАФИК И.Б.НОЯБРЬ '!AZ65=\"ОТ\",\"ОТ\",IF(AC30=0,\"В\",\"Я\"))","v":"В"},{"$f":"IF('[4]ГРАФИК И.Б.НОЯБРЬ '!BA65=\"ОТ\",\"ОТ\",IF(AD30=0,\"В\",\"Я\"))","v":"Я"},{"$f":"IF('[4]ГРАФИК И.Б.НОЯБРЬ '!BB65=\"ОТ\",\"ОТ\",IF(AE30=0,\"В\",\"Я\"))","v":"В"},{"$f":"IF('[4]ГРАФИК И.Б.НОЯБРЬ '!BC65=\"ОТ\",\"ОТ\",IF(AF30=0,\"В\",\"Я\"))","v":"Я"},{"$f":"IF('[4]ГРАФИК И.Б.НОЯБРЬ '!BD65=\"ОТ\",\"ОТ\",IF(AG30=0,\"В\",\"Я\"))","v":"В"},{"$f":"IF('[4]ГРАФИК И.Б.НОЯБРЬ '!BE65=\"ОТ\",\"ОТ\",IF(AH30=0,\"В\",\"Я\"))","v":"Я"},{"$f":"IF('[4]ГРАФИК И.Б.НОЯБРЬ '!BF65=\"ОТ\",\"ОТ\",IF(AI30=0,\"В\",\"Я\"))","v":"В"},{"$f":"IF('[4]ГРАФИК И.Б.НОЯБРЬ '!BG65=\"ОТ\",\"ОТ\",IF(AJ30=0,\"В\",\"Я\"))","v":"Я"}]
[null,null,null,"сторож",null,{"$f":"IFERROR(INDEX('[4]ГРАФИК И.Б.НОЯБРЬ '!$AC85:$HF85,1,MATCH(F$10,'[4]ГРАФИК И.Б.НОЯБРЬ '!$AC$19:$HF$19,0)),\"\")","v":"09:00:00"},{"$f":"IFERROR(INDEX('[4]ГРАФИК И.Б.НОЯБРЬ '!$AC85:$HF85,1,MATCH(G$10,'[4]ГРАФИК И.Б.НОЯБРЬ '!$AC$19:$HF$19,0)),\"\")","v":"00:00:00"},{"$f":"IFERROR(INDEX('[4]ГРАФИК И.Б.НОЯБРЬ '!$AC85:$HF85,1,MATCH(H$10,'[4]ГРАФИК И.Б.НОЯБРЬ '!$AC$19:$HF$19,0)),\"\")","v":"07:00:00"},{"$f":"IFERROR(INDEX('[4]ГРАФИК И.Б.НОЯБРЬ '!$AC85:$HF85,1,MATCH(I$10,'[4]ГРАФИК И.Б.НОЯБРЬ '!$AC$19:$HF$19,0)),\"\")","v":"09:00:00"},{"$f":"IFERROR(INDEX('[4]ГРАФИК И.Б.НОЯБРЬ '!$AC85:$HF85,1,MATCH(J$10,'[4]ГРАФИК И.Б.НОЯБРЬ '!$AC$19:$HF$19,0)),\"\")","v":"00:00:00"},{"$f":"IFERROR(INDEX('[4]ГРАФИК И.Б.НОЯБРЬ '!$AC85:$HF85,1,MATCH(K$10,'[4]ГРАФИК И.Б.НОЯБРЬ '!$AC$19:$HF$19,0)),\"\")","v":"07:00:00"},{"$f":"IFERROR(INDEX('[4]ГРАФИК И.Б.НОЯБРЬ '!$AC85:$HF85,1,MATCH(L$10,'[4]ГРАФИК И.Б.НОЯБРЬ '!$AC$19:$HF$19,0)),\"\")","v":"09:00:00"},{"$f":"IFERROR(INDEX('[4]ГРАФИК И.Б.НОЯБРЬ '!$AC85:$HF85,1,MATCH(M$10,'[4]ГРАФИК И.Б.НОЯБРЬ '!$AC$19:$HF$19,0)),\"\")","v":"00:00:00"},{"$f":"IFERROR(INDEX('[4]ГРАФИК И.Б.НОЯБРЬ '!$AC85:$HF85,1,MATCH(N$10,'[4]ГРАФИК И.Б.НОЯБРЬ '!$AC$19:$HF$19,0)),\"\")","v":"07:00:00"},{"$f":"IFERROR(INDEX('[4]ГРАФИК И.Б.НОЯБРЬ '!$AC85:$HF85,1,MATCH(O$10,'[4]ГРАФИК И.Б.НОЯБРЬ '!$AC$19:$HF$19,0)),\"\")","v":"09:00:00"},{"$f":"IFERROR(INDEX('[4]ГРАФИК И.Б.НОЯБРЬ '!$AC85:$HF85,1,MATCH(P$10,'[4]ГРАФИК И.Б.НОЯБРЬ '!$AC$19:$HF$19,0)),\"\")","v":"00:00:00"},{"$f":"IFERROR(INDEX('[4]ГРАФИК И.Б.НОЯБРЬ '!$AC85:$HF85,1,MATCH(Q$10,'[4]ГРАФИК И.Б.НОЯБРЬ '!$AC$19:$HF$19,0)),\"\")","v":"07:00:00"},{"$f":"IFERROR(INDEX('[4]ГРАФИК И.Б.НОЯБРЬ '!$AC85:$HF85,1,MATCH(R$10,'[4]ГРАФИК И.Б.НОЯБРЬ '!$AC$19:$HF$19,0)),\"\")","v":"09:00:00"},{"$f":"IFERROR(INDEX('[4]ГРАФИК И.Б.НОЯБРЬ '!$AC85:$HF85,1,MATCH(S$10,'[4]ГРАФИК И.Б.НОЯБРЬ '!$AC$19:$HF$19,0)),\"\")","v":"00:00:00"},{"$f":"IFERROR(INDEX('[4]ГРАФИК И.Б.НОЯБРЬ '!$AC85:$HF85,1,MATCH(T$10,'[4]ГРАФИК И.Б.НОЯБРЬ '!$AC$19:$HF$19,0)),\"\")","v":"07:00:00"},{"$f":"IFERROR(INDEX('[4]ГРАФИК И.Б.НОЯБРЬ '!$AC85:$HF85,1,MATCH(U$10,'[4]ГРАФИК И.Б.НОЯБРЬ '!$AC$19:$HF$19,0)),\"\")","v":""},{"$f":"IFERROR(INDEX('[4]ГРАФИК И.Б.НОЯБРЬ '!$AC85:$HF85,1,MATCH(V$10,'[4]ГРАФИК И.Б.НОЯБРЬ '!$AC$19:$HF$19,0)),\"\")","v":"09:00:00"},{"$f":"IFERROR(INDEX('[4]ГРАФИК И.Б.НОЯБРЬ '!$AC85:$HF85,1,MATCH(W$10,'[4]ГРАФИК И.Б.НОЯБРЬ '!$AC$19:$HF$19,0)),\"\")","v":"00:00:00"},{"$f":"IFERROR(INDEX('[4]ГРАФИК И.Б.НОЯБРЬ '!$AC85:$HF85,1,MATCH(X$10,'[4]ГРАФИК И.Б.НОЯБРЬ '!$AC$19:$HF$19,0)),\"\")","v":"07:00:00"},{"$f":"IFERROR(INDEX('[4]ГРАФИК И.Б.НОЯБРЬ '!$AC85:$HF85,1,MATCH(Y$10,'[4]ГРАФИК И.Б.НОЯБРЬ '!$AC$19:$HF$19,0)),\"\")","v":"09:00:00"},{"$f":"IFERROR(INDEX('[4]ГРАФИК И.Б.НОЯБРЬ '!$AC85:$HF85,1,MATCH(Z$10,'[4]ГРАФИК И.Б.НОЯБРЬ '!$AC$19:$HF$19,0)),\"\")","v":"00:00:00"},{"$f":"IFERROR(INDEX('[4]ГРАФИК И.Б.НОЯБРЬ '!$AC85:$HF85,1,MATCH(AA$10,'[4]ГРАФИК И.Б.НОЯБРЬ '!$AC$19:$HF$19,0)),\"\")","v":"07:00:00"},{"$f":"IFERROR(INDEX('[4]ГРАФИК И.Б.НОЯБРЬ '!$AC85:$HF85,1,MATCH(AB$10,'[4]ГРАФИК И.Б.НОЯБРЬ '!$AC$19:$HF$19,0)),\"\")","v":"09:00:00"},{"$f":"IFERROR(INDEX('[4]ГРАФИК И.Б.НОЯБРЬ '!$AC85:$HF85,1,MATCH(AC$10,'[4]ГРАФИК И.Б.НОЯБРЬ '!$AC$19:$HF$19,0)),\"\")","v":"00:00:00"},{"$f":"IFERROR(INDEX('[4]ГРАФИК И.Б.НОЯБРЬ '!$AC85:$HF85,1,MATCH(AD$10,'[4]ГРАФИК И.Б.НОЯБРЬ '!$AC$19:$HF$19,0)),\"\")","v":"07:00:00"},{"$f":"IFERROR(INDEX('[4]ГРАФИК И.Б.НОЯБРЬ '!$AC85:$HF85,1,MATCH(AE$10,'[4]ГРАФИК И.Б.НОЯБРЬ '!$AC$19:$HF$19,0)),\"\")","v":"09:00:00"},{"$f":"IFERROR(INDEX('[4]ГРАФИК И.Б.НОЯБРЬ '!$AC85:$HF85,1,MATCH(AF$10,'[4]ГРАФИК И.Б.НОЯБРЬ '!$AC$19:$HF$19,0)),\"\")","v":"00:00:00"},{"$f":"IFERROR(INDEX('[4]ГРАФИК И.Б.НОЯБРЬ '!$AC85:$HF85,1,MATCH(AG$10,'[4]ГРАФИК И.Б.НОЯБРЬ '!$AC$19:$HF$19,0)),\"\")","v":"07:00:00"},{"$f":"IFERROR(INDEX('[4]ГРАФИК И.Б.НОЯБРЬ '!$AC85:$HF85,1,MATCH(AH$10,'[4]ГРАФИК И.Б.НОЯБРЬ '!$AC$19:$HF$19,0)),\"\")","v":"09:00:00"},{"$f":"IFERROR(INDEX('[4]ГРАФИК И.Б.НОЯБРЬ '!$AC85:$HF85,1,MATCH(AI$10,'[4]ГРАФИК И.Б.НОЯБРЬ '!$AC$19:$HF$19,0)),\"\")","v":"00:00:00"},{"$f":"IFERROR(INDEX('[4]ГРАФИК И.Б.НОЯБРЬ '!$AC85:$HF85,1,MATCH(AJ$10,'[4]ГРАФИК И.Б.НОЯБРЬ '!$AC$19:$HF$19,0)),\"\")","v":"06:00:00"},{"$f":"IFERROR(INDEX('[4]ГРАФИК И.Б.НОЯБРЬ '!$AC85:$HF85,1,MATCH(AK$10,'[4]ГРАФИК И.Б.НОЯБРЬ '!$AC$19:$HF$19,0)),\"\")","v":""},{"$f":"COUNTIF($F32:$AK32,\">0\")","v":20},{"$f":"SUM($F$32:$AK$32)","v":6.625},null,null,null,null,null,null,null,null,null,null,null,null,null,null,null,null,null,10]
[null,null,null,null,null,{"$f":"IF('[4]ГРАФИК И.Б.НОЯБРЬ '!AC83=\"ОТ\",\"ОТ\",IF(F32=0,\"В\",\"Я\"))","v":"Я"},{"$f":"IF('[4]ГРАФИК И.Б.НОЯБРЬ '!AD83=\"ОТ\",\"ОТ\",IF(G32=0,\"В\",\"Я\"))","v":"В"},{"$f":"IF('[4]ГРАФИК И.Б.НОЯБРЬ '!AE83=\"ОТ\",\"ОТ\",IF(H32=0,\"В\",\"Я\"))","v":"Я"},{"$f":"IF('[4]ГРАФИК И.Б.НОЯБРЬ '!AF83=\"ОТ\",\"ОТ\",IF(I32=0,\"В\",\"Я\"))","v":"Я"},{"$f":"IF('[4]ГРАФИК И.Б.НОЯБРЬ '!AG83=\"ОТ\",\"ОТ\",IF(J32=0,\"В\",\"Я\"))","v":"В"},{"$f":"IF('[4]ГРАФИК И.Б.НОЯБРЬ '!AH83=\"ОТ\",\"ОТ\",IF(K32=0,\"В\",\"Я\"))","v":"Я"},{"$f":"IF('[4]ГРАФИК И.Б.НОЯБРЬ '!AI83=\"ОТ\",\"ОТ\",IF(L32=0,\"В\",\"Я\"))","v":"Я"},{"$f":"IF('[4]ГРАФИК И.Б.НОЯБРЬ '!AJ83=\"ОТ\",\"ОТ\",IF(M32=0,\"В\",\"Я\"))","v":"В"},{"$f":"IF('[4]ГРАФИК И.Б.НОЯБРЬ '!AK83=\"ОТ\",\"ОТ\",IF(N32=0,\"В\",\"Я\"))","v":"Я"},{"$f":"IF('[4]ГРАФИК И.Б.НОЯБРЬ '!AL83=\"ОТ\",\"ОТ\",IF(O32=0,\"В\",\"Я\"))","v":"Я"},{"$f":"IF('[4]ГРАФИК И.Б.НОЯБРЬ '!AM83=\"ОТ\",\"ОТ\",IF(P32=0,\"В\",\"Я\"))","v":"В"},{"$f":"IF('[4]ГРАФИК И.Б.НОЯБРЬ '!AN83=\"ОТ\",\"ОТ\",IF(Q32=0,\"В\",\"Я\"))","v":"Я"},{"$f":"IF('[4]ГРАФИК И.Б.НОЯБРЬ '!AO83=\"ОТ\",\"ОТ\",IF(R32=0,\"В\",\"Я\"))","v":"Я"},{"$f":"IF('[4]ГРАФИК И.Б.НОЯБРЬ '!AP83=\"ОТ\",\"ОТ\",IF(S32=0,\"В\",\"Я\"))","v":"В"},{"$f":"IF('[4]ГРАФИК И.Б.НОЯБРЬ '!AQ83=\"ОТ\",\"ОТ\",IF(T32=0,\"В\",\"Я\"))","v":"Я"}," ",{"$f":"IF('[4]ГРАФИК И.Б.НОЯБРЬ '!AS83=\"ОТ\",\"ОТ\",IF(V32=0,\"В\",\"Я\"))","v":"Я"},{"$f":"IF('[4]ГРАФИК И.Б.НОЯБРЬ '!AT83=\"ОТ\",\"ОТ\",IF(W32=0,\"В\",\"Я\"))","v":"В"},{"$f":"IF('[4]ГРАФИК И.Б.НОЯБРЬ '!AU83=\"ОТ\",\"ОТ\",IF(X32=0,\"В\",\"Я\"))","v":"Я"},{"$f":"IF('[4]ГРАФИК И.Б.НОЯБРЬ '!AV83=\"ОТ\",\"ОТ\",IF(Y32=0,\"В\",\"Я\"))","v":"Я"},{"$f":"IF('[4]ГРАФИК И.Б.НОЯБРЬ '!AW83=\"ОТ\",\"ОТ\",IF(Z32=0,\"В\",\"Я\"))","v":"В"},{"$f":"IF('[4]ГРАФИК И.Б.НОЯБРЬ '!AX83=\"ОТ\",\"ОТ\",IF(AA32=0,\"В\",\"Я\"))","v":"Я"},{"$f":"IF('[4]ГРАФИК И.Б.НОЯБРЬ '!AY83=\"ОТ\",\"ОТ\",IF(AB32=0,\"В\",\"Я\"))","v":"Я"},{"$f":"IF('[4]ГРАФИК И.Б.НОЯБРЬ '!AZ83=\"ОТ\",\"ОТ\",IF(AC32=0,\"В\",\"Я\"))","v":"В"},{"$f":"IF('[4]ГРАФИК И.Б.НОЯБРЬ '!BA83=\"ОТ\",\"ОТ\",IF(AD32=0,\"В\",\"Я\"))","v":"Я"},{"$f":"IF('[4]ГРАФИК И.Б.НОЯБРЬ '!BB83=\"ОТ\",\"ОТ\",IF(AE32=0,\"В\",\"Я\"))","v":"Я"},{"$f":"IF('[4]ГРАФИК И.Б.НОЯБРЬ '!BC83=\"ОТ\",\"ОТ\",IF(AF32=0,\"В\",\"Я\"))","v":"В"},{"$f":"IF('[4]ГРАФИК И.Б.НОЯБРЬ '!BD83=\"ОТ\",\"ОТ\",IF(AG32=0,\"В\",\"Я\"))","v":"Я"},{"$f":"IF('[4]ГРАФИК И.Б.НОЯБРЬ '!BE83=\"ОТ\",\"ОТ\",IF(AH32=0,\"В\",\"Я\"))","v":"Я"},{"$f":"IF('[4]ГРАФИК И.Б.НОЯБРЬ '!BF83=\"ОТ\",\"ОТ\",IF(AI32=0,\"В\",\"Я\"))","v":"В"},{"$f":"IF('[4]ГРАФИК И.Б.НОЯБРЬ '!BG83=\"ОТ\",\"ОТ\",IF(AJ32=0,\"В\",\"Я\"))","v":"Я"}]
[null,null,null,"контролёр-посадчик аттракциона",null,{"$f":"IFERROR(INDEX('[4]ГРАФИК И.Б.НОЯБРЬ '!$AC74:$HF74,1,MATCH(F$10,'[4]ГРАФИК И.Б.НОЯБРЬ '!$AC$19:$HF$19,0)),\"\")","v":"00:00:00"},{"$f":"IFERROR(INDEX('[4]ГРАФИК И.Б.НОЯБРЬ '!$AC74:$HF74,1,MATCH(G$10,'[4]ГРАФИК И.Б.НОЯБРЬ '!$AC$19:$HF$19,0)),\"\")","v":"00:00:00"},{"$f":"IFERROR(INDEX('[4]ГРАФИК И.Б.НОЯБРЬ '!$AC74:$HF74,1,MATCH(H$10,'[4]ГРАФИК И.Б.НОЯБРЬ '!$AC$19:$HF$19,0)),\"\")","v":"00:00:00"},{"$f":"IFERROR(INDEX('[4]ГРАФИК И.Б.НОЯБРЬ '!$AC74:$HF74,1,MATCH(I$10,'[4]ГРАФИК И.Б.НОЯБРЬ '!$AC$19:$HF$19,0)),\"\")","v":"00:00:00"},{"$f":"IFERROR(INDEX('[4]ГРАФИК И.Б.НОЯБРЬ '!$AC74:$HF74,1,MATCH(J$10,'[4]ГРАФИК И.Б.НОЯБРЬ '!$AC$19:$HF$19,0)),\"\")","v":"00:00:00"},{"$f":"IFERROR(INDEX('[4]ГРАФИК И.Б.НОЯБРЬ '!$AC74:$HF74,1,MATCH(K$10,'[4]ГРАФИК И.Б.НОЯБРЬ '!$AC$19:$HF$19,0)),\"\")","v":"00:00:00"},{"$f":"IFERROR(INDEX('[4]ГРАФИК И.Б.НОЯБРЬ '!$AC74:$HF74,1,MATCH(L$10,'[4]ГРАФИК И.Б.НОЯБРЬ '!$AC$19:$HF$19,0)),\"\")","v":"00:00:00"},{"$f":"IFERROR(INDEX('[4]ГРАФИК И.Б.НОЯБРЬ '!$AC74:$HF74,1,MATCH(M$10,'[4]ГРАФИК И.Б.НОЯБРЬ '!$AC$19:$HF$19,0)),\"\")","v":"00:00:00"},{"$f":"IFERROR(INDEX('[4]ГРАФИК И.Б.НОЯБРЬ '!$AC74:$HF74,1,MATCH(N$10,'[4]ГРАФИК И.Б.НОЯБРЬ '!$AC$19:$HF$19,0)),\"\")","v":"00:00:00"},{"$f":"IFERROR(INDEX('[4]ГРАФИК И.Б.НОЯБРЬ '!$AC74:$HF74,1,MATCH(O$10,'[4]ГРАФИК И.Б.НОЯБРЬ '!$AC$19:$HF$19,0)),\"\")","v":"00:00:00"},{"$f":"IFERROR(INDEX('[4]ГРАФИК И.Б.НОЯБРЬ '!$AC74:$HF74,1,MATCH(P$10,'[4]ГРАФИК И.Б.НОЯБРЬ '!$AC$19:$HF$19,0)),\"\")","v":"00:00:00"},{"$f":"IFERROR(INDEX('[4]ГРАФИК И.Б.НОЯБРЬ '!$AC74:$HF74,1,MATCH(Q$10,'[4]ГРАФИК И.Б.НОЯБРЬ '!$AC$19:$HF$19,0)),\"\")","v":"00:00:00"},{"$f":"IFERROR(INDEX('[4]ГРАФИК И.Б.НОЯБРЬ '!$AC74:$HF74,1,MATCH(R$10,'[4]ГРАФИК И.Б.НОЯБРЬ '!$AC$19:$HF$19,0)),\"\")","v":"00:00:00"},{"$f":"IFERROR(INDEX('[4]ГРАФИК И.Б.НОЯБРЬ '!$AC74:$HF74,1,MATCH(S$10,'[4]ГРАФИК И.Б.НОЯБРЬ '!$AC$19:$HF$19,0)),\"\")","v":"00:00:00"},{"$f":"IFERROR(INDEX('[4]ГРАФИК И.Б.НОЯБРЬ '!$AC74:$HF74,1,MATCH(T$10,'[4]ГРАФИК И.Б.НОЯБРЬ '!$AC$19:$HF$19,0)),\"\")","v":"00:00:00"},{"$f":"IFERROR(INDEX('[4]ГРАФИК И.Б.НОЯБРЬ '!$AC74:$HF74,1,MATCH(U$10,'[4]ГРАФИК И.Б.НОЯБРЬ '!$AC$19:$HF$19,0)),\"\")","v":""},{"$f":"IFERROR(INDEX('[4]ГРАФИК И.Б.НОЯБРЬ '!$AC74:$HF74,1,MATCH(V$10,'[4]ГРАФИК И.Б.НОЯБРЬ '!$AC$19:$HF$19,0)),\"\")","v":"00:00:00"},{"$f":"IFERROR(INDEX('[4]ГРАФИК И.Б.НОЯБРЬ '!$AC74:$HF74,1,MATCH(W$10,'[4]ГРАФИК И.Б.НОЯБРЬ '!$AC$19:$HF$19,0)),\"\")","v":"00:00:00"},{"$f":"IFERROR(INDEX('[4]ГРАФИК И.Б.НОЯБРЬ '!$AC74:$HF74,1,MATCH(X$10,'[4]ГРАФИК И.Б.НОЯБРЬ '!$AC$19:$HF$19,0)),\"\")","v":"00:00:00"},{"$f":"IFERROR(INDEX('[4]ГРАФИК И.Б.НОЯБРЬ '!$AC74:$HF74,1,MATCH(Y$10,'[4]ГРАФИК И.Б.НОЯБРЬ '!$AC$19:$HF$19,0)),\"\")","v":"00:00:00"},{"$f":"IFERROR(INDEX('[4]ГРАФИК И.Б.НОЯБРЬ '!$AC74:$HF74,1,MATCH(Z$10,'[4]ГРАФИК И.Б.НОЯБРЬ '!$AC$19:$HF$19,0)),\"\")","v":"00:00:00"},{"$f":"IFERROR(INDEX('[4]ГРАФИК И.Б.НОЯБРЬ '!$AC74:$HF74,1,MATCH(AA$10,'[4]ГРАФИК И.Б.НОЯБРЬ '!$AC$19:$HF$19,0)),\"\")","v":"00:00:00"},{"$f":"IFERROR(INDEX('[4]ГРАФИК И.Б.НОЯБРЬ '!$AC74:$HF74,1,MATCH(AB$10,'[4]ГРАФИК И.Б.НОЯБРЬ '!$AC$19:$HF$19,0)),\"\")","v":"00:00:00"},{"$f":"IFERROR(INDEX('[4]ГРАФИК И.Б.НОЯБРЬ '!$AC74:$HF74,1,MATCH(AC$10,'[4]ГРАФИК И.Б.НОЯБРЬ '!$AC$19:$HF$19,0)),\"\")","v":"00:00:00"},{"$f":"IFERROR(INDEX('[4]ГРАФИК И.Б.НОЯБРЬ '!$AC74:$HF74,1,MATCH(AD$10,'[4]ГРАФИК И.Б.НОЯБРЬ '!$AC$19:$HF$19,0)),\"\")","v":"00:00:00"},{"$f":"IFERROR(INDEX('[4]ГРАФИК И.Б.НОЯБРЬ '!$AC74:$HF74,1,MATCH(AE$10,'[4]ГРАФИК И.Б.НОЯБРЬ '!$AC$19:$HF$19,0)),\"\")","v":"00:00:00"},{"$f":"IFERROR(INDEX('[4]ГРАФИК И.Б.НОЯБРЬ '!$AC74:$HF74,1,MATCH(AF$10,'[4]ГРАФИК И.Б.НОЯБРЬ '!$AC$19:$HF$19,0)),\"\")","v":"00:00:00"},{"$f":"IFERROR(INDEX('[4]ГРАФИК И.Б.НОЯБРЬ '!$AC74:$HF74,1,MATCH(AG$10,'[4]ГРАФИК И.Б.НОЯБРЬ '!$AC$19:$HF$19,0)),\"\")","v":"00:00:00"},{"$f":"IFERROR(INDEX('[4]ГРАФИК И.Б.НОЯБРЬ '!$AC74:$HF74,1,MATCH(AH$10,'[4]ГРАФИК И.Б.НОЯБРЬ '!$AC$19:$HF$19,0)),\"\")","v":"00:00:00"},{"$f":"IFERROR(INDEX('[4]ГРАФИК И.Б.НОЯБРЬ '!$AC74:$HF74,1,MATCH(AI$10,'[4]ГРАФИК И.Б.НОЯБРЬ '!$AC$19:$HF$19,0)),\"\")","v":"00:00:00"},{"$f":"IFERROR(INDEX('[4]ГРАФИК И.Б.НОЯБРЬ '!$AC74:$HF74,1,MATCH(AJ$10,'[4]ГРАФИК И.Б.НОЯБРЬ '!$AC$19:$HF$19,0)),\"\")","v":"00:00:00"},{"$f":"IFERROR(INDEX('[4]ГРАФИК И.Б.НОЯБРЬ '!$AC74:$HF74,1,MATCH(AK$10,'[4]ГРАФИК И.Б.НОЯБРЬ '!$AC$19:$HF$19,0)),\"\")","v":""},{"$f":"COUNTIF($F34:$AK34,\">0\")","v":0},{"$f":"SUM($F$34:$AK$34)","v":0},null,null,null,null,null,null,null,null,null,null,null,null,null,null,null,null,null,30]
[null,null,null,null,null,{"$f":"IF('[4]ГРАФИК И.Б.НОЯБРЬ '!AC71=\"ОТ\",\"ОТ\",IF(F34=0,\"В\",\"Я\"))","v":"В"},{"$f":"IF('[4]ГРАФИК И.Б.НОЯБРЬ '!AD71=\"ОТ\",\"ОТ\",IF(G34=0,\"В\",\"Я\"))","v":"В"},{"$f":"IF('[4]ГРАФИК И.Б.НОЯБРЬ '!AE71=\"ОТ\",\"ОТ\",IF(H34=0,\"В\",\"Я\"))","v":"В"},{"$f":"IF('[4]ГРАФИК И.Б.НОЯБРЬ '!AF71=\"ОТ\",\"ОТ\",IF(I34=0,\"В\",\"Я\"))","v":"В"},{"$f":"IF('[4]ГРАФИК И.Б.НОЯБРЬ '!AG71=\"ОТ\",\"ОТ\",IF(J34=0,\"В\",\"Я\"))","v":"В"},{"$f":"IF('[4]ГРАФИК И.Б.НОЯБРЬ '!AH71=\"ОТ\",\"ОТ\",IF(K34=0,\"В\",\"Я\"))","v":"В"},{"$f":"IF('[4]ГРАФИК И.Б.НОЯБРЬ '!AI71=\"ОТ\",\"ОТ\",IF(L34=0,\"В\",\"Я\"))","v":"В"},{"$f":"IF('[4]ГРАФИК И.Б.НОЯБРЬ '!AJ71=\"ОТ\",\"ОТ\",IF(M34=0,\"В\",\"Я\"))","v":"В"},{"$f":"IF('[4]ГРАФИК И.Б.НОЯБРЬ '!AK71=\"ОТ\",\"ОТ\",IF(N34=0,\"В\",\"Я\"))","v":"В"},{"$f":"IF('[4]ГРАФИК И.Б.НОЯБРЬ '!AL71=\"ОТ\",\"ОТ\",IF(O34=0,\"В\",\"Я\"))","v":"В"},{"$f":"IF('[4]ГРАФИК И.Б.НОЯБРЬ '!AM71=\"ОТ\",\"ОТ\",IF(P34=0,\"В\",\"Я\"))","v":"В"},{"$f":"IF('[4]ГРАФИК И.Б.НОЯБРЬ '!AN71=\"ОТ\",\"ОТ\",IF(Q34=0,\"В\",\"Я\"))","v":"В"},{"$f":"IF('[4]ГРАФИК И.Б.НОЯБРЬ '!AO71=\"ОТ\",\"ОТ\",IF(R34=0,\"В\",\"Я\"))","v":"В"},{"$f":"IF('[4]ГРАФИК И.Б.НОЯБРЬ '!AP71=\"ОТ\",\"ОТ\",IF(S34=0,\"В\",\"Я\"))","v":"В"},{"$f":"IF('[4]ГРАФИК И.Б.НОЯБРЬ '!AQ71=\"ОТ\",\"ОТ\",IF(T34=0,\"В\",\"Я\"))","v":"В"}," ",{"$f":"IF('[4]ГРАФИК И.Б.НОЯБРЬ '!AS71=\"ОТ\",\"ОТ\",IF(V34=0,\"В\",\"Я\"))","v":"В"},{"$f":"IF('[4]ГРАФИК И.Б.НОЯБРЬ '!AT71=\"ОТ\",\"ОТ\",IF(W34=0,\"В\",\"Я\"))","v":"В"},{"$f":"IF('[4]ГРАФИК И.Б.НОЯБРЬ '!AU71=\"ОТ\",\"ОТ\",IF(X34=0,\"В\",\"Я\"))","v":"В"},{"$f":"IF('[4]ГРАФИК И.Б.НОЯБРЬ '!AV71=\"ОТ\",\"ОТ\",IF(Y34=0,\"В\",\"Я\"))","v":"В"},{"$f":"IF('[4]ГРАФИК И.Б.НОЯБРЬ '!AW71=\"ОТ\",\"ОТ\",IF(Z34=0,\"В\",\"Я\"))","v":"В"},{"$f":"IF('[4]ГРАФИК И.Б.НОЯБРЬ '!AX71=\"ОТ\",\"ОТ\",IF(AA34=0,\"В\",\"Я\"))","v":"В"},{"$f":"IF('[4]ГРАФИК И.Б.НОЯБРЬ '!AY71=\"ОТ\",\"ОТ\",IF(AB34=0,\"В\",\"Я\"))","v":"В"},{"$f":"IF('[4]ГРАФИК И.Б.НОЯБРЬ '!AZ71=\"ОТ\",\"ОТ\",IF(AC34=0,\"В\",\"Я\"))","v":"В"},{"$f":"IF('[4]ГРАФИК И.Б.НОЯБРЬ '!BA71=\"ОТ\",\"ОТ\",IF(AD34=0,\"В\",\"Я\"))","v":"В"},{"$f":"IF('[4]ГРАФИК И.Б.НОЯБРЬ '!BB71=\"ОТ\",\"ОТ\",IF(AE34=0,\"В\",\"Я\"))","v":"В"},{"$f":"IF('[4]ГРАФИК И.Б.НОЯБРЬ '!BC71=\"ОТ\",\"ОТ\",IF(AF34=0,\"В\",\"Я\"))","v":"В"},{"$f":"IF('[4]ГРАФИК И.Б.НОЯБРЬ '!BD71=\"ОТ\",\"ОТ\",IF(AG34=0,\"В\",\"Я\"))","v":"В"},{"$f":"IF('[4]ГРАФИК И.Б.НОЯБРЬ '!BE71=\"ОТ\",\"ОТ\",IF(AH34=0,\"В\",\"Я\"))","v":"В"},{"$f":"IF('[4]ГРАФИК И.Б.НОЯБРЬ '!BF71=\"ОТ\",\"ОТ\",IF(AI34=0,\"В\",\"Я\"))","v":"В"},{"$f":"IF('[4]ГРАФИК И.Б.НОЯБРЬ '!BG71=\"ОТ\",\"ОТ\",IF(AJ34=0,\"В\",\"Я\"))","v":"В"}]
[null,"101",null,"контролёр-посадчик аттракциона",null,{"$f":"IFERROR(INDEX('[4]ГРАФИК И.Б.НОЯБРЬ '!$AC80:$HF80,1,MATCH(F$10,'[4]ГРАФИК И.Б.НОЯБРЬ '!$AC$19:$HF$19,0)),\"\")","v":"00:00:00"},{"$f":"IFERROR(INDEX('[4]ГРАФИК И.Б.НОЯБРЬ '!$AC80:$HF80,1,MATCH(G$10,'[4]ГРАФИК И.Б.НОЯБРЬ '!$AC$19:$HF$19,0)),\"\")","v":"00:00:00"},{"$f":"IFERROR(INDEX('[4]ГРАФИК И.Б.НОЯБРЬ '!$AC80:$HF80,1,MATCH(H$10,'[4]ГРАФИК И.Б.НОЯБРЬ '!$AC$19:$HF$19,0)),\"\")","v":"00:00:00"},{"$f":"IFERROR(INDEX('[4]ГРАФИК И.Б.НОЯБРЬ '!$AC80:$HF80,1,MATCH(I$10,'[4]ГРАФИК И.Б.НОЯБРЬ '!$AC$19:$HF$19,0)),\"\")","v":"00:00:00"},{"$f":"IFERROR(INDEX('[4]ГРАФИК И.Б.НОЯБРЬ '!$AC80:$HF80,1,MATCH(J$10,'[4]ГРАФИК И.Б.НОЯБРЬ '!$AC$19:$HF$19,0)),\"\")","v":"00:00:00"},{"$f":"IFERROR(INDEX('[4]ГРАФИК И.Б.НОЯБРЬ '!$AC80:$HF80,1,MATCH(K$10,'[4]ГРАФИК И.Б.НОЯБРЬ '!$AC$19:$HF$19,0)),\"\")","v":"00:00:00"},{"$f":"IFERROR(INDEX('[4]ГРАФИК И.Б.НОЯБРЬ '!$AC80:$HF80,1,MATCH(L$10,'[4]ГРАФИК И.Б.НОЯБРЬ '!$AC$19:$HF$19,0)),\"\")","v":"00:00:00"},{"$f":"IFERROR(INDEX('[4]ГРАФИК И.Б.НОЯБРЬ '!$AC80:$HF80,1,MATCH(M$10,'[4]ГРАФИК И.Б.НОЯБРЬ '!$AC$19:$HF$19,0)),\"\")","v":"00:00:00"},{"$f":"IFERROR(INDEX('[4]ГРАФИК И.Б.НОЯБРЬ '!$AC80:$HF80,1,MATCH(N$10,'[4]ГРАФИК И.Б.НОЯБРЬ '!$AC$19:$HF$19,0)),\"\")","v":"00:00:00"},{"$f":"IFERROR(INDEX('[4]ГРАФИК И.Б.НОЯБРЬ '!$AC80:$HF80,1,MATCH(O$10,'[4]ГРАФИК И.Б.НОЯБРЬ '!$AC$19:$HF$19,0)),\"\")","v":"00:00:00"},{"$f":"IFERROR(INDEX('[4]ГРАФИК И.Б.НОЯБРЬ '!$AC80:$HF80,1,MATCH(P$10,'[4]ГРАФИК И.Б.НОЯБРЬ '!$AC$19:$HF$19,0)),\"\")","v":"00:00:00"},{"$f":"IFERROR(INDEX('[4]ГРАФИК И.Б.НОЯБРЬ '!$AC80:$HF80,1,MATCH(Q$10,'[4]ГРАФИК И.Б.НОЯБРЬ '!$AC$19:$HF$19,0)),\"\")","v":"00:00:00"},{"$f":"IFERROR(INDEX('[4]ГРАФИК И.Б.НОЯБРЬ '!$AC80:$HF80,1,MATCH(R$10,'[4]ГРАФИК И.Б.НОЯБРЬ '!$AC$19:$HF$19,0)),\"\")","v":"00:00:00"},{"$f":"IFERROR(INDEX('[4]ГРАФИК И.Б.НОЯБРЬ '!$AC80:$HF80,1,MATCH(S$10,'[4]ГРАФИК И.Б.НОЯБРЬ '!$AC$19:$HF$19,0)),\"\")","v":"00:00:00"},{"$f":"IFERROR(INDEX('[4]ГРАФИК И.Б.НОЯБРЬ '!$AC80:$HF80,1,MATCH(T$10,'[4]ГРАФИК И.Б.НОЯБРЬ '!$AC$19:$HF$19,0)),\"\")","v":"00:00:00"},{"$f":"IFERROR(INDEX('[4]ГРАФИК И.Б.НОЯБРЬ '!$AC80:$HF80,1,MATCH(U$10,'[4]ГРАФИК И.Б.НОЯБРЬ '!$AC$19:$HF$19,0)),\"\")","v":""},{"$f":"IFERROR(INDEX('[4]ГРАФИК И.Б.НОЯБРЬ '!$AC80:$HF80,1,MATCH(V$10,'[4]ГРАФИК И.Б.НОЯБРЬ '!$AC$19:$HF$19,0)),\"\")","v":"00:00:00"},{"$f":"IFERROR(INDEX('[4]ГРАФИК И.Б.НОЯБРЬ '!$AC80:$HF80,1,MATCH(W$10,'[4]ГРАФИК И.Б.НОЯБРЬ '!$AC$19:$HF$19,0)),\"\")","v":"00:00:00"},{"$f":"IFERROR(INDEX('[4]ГРАФИК И.Б.НОЯБРЬ '!$AC80:$HF80,1,MATCH(X$10,'[4]ГРАФИК И.Б.НОЯБРЬ '!$AC$19:$HF$19,0)),\"\")","v":"00:00:00"},{"$f":"IFERROR(INDEX('[4]ГРАФИК И.Б.НОЯБРЬ '!$AC80:$HF80,1,MATCH(Y$10,'[4]ГРАФИК И.Б.НОЯБРЬ '!$AC$19:$HF$19,0)),\"\")","v":"00:00:00"},{"$f":"IFERROR(INDEX('[4]ГРАФИК И.Б.НОЯБРЬ '!$AC80:$HF80,1,MATCH(Z$10,'[4]ГРАФИК И.Б.НОЯБРЬ '!$AC$19:$HF$19,0)),\"\")","v":"00:00:00"},{"$f":"IFERROR(INDEX('[4]ГРАФИК И.Б.НОЯБРЬ '!$AC80:$HF80,1,MATCH(AA$10,'[4]ГРАФИК И.Б.НОЯБРЬ '!$AC$19:$HF$19,0)),\"\")","v":"00:00:00"},{"$f":"IFERROR(INDEX('[4]ГРАФИК И.Б.НОЯБРЬ '!$AC80:$HF80,1,MATCH(AB$10,'[4]ГРАФИК И.Б.НОЯБРЬ '!$AC$19:$HF$19,0)),\"\")","v":"00:00:00"},{"$f":"IFERROR(INDEX('[4]ГРАФИК И.Б.НОЯБРЬ '!$AC80:$HF80,1,MATCH(AC$10,'[4]ГРАФИК И.Б.НОЯБРЬ '!$AC$19:$HF$19,0)),\"\")","v":"00:00:00"},{"$f":"IFERROR(INDEX('[4]ГРАФИК И.Б.НОЯБРЬ '!$AC80:$HF80,1,MATCH(AD$10,'[4]ГРАФИК И.Б.НОЯБРЬ '!$AC$19:$HF$19,0)),\"\")","v":"00:00:00"},{"$f":"IFERROR(INDEX('[4]ГРАФИК И.Б.НОЯБРЬ '!$AC80:$HF80,1,MATCH(AE$10,'[4]ГРАФИК И.Б.НОЯБРЬ '!$AC$19:$HF$19,0)),\"\")","v":"00:00:00"},{"$f":"IFERROR(INDEX('[4]ГРАФИК И.Б.НОЯБРЬ '!$AC80:$HF80,1,MATCH(AF$10,'[4]ГРАФИК И.Б.НОЯБРЬ '!$AC$19:$HF$19,0)),\"\")","v":"00:00:00"},{"$f":"IFERROR(INDEX('[4]ГРАФИК И.Б.НОЯБРЬ '!$AC80:$HF80,1,MATCH(AG$10,'[4]ГРАФИК И.Б.НОЯБРЬ '!$AC$19:$HF$19,0)),\"\")","v":"00:00:00"},{"$f":"IFERROR(INDEX('[4]ГРАФИК И.Б.НОЯБРЬ '!$AC80:$HF80,1,MATCH(AH$10,'[4]ГРАФИК И.Б.НОЯБРЬ '!$AC$19:$HF$19,0)),\"\")","v":"00:00:00"},{"$f":"IFERROR(INDEX('[4]ГРАФИК И.Б.НОЯБРЬ '!$AC80:$HF80,1,MATCH(AI$10,'[4]ГРАФИК И.Б.НОЯБРЬ '!$AC$19:$HF$19,0)),\"\")","v":"00:00:00"},{"$f":"IFERROR(INDEX('[4]ГРАФИК И.Б.НОЯБРЬ '!$AC80:$HF80,1,MATCH(AJ$10,'[4]ГРАФИК И.Б.НОЯБРЬ '!$AC$19:$HF$19,0)),\"\")","v":"00:00:00"},{"$f":"IFERROR(INDEX('[4]ГРАФИК И.Б.НОЯБРЬ '!$AC80:$HF80,1,MATCH(AK$10,'[4]ГРАФИК И.Б.НОЯБРЬ '!$AC$19:$HF$19,0)),\"\")","v":""},{"$f":"COUNTIF($F36:$AK36,\">0\")","v":0},{"$f":"SUM($F$36:$AK$36)","v":0},null,{"$f":"SUM(#REF!)","v":{"$error":"#REF!"}},{"$f":"COUNTIF($F36:$AK36,\"=12\")+COUNTIF(#REF!,\"=8\")*2","v":{"$error":"#REF!"}},{"$f":"SUMIF($F$12:$AK$12,\"ЧП\",$F36:$AK36)","v":0},{"$f":"SUMPRODUCT(IF(ISNUMBER(F36:AK36),(F36:AK36>8)*(F36:AK36-8),0))","v":0},{"$f":"SUMIF(#REF!,\"в\",$F36:$AK36)","v":{"$error":"#REF!"}},{"$f":"IF($AN36>$BF$7,$AN36-$BF$7,\"–\")","v":"–"},{"$f":"SUM($AV36:$BD36)","v":0},{"$f":"COUNTIF($F36:$AK36,\"=От\")","v":0},{"$f":"COUNTIF($F36:$AK36,\"=Б\")","v":0},{"$f":"COUNTIF($F36:$AK36,\"=А\")","v":0},{"$f":"COUNTIF($F36:$AK36,\"=Ор\")","v":0},{"$f":"COUNTIF($F36:$AK36,\"=У\")","v":0},{"$f":"COUNTIF($F36:$AK36,\"=Ч\")","v":0},{"$f":"COUNTIF($F36:$AK36,\"=Пр\")","v":0},{"$f":"COUNTIF($F36:$AK36,\"=Ож\")","v":0},{"$f":"COUNTIF($F36:$AK36,\"=К\")","v":0},31]
[null,null,null,null,null,{"$f":"IF('[4]ГРАФИК И.Б.НОЯБРЬ '!AC77=\"ОТ\",\"ОТ\",IF(F36=0,\"В\",\"Я\"))","v":"В"},{"$f":"IF('[4]ГРАФИК И.Б.НОЯБРЬ '!AD77=\"ОТ\",\"ОТ\",IF(G36=0,\"В\",\"Я\"))","v":"В"},{"$f":"IF('[4]ГРАФИК И.Б.НОЯБРЬ '!AE77=\"ОТ\",\"ОТ\",IF(H36=0,\"В\",\"Я\"))","v":"В"},{"$f":"IF('[4]ГРАФИК И.Б.НОЯБРЬ '!AF77=\"ОТ\",\"ОТ\",IF(I36=0,\"В\",\"Я\"))","v":"В"},{"$f":"IF('[4]ГРАФИК И.Б.НОЯБРЬ '!AG77=\"ОТ\",\"ОТ\",IF(J36=0,\"В\",\"Я\"))","v":"В"},{"$f":"IF('[4]ГРАФИК И.Б.НОЯБРЬ '!AH77=\"ОТ\",\"ОТ\",IF(K36=0,\"В\",\"Я\"))","v":"В"},{"$f":"IF('[4]ГРАФИК И.Б.НОЯБРЬ '!AI77=\"ОТ\",\"ОТ\",IF(L36=0,\"В\",\"Я\"))","v":"В"},{"$f":"IF('[4]ГРАФИК И.Б.НОЯБРЬ '!AJ77=\"ОТ\",\"ОТ\",IF(M36=0,\"В\",\"Я\"))","v":"В"},{"$f":"IF('[4]ГРАФИК И.Б.НОЯБРЬ '!AK77=\"ОТ\",\"ОТ\",IF(N36=0,\"В\",\"Я\"))","v":"В"},{"$f":"IF('[4]ГРАФИК И.Б.НОЯБРЬ '!AL77=\"ОТ\",\"ОТ\",IF(O36=0,\"В\",\"Я\"))","v":"В"},{"$f":"IF('[4]ГРАФИК И.Б.НОЯБРЬ '!AM77=\"ОТ\",\"ОТ\",IF(P36=0,\"В\",\"Я\"))","v":"В"},{"$f":"IF('[4]ГРАФИК И.Б.НОЯБРЬ '!AN77=\"ОТ\",\"ОТ\",IF(Q36=0,\"В\",\"Я\"))","v":"В"},{"$f":"IF('[4]ГРАФИК И.Б.НОЯБРЬ '!AO77=\"ОТ\",\"ОТ\",IF(R36=0,\"В\",\"Я\"))","v":"В"},{"$f":"IF('[4]ГРАФИК И.Б.НОЯБРЬ '!AP77=\"ОТ\",\"ОТ\",IF(S36=0,\"В\",\"Я\"))","v":"В"},{"$f":"IF('[4]ГРАФИК И.Б.НОЯБРЬ '!AQ77=\"ОТ\",\"ОТ\",IF(T36=0,\"В\",\"Я\"))","v":"В"}," ",{"$f":"IF('[4]ГРАФИК И.Б.НОЯБРЬ '!AS77=\"ОТ\",\"ОТ\",IF(V36=0,\"В\",\"Я\"))","v":"В"},{"$f":"IF('[4]ГРАФИК И.Б.НОЯБРЬ '!AT77=\"ОТ\",\"ОТ\",IF(W36=0,\"В\",\"Я\"))","v":"В"},{"$f":"IF('[4]ГРАФИК И.Б.НОЯБРЬ '!AU77=\"ОТ\",\"ОТ\",IF(X36=0,\"В\",\"Я\"))","v":"В"},{"$f":"IF('[4]ГРАФИК И.Б.НОЯБРЬ '!AV77=\"ОТ\",\"ОТ\",IF(Y36=0,\"В\",\"Я\"))","v":"В"},{"$f":"IF('[4]ГРАФИК И.Б.НОЯБРЬ '!AW77=\"ОТ\",\"ОТ\",IF(Z36=0,\"В\",\"Я\"))","v":"В"},{"$f":"IF('[4]ГРАФИК И.Б.НОЯБРЬ '!AX77=\"ОТ\",\"ОТ\",IF(AA36=0,\"В\",\"Я\"))","v":"В"},{"$f":"IF('[4]ГРАФИК И.Б.НОЯБРЬ '!AY77=\"ОТ\",\"ОТ\",IF(AB36=0,\"В\",\"Я\"))","v":"В"},{"$f":"IF('[4]ГРАФИК И.Б.НОЯБРЬ '!AZ77=\"ОТ\",\"ОТ\",IF(AC36=0,\"В\",\"Я\"))","v":"В"},{"$f":"IF('[4]ГРАФИК И.Б.НОЯБРЬ '!BA77=\"ОТ\",\"ОТ\",IF(AD36=0,\"В\",\"Я\"))","v":"В"},{"$f":"IF('[4]ГРАФИК И.Б.НОЯБРЬ '!BB77=\"ОТ\",\"ОТ\",IF(AE36=0,\"В\",\"Я\"))","v":"В"},{"$f":"IF('[4]ГРАФИК И.Б.НОЯБРЬ '!BC77=\"ОТ\",\"ОТ\",IF(AF36=0,\"В\",\"Я\"))","v":"В"},{"$f":"IF('[4]ГРАФИК И.Б.НОЯБРЬ '!BD77=\"ОТ\",\"ОТ\",IF(AG36=0,\"В\",\"Я\"))","v":"В"},{"$f":"IF('[4]ГРАФИК И.Б.НОЯБРЬ '!BE77=\"ОТ\",\"ОТ\",IF(AH36=0,\"В\",\"Я\"))","v":"В"},{"$f":"IF('[4]ГРАФИК И.Б.НОЯБРЬ '!BF77=\"ОТ\",\"ОТ\",IF(AI36=0,\"В\",\"Я\"))","v":"В"},{"$f":"IF('[4]ГРАФИК И.Б.НОЯБРЬ '!BG77=\"ОТ\",\"ОТ\",IF(AJ36=0,\"В\",\"Я\"))","v":"В"}]
[null,null,null,null,null,{"$f":"COUNTIF(F16:F33,\"Я\")","v":5},{"$f":"COUNTIF(G16:G33,\"Я\")","v":5},6,4,5,6,6,5,5,7,4,7,5,6,5,1,6,4,6,5,5,5,6,3,7,4,6,4,7,3,6,null,null,{"$f":"SUM($F$38:$AJ$38)","v":159}]
[null,null,null,null,null,{"$f":"SUM(F16,F$18,F$20,F$22,F$24,F$26,F$28,F$30,F$32)","v":1.7916666666666665},{"$f":"SUM(G16,G$18,G$20,G$22,G$24,G$26,G$28,G$30,G$32)","v":1.8749999999999998},2.0416666666666665,1.75,1.7499999999999998,2.2916666666666665,2.1666666666666665,1.75,1.5833333333333335,2.583333333333333,1.5416666666666665,2.4999999999999996,1.8749999999999998,2.2916666666666665,1.7916666666666665,0,2.333333333333333,1.2916666666666667,2.2916666666666665,1.6249999999999998,1.8749999999999996,1.625,2.208333333333333,1,2.3749999999999996,1.4166666666666667,2.083333333333333,1.333333333333333,2.5416666666666665,1,2.083333333333333,null,null,{"$f":"SUM(H39:AL39)","v":53.000000000000007}]
[]
[]
[null,null,"Нурлиева Е.А., котролёр-посадчик аттракциона НЧ"]
[null,null,null,null,null,null,null,null,null,null,null,null,null,null,null,null,null,null,null,null,null,null,null,null,null,null,null,null,null,null,"в ячейках жёлтого и зелёного цвета должно стать ОТ"]
[null,null,{"$f":"C42=C28","v":true}]
[]
[null,null,null,null,null,null,null,null,null,null,null,null,null,null,null,null,null,null,null,null,null,null,null,null,null,null,"Помогите сделать так, чтобы в ячейку кроме Я и В выходил ОТ (отпуск) из графика."]
[]
[null,null,null,"2020-11-01"]
[null,null,null,2020]
[null,null,null,11]
[null,null,null,1,2,3,4,5,6,7,8,9,10,11,12,13,14,15,16,17,18,19,20,21,22,23,24,25,26,27,28,29,30,31]
[]
[null,null,null,null,null,null,null,null,null,null,null,null,null,null,null,null,null,null,null,null,null,null,null,null,null,null,null,null,null,null,null,null,null,null,null,null,null,null,"2020-01-01"]
[null,null,null,null,null,null,null,null,null,null,null,null,null,null,null,null,null,null,null,null,null,null,null,null,null,null,null,null,null,null,null,null,null,null,null,null,null,null,"2020-01-02"]
[null,null,null,null,null,null,null,null,null,null,null,null,null,null,null,null,null,null,null,null,null,null,null,null,null,null,null,null,null,null,null,null,null,null,null,null,null,null,"2020-01-03"]
[null,null,null,null,null,null,null,null,null,null,null,null,null,null,null,null,null,null,null,null,null,null,null,null,null,null,null,null,null,null,null,null,null,null,null,null,null,null,"2020-01-04"]
[null,null,null,null,null,null,null,null,null,null,null,null,null,null,null,null,null,null,null,null,null,null,null,null,null,null,null,null,null,null,null,null,null,null,null,null,null,null,"2020-01-05"]
[null,null,null,null,null,null,null,null,null,null,null,null,null,null,null,null,null,null,null,null,null,null,null,null,null,null,null,null,null,null,null,null,null,null,null,null,null,null,"2020-01-06"]
[null,null,null,null,null,null,null,null,null,null,null,null,null,null,null,null,null,null,null,null,null,null,null,null,null,null,null,null,null,null,null,null,null,null,null,null,null,null,"2020-01-07"]
[null,null,null,null,null,null,null,null,null,null,null,null,null,null,null,null,null,null,null,null,null,null,null,null,null,null,null,null,null,null,null,null,null,null,null,null,null,null,"2020-01-08"]
[null,null,null,null,null,null,null,null,null,null,null,null,null,null,null,null,null,null,null,null,null,null,null,null,null,null,null,null,null,null,null,null,null,null,null,null,null,null,"2020-02-23"]
[null,null,null,null,null,null,null,null,null,null,null,null,null,null,null,null,null,null,null,null,null,null,null,null,null,null,null,null,null,null,null,null,null,null,null,null,null,null,"2020-03-08"]
[null,null,null,null,null,null,null,null,null,null,null,null,null,null,null,null,null,null,null,null,null,null,null,null,null,null,null,null,null,null,null,null,null,null,null,null,null,null,"2020-05-01"]
[]
[]
[null,null,null,null,null,null,null,null,null,null,null,null,null,null,null,null,null,null,null,null,null,null,null,null,null,null,null,null,null,null,null,null,null,null,null,null,null,null,"2020-05-09"]
[]
[null,null,null,null,null,null,null,null,null,null,null,null,null,null,null,null,null,null,null,null,null,null,null,null,null,null,null,null,null,null,null,null,null,null,null,null,null,null,"2020-06-12"]
[null,null,null,null,null,null,null,null,null,null,null,null,null,null,null,null,null,null,null,null,null,null,null,null,null,null,null,null,null,null,null,null,null,null,null,null,null,null,"2020-11-04"]